Workbook

Sheet MTK2_UAH (hidden)
A2: Державний та гарантований державою борг України за поточний рік
M4: =VALUAH -> млрд. грн
B5: 2016-12-31 | C5: 2017-01-31 | D5: 2017-02-28 | E5: 2017-03-31 | F5: 2017-04-30 | G5: 2017-05-31 | H5: 2017-06-30 | I5: 2017-07-31 | J5: 2017-08-31 | K5: 2017-09-30 | L5: 2017-10-31 | M5: 2017-11-30
A6: Загальна сума державного та гарантованого державою боргу | B6: =B$60+B$7 -> 1929.808832 | C6: 1931.105498 | D6: 1941.480573 | E6: 1951.851114 | F6: 1979.370176 | G6: 1968.039959 | H6: 1957.820677 | I6: 1971.195818 | J6: 1958.374458 | K6: 2043.260142 | L6: 2046.94076 | M6: 2062.002156
A7: Внутрішній борг | B7: =B$8+B$46 -> 689.7300058 | C7: 689.6916673 | D7: 707.4037514 | E7: 718.9176893 | F7: 711.4603812 | G7: 707.0945192 | H7: 698.6046549 | I7: 709.2018157 | J7: 714.807062 | K7: 719.7752538 | L7: 725.4260151 | M7: 736.7921593
A8: Державний борг | B8: =B$9+B$44 -> 670.6455305 | C8: 670.6400111 | D8: 688.2966866 | E8: 699.6002593 | F8: 691.9842079 | G8: 687.5201143 | H8: 678.8832874 | I8: 689.4242723 | J8: 694.9387913 | K8: 699.7498485 | L8: 705.3114819 | M8: 716.5919387
A9: 1. Заборгованість за випущеними цінними паперами на внутрішньому ринку | B9: =SUM(B$10:B$43) -> 668.1327326 | C9: 668.1272131 | D9: 685.7838887 | E9: 697.1205245 | F9: 689.5044731 | G9: 685.0403795 | H9: 676.4366157 | I9: 686.9776006 | J9: 692.4921196 | K9: 697.3031768 | L9: 702.8978733 | M9: 714.1783301
A10: ОВДП (10 - річні) | B10: 74.832983 | C10: 74.832983 | D10: 81.319904 | E10: 81.319904 | F10: 81.319904 | G10: 81.319904 | H10: 81.319904 | I10: 81.319904 | J10: 81.319904 | K10: 81.319904 | L10: 50.585439 | M10: 50.585439
A11: ОВДП (11 - річні) | B11: 17.382981 | C11: 17.382981 | D11: 17.382981 | E11: 17.382981 | F11: 17.382981 | G11: 17.382981 | H11: 17.382981 | I11: 17.382981 | J11: 17.382981 | K11: 17.382981 | L11: 15.033 | M11: 15.033
A12: ОВДП (12 - місячні) | B12: 3.47757 | C12: 3.45757 | D12: 3.99197 | E12: 3.93636 | F12: 4.71486 | G12: 3.70886 | H12: 3.36279 | I12: 3.39429 | J12: 3.54429 | K12: 3.37629 | L12: 3.37629 | M12: 3.37629
A13: ОВДП (12 - річні) | B13: 28.5 | C13: 28.5 | D13: 28.5 | E13: 28.5 | F13: 28.5 | G13: 28.5 | H13: 28.5 | I13: 28.5 | J13: 28.5 | K13: 28.5 | L13: 36.5 | M13: 36.5
A14: ОВДП (13 - річні) | B14: 37.11763 | C14: 37.11763 | D14: 37.11763 | E14: 41.817631 | F14: 41.817631 | G14: 41.817631 | H14: 41.817631 | I14: 41.817631 | J14: 41.817631 | K14: 41.817631 | L14: 28.700001 | M14: 28.700001
A15: ОВДП (14 - річні) | B15: 51.25 | C15: 51.25 | D15: 56.15 | E15: 56.15 | F15: 56.15 | G15: 56.15 | H15: 56.15 | I15: 56.15 | J15: 56.15 | K15: 56.15 | L15: 46.9 | M15: 46.9
A16: ОВДП (15 - річні) | B16: 42.789838 | C16: 42.789838 | D16: 47.689838 | E16: 53.090798 | F16: 53.090798 | G16: 53.090798 | H16: 53.090798 | I16: 75.590793 | J16: 75.590793 | K16: 75.590793 | L16: 87.688537 | M16: 87.688537
A17: ОВДП (16 - річні) | B17: 0 | C17: 0 | D17: 0 | E17: 0 | F17: 0 | G17: 0 | H17: 0 | I17: 0 | J17: 0 | K17: 0 | L17: 6.048872 | M17: 6.048872
A18: ОВДП (17 - річні) | B18: 0 | C18: 0 | D18: 0 | E18: 0 | F18: 0 | G18: 0 | H18: 0 | I18: 0 | J18: 0 | K18: 0 | L18: 6.048872 | M18: 6.048872
A19: ОВДП (18 - місячні) | B19: 29.25796141 | C19: 29.18067935 | D19: 29.11034625 | E19: 29.02683188 | F19: 28.56994756 | G19: 28.35616889 | H19: 28.08309172 | I19: 15.32930413 | J19: 15.13052872 | K19: 15.68746579 | L19: 15.86982565 | M19: 24.13705451
A20: ОВДП (18 - річні) | B20: 0 | C20: 0 | D20: 0 | E20: 0 | F20: 0 | G20: 0 | H20: 0 | I20: 0 | J20: 0 | K20: 0 | L20: 24.195488 | M20: 24.195488
A21: ОВДП (19 - річні) | B21: 0 | C21: 0 | D21: 0 | E21: 0 | F21: 0 | G21: 0 | H21: 0 | I21: 0 | J21: 0 | K21: 0 | L21: 12.097744 | M21: 12.097744
A22: ОВДП (2 - річні) | B22: 64.35343953 | C22: 64.33258522 | D22: 64.48816773 | E22: 67.4175248 | F22: 66.60081855 | G22: 67.22255769 | H22: 66.78310088 | I22: 66.22423565 | J22: 66.38655129 | K22: 68.31353766 | L22: 68.89461801 | M22: 69.36176136
A23: ОВДП (20 - річні) | B23: 0 | C23: 0 | D23: 0 | E23: 0 | F23: 0 | G23: 0 | H23: 0 | I23: 0 | J23: 0 | K23: 0 | L23: 12.097744 | M23: 12.097744
A24: ОВДП (21-річні) | B24: 0 | C24: 0 | D24: 0 | E24: 0 | F24: 0 | G24: 0 | H24: 0 | I24: 0 | J24: 0 | K24: 0 | L24: 12.097744 | M24: 12.097744
A25: ОВДП (22-річні) | B25: 0 | C25: 0 | D25: 0 | E25: 0 | F25: 0 | G25: 0 | H25: 0 | I25: 0 | J25: 0 | K25: 0 | L25: 6.048872 | M25: 6.048872
A26: ОВДП (23-річні) | B26: 0 | C26: 0 | D26: 0 | E26: 0 | F26: 0 | G26: 0 | H26: 0 | I26: 0 | J26: 0 | K26: 0 | L26: 18.146616 | M26: 18.146616
A27: ОВДП (24-річні) | B27: 0 | C27: 0 | D27: 0 | E27: 0 | F27: 0 | G27: 0 | H27: 0 | I27: 0 | J27: 0 | K27: 0 | L27: 12.097744 | M27: 12.097744
A28: ОВДП (25-річні) | B28: 0 | C28: 0 | D28: 0 | E28: 0 | F28: 0 | G28: 0 | H28: 0 | I28: 0 | J28: 0 | K28: 0 | L28: 12.097744 | M28: 12.097744
A29: ОВДП (26-річні) | B29: 0 | C29: 0 | D29: 0 | E29: 0 | F29: 0 | G29: 0 | H29: 0 | I29: 0 | J29: 0 | K29: 0 | L29: 12.097744 | M29: 12.097744
A30: ОВДП (27-річні) | B30: 0 | C30: 0 | D30: 0 | E30: 0 | F30: 0 | G30: 0 | H30: 0 | I30: 0 | J30: 0 | K30: 0 | L30: 12.097744 | M30: 12.097744
A31: ОВДП (28-річні) | B31: 0 | C31: 0 | D31: 0 | E31: 0 | F31: 0 | G31: 0 | H31: 0 | I31: 0 | J31: 0 | K31: 0 | L31: 12.097744 | M31: 12.097744
A32: ОВДП (29-річні) | B32: 0 | C32: 0 | D32: 0 | E32: 0 | F32: 0 | G32: 0 | H32: 0 | I32: 0 | J32: 0 | K32: 0 | L32: 12.097744 | M32: 12.097744
A33: ОВДП (3 - місячні) | B33: 0.01 | C33: 0.01 | D33: 0.01 | E33: 0 | F33: 0 | G33: 0 | H33: 0 | I33: 0 | J33: 0 | K33: 0 | L33: 0 | M33: 0
A34: ОВДП (3 - річні) | B34: 18.462385 | C34: 19.409305 | D34: 20.768255 | E34: 20.622125 | F34: 16.956588 | G34: 17.86015449 | H34: 19.29364489 | I34: 24.07202433 | J34: 33.60618223 | K34: 36.00253686 | L34: 42.32254506 | M34: 45.17081845
A35: ОВДП (30-річні) | B35: 0 | C35: 0 | D35: 0 | E35: 0 | F35: 0 | G35: 0 | H35: 0 | I35: 0 | J35: 0 | K35: 0 | L35: 12.097751 | M35: 12.097751
A36: ОВДП (4 - річні) | B36: 15.58553728 | C36: 15.57404576 | D36: 15.56358752 | E36: 15.55116928 | F36: 15.48323248 | G36: 11.235 | H36: 11.235 | I36: 11.235 | J36: 11.235 | K36: 11.235 | L36: 0.03 | M36: 0.03
A37: ОВДП (5 - річні) | B37: 151.5696514 | C37: 150.9532078 | D37: 150.8198212 | E37: 149.6248115 | F37: 147.4373245 | G37: 147.3142695 | H37: 139.9439212 | I37: 139.2994345 | J37: 136.3662554 | K37: 137.7150345 | L37: 58.4728906 | M37: 59.3107018
A38: ОВДП (6 - місячні) | B38: 0.215801 | C38: 0.01 | D38: 0.01 | E38: 0.01 | F38: 0.01 | G38: 0.645 | H38: 0.635 | I38: 0.635 | J38: 0.635 | K38: 0.635 | L38: 0.635 | M38: 0
A39: ОВДП (6 - річні) | B39: 24.1 | C39: 24.1 | D39: 22.85 | E39: 22.85 | F39: 22.85 | G39: 22.85 | H39: 22.85 | I39: 22.85 | J39: 22.85 | K39: 21.6 | L39: 7.8901 | M39: 7.8901
A40: ОВДП (7 - річні) | B40: 44.739791 | C40: 44.739791 | D40: 44.739791 | E40: 44.739791 | F40: 43.539791 | G40: 43.539791 | H40: 44.066091 | I40: 44.639341 | J40: 43.439341 | K40: 43.439341 | L40: 19.72846 | M40: 19.72846
A41: ОВДП (8 - річні) | B41: 27.416198 | C41: 27.416198 | D41: 27.416198 | E41: 27.416198 | F41: 27.416198 | G41: 26.382865 | H41: 24.258263 | I41: 21.158263 | J41: 21.158263 | K41: 21.158263 | L41: 18.9 | M41: 18.9
A42: ОВДП (9 - місячні) | B42: 0.196567 | C42: 0.196 | D42: 0.981 | E42: 0.79 | F42: 0.79 | G42: 0.79 | H42: 0.79 | I42: 0.505 | J42: 0.505 | K42: 0.505 | L42: 0.505 | M42: 0
A43: ОВДП (9 - річні) | B43: 36.874399 | C43: 36.874399 | D43: 36.874399 | E43: 36.874399 | F43: 36.874399 | G43: 36.874399 | H43: 36.874399 | I43: 36.874399 | J43: 36.874399 | K43: 36.874399 | L43: 19.4 | M43: 19.4
A44: 2. Заборгованість перед банківськими та іншими фінансовими установами | B44: =SUM(B$45:B$45) -> 2.512797928 | C44: 2.512797928 | D44: 2.512797928 | E44: 2.479734797 | F44: 2.479734797 | G44: 2.479734797 | H44: 2.446671666 | I44: 2.446671666 | J44: 2.446671666 | K44: 2.446671666 | L44: 2.413608536 | M44: 2.413608536
A45: Національний банк України | B45: 2.512797928 | C45: 2.512797928 | D45: 2.512797928 | E45: 2.479734797 | F45: 2.479734797 | G45: 2.479734797 | H45: 2.446671666 | I45: 2.446671666 | J45: 2.446671666 | K45: 2.446671666 | L45: 2.413608536 | M45: 2.413608536
A46: Гарантований державою борг | B46: =B$47+B$54+B$58 -> 19.08447525 | C46: 19.05165624 | D46: 19.10706476 | E46: 19.31743004 | F46: 19.47617331 | G46: 19.57440491 | H46: 19.72136754 | I46: 19.77754341 | J46: 19.86827068 | K46: 20.02540529 | L46: 20.11453322 | M46: 20.20022065
A47: 1. Заборгованість за випущеними цінними паперами на внутрішньому ринку | B47: =SUM(B$48:B$53) -> 15.9500116 | C47: 15.9500116 | D47: 15.9500116 | E47: 15.9500116 | F47: 15.9500116 | G47: 15.9500116 | H47: 15.9500116 | I47: 15.9500116 | J47: 15.9500116 | K47: 15.9500116 | L47: 15.9500116 | M47: 15.9500116
A48: Державні цінні папери | B48: 1.16e-05 | C48: 1.16e-05 | D48: 1.16e-05 | E48: 1.16e-05 | F48: 1.16e-05 | G48: 1.16e-05 | H48: 1.16e-05 | I48: 1.16e-05 | J48: 1.16e-05 | K48: 1.16e-05 | L48: 1.16e-05 | M48: 1.16e-05
A49: Облігації ДІУ (10 - річні) | B49: 1 | C49: 1 | D49: 1 | E49: 1 | F49: 1 | G49: 1 | H49: 1 | I49: 1 | J49: 1 | K49: 1 | L49: 1 | M49: 1
A50: Облігації ДІУ (5 - річні) | B50: 3 | C50: 3 | D50: 3 | E50: 3 | F50: 3 | G50: 3 | H50: 3 | I50: 3 | J50: 3 | K50: 3 | L50: 3 | M50: 3
A51: Облігації ДІУ (7 - річні) | B51: 3 | C51: 3 | D51: 3 | E51: 3 | F51: 3 | G51: 3 | H51: 3 | I51: 3 | J51: 3 | K51: 3 | L51: 3 | M51: 3
A52: Облігації НАК "Нафтогаз України" (3 - річні) | B52: 4.8 | C52: 4.8 | D52: 4.8 | E52: 4.8 | F52: 4.8 | G52: 4.8 | H52: 4.8 | I52: 4.8 | J52: 4.8 | K52: 4.8 | L52: 4.8 | M52: 4.8
A53: Облігації Укравтодору (5 - річні) | B53: 4.15 | C53: 4.15 | D53: 4.15 | E53: 4.15 | F53: 4.15 | G53: 4.15 | H53: 4.15 | I53: 4.15 | J53: 4.15 | K53: 4.15 | L53: 4.15 | M53: 4.15
A54: 2. Заборгованість перед банківськими та іншими фінансовими установами | B54: =SUM(B$55:B$57) -> 3.133508998 | C54: 3.100689992 | D54: 3.156098505 | E54: 3.366463788 | F54: 3.52520706 | G54: 3.623438659 | H54: 3.770401292 | I54: 3.826577161 | J54: 3.91730443 | K54: 4.074439044 | L54: 4.163566971 | M54: 4.249254401
A55: ВАТ "Державний експортно-імпортний банк України" | B55: 0 | C55: 0 | D55: 0.03707292115 | E55: 0.1134704461 | F55: 0.1917701267 | G55: 0.2475387402 | H55: 0.2781835844 | I55: 0.314037666 | J55: 0.3360657624 | K55: 0.3693971302 | L55: 0.4005847984 | M55: 0.4314411247
A56: ВАТ "Державний ощадний банк України" | B56: 3.021712318 | C56: 2.998100726 | D56: 3.016436318 | E56: 3.150404076 | F56: 3.236327973 | G56: 3.278790958 | H56: 3.395108747 | I56: 3.4192638 | J56: 3.487962972 | K56: 3.611766219 | L56: 3.673539742 | M56: 3.728370846
A57: ПАТ АБ "Укргазбанк" | B57: 0.1117966802 | C57: 0.1025892659 | D57: 0.1025892659 | E57: 0.1025892659 | F57: 0.09710896056 | G57: 0.09710896056 | H57: 0.09710896056 | I57: 0.09327569528 | J57: 0.09327569528 | K57: 0.09327569528 | L57: 0.08944243001 | M57: 0.08944243001
A58: 3. Заборгованість, не віднесена до інших категорій | B58: =SUM(B$59:B$59) -> 0.00095465 | C58: 0.00095465 | D58: 0.00095465 | E58: 0.00095465 | F58: 0.00095465 | G58: 0.00095465 | H58: 0.00095465 | I58: 0.00095465 | J58: 0.00095465 | K58: 0.00095465 | L58: 0.00095465 | M58: 0.00095465
A59: Інші кредитори | B59: 0.00095465 | C59: 0.00095465 | D59: 0.00095465 | E59: 0.00095465 | F59: 0.00095465 | G59: 0.00095465 | H59: 0.00095465 | I59: 0.00095465 | J59: 0.00095465 | K59: 0.00095465 | L59: 0.00095465 | M59: 0.00095465
A60: Зовнішній борг | B60: =B$61+B$85 -> 1240.078827 | C60: 1241.41383 | D60: 1234.076821 | E60: 1232.933425 | F60: 1267.909795 | G60: 1260.94544 | H60: 1259.216022 | I60: 1261.994002 | J60: 1243.567396 | K60: 1323.484889 | L60: 1321.514745 | M60: 1325.209997
A61: Державний борг | B61: =B$62+B$69+B$75+B$77+B$83 -> 980.1877545 | C61: 981.0500337 | D61: 977.6388742 | E61: 976.5272341 | F61: 980.9381688 | G61: 977.4955253 | H61: 972.1761511 | I61: 970.2660315 | J61: 954.1081384 | K61: 1025.071735 | L61: 1033.58042 | M61: 1039.512815
A62: 1. Заборгованість за позиками, одержаними від міжнародних фінансових організацій | B62: =SUM(B$63:B$68) -> 371.8465755 | C62: 373.209225 | D62: 371.1236043 | E62: 371.6659696 | F62: 385.2357053 | G62: 385.5228595 | H62: 385.3954594 | I62: 386.4058193 | J62: 377.4130273 | K62: 389.8438187 | L62: 391.6386368 | M62: 392.3361237
A63: Європейське Співтовариство | B63: 62.81395484 | C63: 63.70885235 | D63: 63.29820783 | E63: 64.01086653 | F63: 81.18268716 | G63: 82.73752479 | H63: 83.70085742 | I63: 85.41386714 | J63: 85.65043261 | K63: 87.77469145 | L63: 87.54354928 | M63: 89.77774375
A64: Європейський банк реконструкції та розвитку | B64: 16.0723087 | C64: 16.53241549 | D64: 16.22666393 | E64: 16.3992311 | F64: 16.31678422 | G64: 15.92408972 | H64: 16.31471496 | I64: 16.65096404 | J64: 16.67678237 | K64: 17.28195625 | L64: 17.15298468 | M64: 16.76019868
A65: Європейський Інвестиційний Банк | B65: 14.52237776 | C65: 14.72927509 | D65: 15.0436734 | E65: 15.21304636 | F65: 15.17441155 | G65: 15.46503689 | H65: 15.64509998 | I65: 15.96529035 | J65: 15.77455394 | K65: 16.16578647 | L65: 16.12321617 | M65: 18.46337323
A66: Міжнародний банк реконструкції та розвитку | B66: 137.4605065 | C66: 136.1181227 | D66: 135.2918085 | E66: 134.8754237 | F66: 132.1655261 | G66: 130.6943497 | H66: 129.6743161 | I66: 127.6583971 | J66: 125.6820046 | K66: 130.077682 | L66: 131.5179072 | M66: 132.1553652
A67: Міжнародний Валютний Фонд | B67: 140.9098527 | C67: 142.0531629 | D67: 141.1960166 | E67: 141.0983105 | F67: 140.3282924 | G67: 140.6290625 | H67: 139.9857662 | I67: 140.6365641 | J67: 133.5393324 | K67: 138.4455648 | L67: 139.201701 | M67: 135.0644888
A68: Фонд чистих технологій (МБРР) | B68: 0.06757499901 | C68: 0.06739650623 | D68: 0.06723406295 | E68: 0.06909135625 | F68: 0.06800385358 | G68: 0.07279597184 | H68: 0.07470482739 | I68: 0.08073649949 | J68: 0.08992140397 | K68: 0.09813770811 | L68: 0.09927851561 | M68: 0.114954112
A69: 2. Заборгованість за позиками, одержаними від органів управління іноземних держав | B69: =SUM(B$70:B$74) -> 45.64750416 | C69: 46.15063435 | D69: 46.34290275 | E69: 46.19803483 | F69: 45.37042495 | G69: 45.32822021 | H69: 45.17404719 | I69: 45.5388627 | J69: 45.17697573 | K69: 46.38376947 | L69: 46.53627427 | M69: 47.31976091
A70: Канада | B70: 8.0323876 | C70: 8.246452 | D70: 8.24875 | E70: 8.0905568 | F70: 7.8172592 | G70: 7.8266768 | H70: 8.0142012 | I70: 8.2643812 | J70: 8.1493432 | K70: 8.5090016 | L70: 8.3534756 | M70: 8.4210268
A71: Німеччина | B71: 5.983279353 | C71: 6.068521905 | D71: 6.029406379 | E71: 6.097289958 | F71: 6.081805378 | G71: 6.198286123 | H71: 6.386205674 | I71: 6.516904841 | J71: 6.534954307 | K71: 6.697030948 | L71: 6.772858134 | M71: 7.041556027
A72: Росія | B72: 16.47374066 | C72: 16.43022688 | D72: 16.39062572 | E72: 16.34360282 | F72: 16.08635339 | G72: 15.96598498 | H72: 15.81222845 | I72: 15.70111146 | J72: 15.49751481 | K72: 16.06796021 | L72: 16.25474315 | M72: 16.36654779
A73: США | B73: 0.2065714027 | C73: 0.2060257645 | D73: 0.2055291883 | E73: 0.2049395478 | F73: 0.2017137852 | G73: 0.2002044333 | H73: 0.1982764134 | I73: 0.196883069 | J73: 0.194330082 | K73: 0.2014831452 | L73: 0.2038252977 | M73: 0.2052272647
A74: Японія | B74: 14.95152515 | C74: 15.1994078 | D74: 15.46859147 | E74: 15.46164571 | F74: 15.18329319 | G74: 15.13706787 | H74: 14.76313545 | I74: 14.85958212 | J74: 14.80083333 | K74: 14.90829356 | L74: 14.95137208 | M74: 15.28540302
A75: 3. Заборгованість за позиками, одержаними від іноземних комерційних банків, інших іноземних фінансових установ | B75: =SUM(B$76:B$76) -> 0.001453225 | C75: 0.0014739288 | D75: 0.00146442838 | E75: 0.00148091602 | F75: 0.00147715511 | G75: 0.00150544607 | H75: 0.00152297433 | I75: 0.00155414331 | J75: 0.00155844772 | K75: 0.00159709956 | L75: 0.00159289382 | M75: 0.00163354598
A76: Chase Manhattan Bank Luxembourg S.A. | B76: 0.001453225 | C76: 0.0014739288 | D76: 0.00146442838 | E76: 0.00148091602 | F76: 0.00147715511 | G76: 0.00150544607 | H76: 0.00152297433 | I76: 0.00155414331 | J76: 0.00155844772 | K76: 0.00159709956 | L76: 0.00159289382 | M76: 0.00163354598
A77: 4. Заборгованість за випущеними цінними паперами на зовнішньому ринку | B77: =SUM(B$78:B$82) -> 517.8044819 | C77: 516.4367518 | D77: 515.1920036 | E77: 513.7139746 | F77: 505.6280815 | G77: 501.8446479 | H77: 497.0117554 | I77: 493.5191135 | J77: 487.1196405 | K77: 542.8144712 | L77: 549.1244496 | M77: 552.9014801
A78: ОЗДП 2013 року | B78: 81.572574 | C78: 81.357108 | D78: 81.161016 | E78: 80.928174 | F78: 79.654359 | G78: 79.058334 | H78: 78.296982 | I78: 77.746767 | J78: 76.738623 | K78: 79.563282 | L78: 80.48817 | M78: 81.04179
A79: ОЗДП 2014 року | B79: 27.190858 | C79: 27.119036 | D79: 27.053672 | E79: 26.976058 | F79: 26.551453 | G79: 26.352778 | H79: 26.098994 | I79: 25.915589 | J79: 25.579541 | K79: 26.521094 | L79: 26.82939 | M79: 27.01393
A80: ОЗДП 2015 року | B80: 381.8501919 | C80: 380.8415718 | D80: 379.9236436 | E80: 378.8336846 | F80: 372.8708165 | G80: 370.0807579 | H80: 366.5167854 | I80: 363.9411685 | J80: 359.2219355 | K80: 330.6457192 | L80: 334.4893296 | M80: 336.7900401
A81: ОЗДП 2016 року | B81: 27.190858 | C81: 27.119036 | D81: 27.053672 | E81: 26.976058 | F81: 26.551453 | G81: 26.352778 | H81: 26.098994 | I81: 25.915589 | J81: 25.579541 | K81: 26.521094 | L81: 26.82939 | M81: 27.01393
A82: ОЗДП 2017 року | B82: 0 | C82: 0 | D82: 0 | E82: 0 | F82: 0 | G82: 0 | H82: 0 | I82: 0 | J82: 0 | K82: 79.563282 | L82: 80.48817 | M82: 81.04179
A83: 5. Заборгованість, не віднесена до інших категорій | B83: =SUM(B$84:B$84) -> 44.88773975 | C83: 45.25194859 | D83: 44.9788991 | E83: 44.94777422 | F83: 44.70247999 | G83: 44.79829223 | H83: 44.59336605 | I83: 44.80068192 | J83: 44.3969364 | K83: 46.02807897 | L83: 46.27946654 | M83: 46.9538166
A84: Міжнародний Валютний Фонд | B84: 44.88773975 | C84: 45.25194859 | D84: 44.9788991 | E84: 44.94777422 | F84: 44.70247999 | G84: 44.79829223 | H84: 44.59336605 | I84: 44.80068192 | J84: 44.3969364 | K84: 46.02807897 | L84: 46.27946654 | M84: 46.9538166
A85: Гарантований державою борг | B85: =B$86+B$92+B$94+B$102+B$103 -> 259.8910721 | C85: 260.3637965 | D85: 256.4379471 | E85: 256.4061911 | F85: 286.9716257 | G85: 283.4499143 | H85: 287.0398709 | I85: 291.7279708 | J85: 289.4592573 | K85: 298.4131532 | L85: 287.9343253 | M85: 285.6971818
A86: 1. Заборгованість за позиками, одержаними від міжнародних фінансових організацій | B86: =SUM(B$87:B$91) -> 190.9827472 | C86: 192.5914912 | D86: 188.8454318 | E86: 189.1048365 | F86: 214.4627368 | G86: 211.0944886 | H86: 209.9813671 | I86: 215.5330204 | J86: 213.2199254 | K86: 220.8062452 | L86: 221.8043472 | M86: 221.1279885
A87: Європейське співтоватиство з атомної енергії | B87: 0.2958517627 | C87: 0.2978783374 | D87: 0.2964798414 | E87: 0.2415162408 | F87: 0.2084620953 | G87: 1.682101253 | H87: 1.699663846 | I87: 1.73186027 | J87: 1.735185603 | K87: 1.718417603 | L87: 1.649530744 | M87: 1.691049191
A88: Європейський банк реконструкції та розвитку | B88: 10.56222871 | C88: 10.78154354 | D88: 7.973583883 | E88: 8.297228754 | F88: 8.196551775 | G88: 3.013796512 | H88: 2.872056711 | I88: 7.560740988 | J88: 10.60851713 | K88: 10.84333959 | L88: 10.94314701 | M88: 11.01324815
A89: Європейський Інвестиційний Банк | B89: 0.99479114 | C89: 1.008963725 | D89: 1.002460305 | E89: 1.013746755 | F89: 1.01117226 | G89: 1.030538565 | H89: 1.04253737 | I89: 1.06387379 | J89: 1.066820335 | K89: 1.093279075 | L89: 1.09040008 | M89: 1.118228125
A90: Міжнародний банк реконструкції та розвитку | B90: 12.37301899 | C90: 12.39322211 | D90: 12.47739647 | E90: 12.57246159 | F90: 12.25654898 | G90: 12.16483762 | H90: 12.04768712 | I90: 11.96302462 | J90: 11.80789982 | K90: 12.24253481 | L90: 12.1480795 | M90: 12.1473539
A91: Міжнародний Валютний Фонд | B91: 166.7568566 | C91: 168.1098835 | D91: 167.0955113 | E91: 166.9798831 | F91: 192.7900017 | G91: 193.2032147 | H91: 192.3194221 | I91: 193.2135207 | J91: 188.0015026 | K91: 194.9086741 | L91: 195.9731899 | M91: 195.1581092
A92: 2. Заборгованість за позиками, одержаними від органів управління іноземних держав | B92: =SUM(B$93:B$93) -> 3.975759701 | C92: 3.304381766 | D92: 3.296417338 | E92: 3.28696028 | F92: 3.2352233 | G92: 3.211015285 | H92: 3.180092385 | I92: 2.526195982 | J92: 2.493438745 | K92: 2.58521931 | L92: 2.615271342 | M92: 2.633259905
A93: Канада | B93: 3.975759701 | C93: 3.304381766 | D93: 3.296417338 | E93: 3.28696028 | F93: 3.2352233 | G93: 3.211015285 | H93: 3.180092385 | I93: 2.526195982 | J93: 2.493438745 | K93: 2.58521931 | L93: 2.615271342 | M93: 2.633259905
A94: 3. Заборгованість за позиками, одержаними від іноземних комерційних банків, інших іноземних фінансових установ | B94: =SUM(B$95:B$101) -> 61.95552088 | C94: 61.46672413 | D94: 61.31300774 | E94: 61.03336834 | F94: 66.30890802 | G94: 66.17329838 | H94: 70.92089053 | I94: 70.69748388 | J94: 70.80139979 | K94: 71.96901484 | L94: 60.44536028 | M94: 58.82186269
A95: Citibank, N.A., Deutsche Bank AG | B95: 0 | C95: 0 | D95: 0 | E95: 0 | F95: 6.390260578 | G95: 7.099232725 | H95: 12.38488553 | I95: 12.87471518 | J95: 13.87632381 | K95: 14.2204774 | L95: 14.18302979 | M95: 12.32291711
A96: Deutsche Bank AG London | B96: 0.3881279224 | C96: 0.3990226571 | D96: 0.3964506995 | E96: 0.4009142388 | F96: 0.4007000521 | G96: 0.4083743918 | H96: 0.4166446849 | I96: 0.4251716751 | J96: 0.4263492467 | K96: 0.554989364 | L96: 0.5706129965 | M96: 0.9187176921
A97: UniCredit Bank Austria AG | B97: 0.96636853 | C97: 0.980136184 | D97: 0.973818576 | E97: 0.8616847362 | F97: 0.8594964155 | G97: 0.8759577747 | H97: 0.8861567588 | I97: 0.9042927157 | J97: 0.906797279 | K97: 0.7965318922 | L97: 0.7944343387 | M97: 0.8147090571
A98: ВАТ "Газпромбанк" | B98: 13.595429 | C98: 13.559518 | D98: 13.526836 | E98: 13.488029 | F98: 13.2757265 | G98: 13.176389 | H98: 13.049497 | I98: 12.9577945 | J98: 12.62094553 | K98: 11.84432058 | L98: 0 | M98: 0
A99: Державний банк розвитку КНР | B99: 1.608611159 | C99: 1.60436217 | D99: 1.600495236 | E99: 1.595903591 | F99: 1.399261573 | G99: 1.388791401 | H99: 1.375416984 | I99: 1.36575154 | J99: 1.348041811 | K99: 1.397661654 | L99: 1.240590994 | M99: 1.249124123
A100: Експортно-імпортний банк Китаю | B100: 41.84925707 | C100: 41.38532889 | D100: 41.28557938 | E100: 41.16713561 | F100: 40.51916207 | G100: 40.21597172 | H100: 39.82868161 | I100: 39.21108886 | J100: 38.70263783 | K100: 40.12723668 | L100: 40.59369808 | M100: 40.87291281
A101: Експортно-імпортний банк Кореї | B101: 3.547727198 | C101: 3.538356222 | D101: 3.529827854 | E101: 3.519701168 | F101: 3.46430083 | G101: 3.008581371 | H101: 2.979607962 | I101: 2.958669415 | J101: 2.920304285 | K101: 3.027797272 | L101: 3.062994078 | M101: 2.643481888
A102: 4. Заборгованість за випущеними цінними паперами на зовнішньому ринку
A103: 5. Заборгованість, не віднесена до інших категорій | B103: =SUM(B$104:B$104) -> 2.977044347 | C103: 3.001199403 | D103: 2.983090217 | E103: 2.981025952 | F103: 2.96475755 | G103: 2.971112009 | H103: 2.957520896 | I103: 2.971270498 | J103: 2.94449329 | K103: 3.052673916 | L103: 3.06934644 | M103: 3.11407068
A104: Міжнародний Валютний Фонд | B104: 2.977044347 | C104: 3.001199403 | D104: 2.983090217 | E104: 2.981025952 | F104: 2.96475755 | G104: 2.971112009 | H104: 2.957520896 | I104: 2.971270498 | J104: 2.94449329 | K104: 3.052673916 | L104: 3.06934644 | M104: 3.11407068

Sheet MTK2_USD (hidden)
A2: Державний та гарантований державою борг України за поточний рік
M4: =VALUSD -> млрд. дол. США
B5: 2016-12-31 | C5: 2017-01-31 | D5: 2017-02-28 | E5: 2017-03-31 | F5: 2017-04-30 | G5: 2017-05-31 | H5: 2017-06-30 | I5: 2017-07-31 | J5: 2017-08-31 | K5: 2017-09-30 | L5: 2017-10-31 | M5: 2017-11-30
A6: Загальна сума державного та гарантованого державою боргу | B6: =B$60+B$7 -> 70.97270827 | C6: 71.20848608 | D6: 71.76403161 | E6: 72.35494209 | F6: 74.54846918 | G6: 74.68055014 | H6: 75.01517786 | I6: 76.06216544 | J6: 76.5601876 | K6: 77.04283022 | L6: 76.29471861 | M6: 76.33106904
A7: Внутрішній борг | B7: =B$8+B$46 -> 25.36624647 | C7: 25.43201268 | D7: 26.14816027 | E7: 26.65021292 | F7: 26.79553474 | G7: 26.83187781 | H7: 26.7674936 | I7: 27.36583821 | J7: 27.94448352 | K7: 27.13972711 | L7: 27.03848336 | M7: 27.27452686
A8: Державний борг | B8: =B$9+B$44 -> 24.66437545 | C8: 24.729493 | D8: 25.44189516 | E8: 25.93411755 | F8: 26.06200903 | G8: 26.08909445 | H8: 26.01185653 | I8: 26.60268583 | J8: 27.16775846 | K8: 26.38465248 | L8: 26.28876325 | M8: 26.52675633
A9: 1. Заборгованість за випущеними цінними паперами на внутрішньому ринку | B9: =SUM(B$10:B$43) -> 24.57196211 | C9: 24.63683492 | D9: 25.3490132 | E9: 25.84219401 | F9: 25.96861547 | G9: 25.99499679 | H9: 25.9181107 | I9: 26.50827657 | J9: 27.0721089 | K9: 26.29239868 | L9: 26.19880189 | M9: 26.43740952
A10: ОВДП (10 - річні) | B10: 2.752137612 | C10: 2.759426368 | D10: 3.005873066 | E10: 3.014521395 | F10: 3.062728959 | G10: 3.085819036 | H10: 3.115825231 | I10: 3.137875971 | J10: 3.179099422 | K10: 3.0662349 | L10: 1.885448719 | M10: 1.872568671
A11: ОВДП (11 - річні) | B11: 0.6392950528 | C11: 0.6409881605 | D11: 0.6425368431 | E11: 0.644385514 | F11: 0.6546903855 | G11: 0.6596261313 | H11: 0.6660402696 | I11: 0.6707538463 | J11: 0.6795657905 | K11: 0.6554398171 | L11: 0.5603183673 | M11: 0.5564906698
A12: ОВДП (12 - місячні) | B12: 0.1278948241 | C12: 0.1274960511 | D12: 0.1475574185 | E12: 0.1459205048 | F12: 0.1775744627 | G12: 0.1407388625 | H12: 0.128847495 | I12: 0.1309748353 | J12: 0.1385595621 | K12: 0.1273058344 | L12: 0.1258429655 | M12: 0.1249832957
A13: ОВДП (12 - річні) | B13: 1.048146403 | C13: 1.050922312 | D13: 1.05346143 | E13: 1.05649239 | F13: 1.073387584 | G13: 1.081479911 | H13: 1.091996113 | I13: 1.099724185 | J13: 1.114171673 | K13: 1.074616304 | L13: 1.360448374 | M13: 1.351154756
A14: ОВДП (13 - річні) | B14: 1.365077557 | C14: 1.368692825 | D14: 1.371999705 | E14: 1.550175752 | F14: 1.574965822 | G14: 1.586839573 | H14: 1.602269842 | I14: 1.613609129 | J14: 1.634807716 | K14: 1.576768703 | L14: 1.069722457 | M14: 1.062414873
A15: ОВДП (14 - річні) | B15: 1.884824672 | C15: 1.889816437 | D15: 2.075503835 | E15: 2.081475359 | F15: 2.114761855 | G15: 2.130705158 | H15: 2.151423921 | I15: 2.166649579 | J15: 2.195113665 | K15: 2.117182647 | L15: 1.748082979 | M15: 1.736141317
A16: ОВДП (15 - річні) | B16: 1.573684729 | C16: 1.577852472 | D16: 1.762786139 | E16: 1.968071021 | F16: 1.99954398 | G16: 2.014618649 | H16: 2.034208598 | I16: 2.916807833 | J16: 2.955127029 | K16: 2.850213984 | L16: 3.268376098 | M16: 3.246048872
A17: ОВДП (16 - річні) | B17: 0 | C17: 0 | D17: 0 | E17: 0 | F17: 0 | G17: 0 | H17: 0 | I17: 0 | J17: 0 | K17: 0 | L17: 0.2254569336 | M17: 0.2239167718
A18: ОВДП (17 - річні) | B18: 0 | C18: 0 | D18: 0 | E18: 0 | F18: 0 | G18: 0 | H18: 0 | I18: 0 | J18: 0 | K18: 0 | L18: 0.2254569336 | M18: 0.2239167718
A19: ОВДП (18 - місячні) | B19: 1.076022 | C19: 1.076022 | D19: 1.076022 | E19: 1.076022 | F19: 1.076022 | G19: 1.076022 | H19: 1.076022 | I19: 0.591509 | J19: 0.591509 | K19: 0.591509 | L19: 0.591509 | M19: 0.893504
A20: ОВДП (18 - річні) | B20: 0 | C20: 0 | D20: 0 | E20: 0 | F20: 0 | G20: 0 | H20: 0 | I20: 0 | J20: 0 | K20: 0 | L20: 0.9018277344 | M20: 0.8956670873
A21: ОВДП (19 - річні) | B21: 0 | C21: 0 | D21: 0 | E21: 0 | F21: 0 | G21: 0 | H21: 0 | I21: 0 | J21: 0 | K21: 0 | L21: 0.4509138672 | M21: 0.4478335437
A22: ОВДП (2 - річні) | B22: 2.366730742 | C22: 2.372229795 | D22: 2.38371219 | E22: 2.499161471 | F22: 2.508368131 | G22: 2.550871779 | H22: 2.558838125 | I22: 2.555382231 | J22: 2.59529877 | K22: 2.575818994 | L22: 2.567878659 | M22: 2.567629418
A23: ОВДП (20 - річні) | B23: 0 | C23: 0 | D23: 0 | E23: 0 | F23: 0 | G23: 0 | H23: 0 | I23: 0 | J23: 0 | K23: 0 | L23: 0.4509138672 | M23: 0.4478335437
A24: ОВДП (21-річні) | B24: 0 | C24: 0 | D24: 0 | E24: 0 | F24: 0 | G24: 0 | H24: 0 | I24: 0 | J24: 0 | K24: 0 | L24: 0.4509138672 | M24: 0.4478335437
A25: ОВДП (22-річні) | B25: 0 | C25: 0 | D25: 0 | E25: 0 | F25: 0 | G25: 0 | H25: 0 | I25: 0 | J25: 0 | K25: 0 | L25: 0.2254569336 | M25: 0.2239167718
A26: ОВДП (23-річні) | B26: 0 | C26: 0 | D26: 0 | E26: 0 | F26: 0 | G26: 0 | H26: 0 | I26: 0 | J26: 0 | K26: 0 | L26: 0.6763708008 | M26: 0.6717503155
A27: ОВДП (24-річні) | B27: 0 | C27: 0 | D27: 0 | E27: 0 | F27: 0 | G27: 0 | H27: 0 | I27: 0 | J27: 0 | K27: 0 | L27: 0.4509138672 | M27: 0.4478335437
A28: ОВДП (25-річні) | B28: 0 | C28: 0 | D28: 0 | E28: 0 | F28: 0 | G28: 0 | H28: 0 | I28: 0 | J28: 0 | K28: 0 | L28: 0.4509138672 | M28: 0.4478335437
A29: ОВДП (26-річні) | B29: 0 | C29: 0 | D29: 0 | E29: 0 | F29: 0 | G29: 0 | H29: 0 | I29: 0 | J29: 0 | K29: 0 | L29: 0.4509138672 | M29: 0.4478335437
A30: ОВДП (27-річні) | B30: 0 | C30: 0 | D30: 0 | E30: 0 | F30: 0 | G30: 0 | H30: 0 | I30: 0 | J30: 0 | K30: 0 | L30: 0.4509138672 | M30: 0.4478335437
A31: ОВДП (28-річні) | B31: 0 | C31: 0 | D31: 0 | E31: 0 | F31: 0 | G31: 0 | H31: 0 | I31: 0 | J31: 0 | K31: 0 | L31: 0.4509138672 | M31: 0.4478335437
A32: ОВДП (29-річні) | B32: 0 | C32: 0 | D32: 0 | E32: 0 | F32: 0 | G32: 0 | H32: 0 | I32: 0 | J32: 0 | K32: 0 | L32: 0.4509138672 | M32: 0.4478335437
A33: ОВДП (3 - місячні) | B33: 0.00036777067 | C33: 0.00036874467 | D33: 0.00036963559 | E33: 0 | F33: 0 | G33: 0 | H33: 0 | I33: 0 | J33: 0 | K33: 0 | L33: 0 | M33: 0
A34: ОВДП (3 - річні) | B34: 0.6789923657 | C34: 0.7157077781 | D34: 0.7676686181 | E34: 0.7644602855 | F34: 0.6386312643 | G34: 0.6777332732 | H34: 0.7392486044 | I34: 0.9288627137 | J34: 1.313791449 | K34: 1.357505722 | L34: 1.577469524 | M34: 1.67213058
A35: ОВДП (30-річні) | B35: 0 | C35: 0 | D35: 0 | E35: 0 | F35: 0 | G35: 0 | H35: 0 | I35: 0 | J35: 0 | K35: 0 | L35: 0.4509141281 | M35: 0.4478338028
A36: ОВДП (4 - річні) | B36: 0.5731903451 | C36: 0.5742846376 | D36: 0.5752855849 | E36: 0.5764804213 | F36: 0.5831406846 | G36: 0.4263307648 | H36: 0.4304763624 | I36: 0.4335228499 | J36: 0.4392182018 | K36: 0.4236250586 | L36: 0.00111817675 | M36: 0.00111053816
A37: ОВДП (5 - річні) | B37: 5.574287189 | C37: 5.56631909 | D37: 5.574837353 | E37: 5.546578063 | F37: 5.552891003 | G37: 5.590085017 | H37: 5.362042737 | I37: 5.375121303 | J37: 5.331067332 | K37: 5.192660398 | L37: 2.179434217 | M37: 2.195559913
A38: ОВДП (6 - місячні) | B38: 0.00793652779 | C38: 0.00036874467 | D38: 0.00036963559 | E38: 0.00037069908 | F38: 0.00037662722 | G38: 0.02447559799 | H38: 0.02433043971 | I38: 0.02450262658 | J38: 0.02482452675 | K38: 0.02394320536 | L38: 0.02366807445 | M38: 0
A39: ОВДП (6 - річні) | B39: 0.886327309 | C39: 0.8886746564 | D39: 0.8446173222 | E39: 0.8470474077 | F39: 0.8605932037 | G39: 0.8670812618 | H39: 0.875512673 | I39: 0.8817086889 | J39: 0.8932920258 | K39: 0.8144460406 | L39: 0.2940842114 | M39: 0.2920752368
A40: ОВДП (7 - річні) | B40: 1.645398281 | C40: 1.64975595 | D40: 1.653741902 | E40: 1.658499956 | F40: 1.639827056 | G40: 1.6521898 | H40: 1.688421056 | I40: 1.722489927 | J40: 1.69820643 | K40: 1.637916633 | L40: 0.7353301734 | M40: 0.7303069194
A41: ОВДП (8 - річні) | B41: 1.008287344 | C41: 1.01095769 | D41: 1.013400251 | E41: 1.01631595 | F41: 1.032568651 | G41: 1.001141701 | H41: 0.9294711896 | I41: 0.8164299488 | J41: 0.8271556945 | K41: 0.797789978 | L41: 0.7044513498 | M41: 0.6996390381
A42: ОВДП (9 - місячні) | B42: 0.00722915769 | C42: 0.00722739555 | D42: 0.03626125134 | E42: 0.02928522766 | F42: 0.02975355058 | G42: 0.0299778642 | H42: 0.03026936594 | I42: 0.01948634083 | J42: 0.01974234017 | K42: 0.01904144679 | L42: 0.01882264189 | M42: 0
A43: ОВДП (9 - річні) | B43: 1.356132234 | C43: 1.359723812 | D43: 1.363009021 | E43: 1.366930595 | F43: 1.388790248 | G43: 1.399260412 | H43: 1.41286668 | I43: 1.422865558 | J43: 1.441558275 | K43: 1.390380012 | L43: 0.7230876289 | M43: 0.7181480074
A44: 2. Заборгованість перед банківськими та іншими фінансовими установами | B44: =SUM(B$45:B$45) -> 0.09241333715 | C44: 0.09265808444 | D44: 0.09288195435 | E44: 0.09192354187 | F44: 0.09339356294 | G44: 0.094097662 | H44: 0.09374582278 | I44: 0.09440926333 | J44: 0.09564955315 | K44: 0.09225379867 | L44: 0.0899613646 | M44: 0.08934681239
A45: Національний банк України | B45: 0.09241333715 | C45: 0.09265808444 | D45: 0.09288195435 | E45: 0.09192354187 | F45: 0.09339356294 | G45: 0.094097662 | H45: 0.09374582278 | I45: 0.09440926333 | J45: 0.09564955315 | K45: 0.09225379867 | L45: 0.0899613646 | M45: 0.08934681239
A46: Гарантований державою борг | B46: =B$47+B$54+B$58 -> 0.7018710203 | C46: 0.7025196707 | D46: 0.7062651146 | E46: 0.7160953627 | F46: 0.7335257061 | G46: 0.742783357 | H46: 0.7556370771 | I46: 0.7631523795 | J46: 0.7767250663 | K46: 0.7550746321 | L46: 0.74972011 | M46: 0.7477705262
A47: 1. Заборгованість за випущеними цінними паперами на внутрішньому ринку | B47: =SUM(B$48:B$53) -> 0.5865946415 | C47: 0.5881481775 | D47: 0.5895691942 | E47: 0.5912654696 | F47: 0.6007208569 | G47: 0.6052497236 | H47: 0.6111351112 | I47: 0.6154601232 | J47: 0.6235456532 | K47: 0.601408509 | L47: 0.5944977355 | M47: 0.5904365488
A48: Державні цінні папери | B48: 4.2661e-07 | C48: 4.2774e-07 | D48: 4.2878e-07 | E48: 4.3001e-07 | F48: 4.3689e-07 | G48: 4.4018e-07 | H48: 4.4446e-07 | I48: 4.4761e-07 | J48: 4.5349e-07 | K48: 4.3739e-07 | L48: 4.3236e-07 | M48: 4.2941e-07
A49: Облігації ДІУ (10 - річні) | B49: 0.03677706676 | C49: 0.03687446707 | D49: 0.03696355896 | E49: 0.03706990844 | F49: 0.03766272226 | G49: 0.03794666354 | H49: 0.03831565309 | I49: 0.03858681352 | J49: 0.03909374293 | K49: 0.03770583521 | L49: 0.03727255819 | M49: 0.03701793852
A50: Облігації ДІУ (5 - річні) | B50: 0.1103312003 | C50: 0.1106234012 | D50: 0.1108906769 | E50: 0.1112097253 | F50: 0.1129881668 | G50: 0.1138399906 | H50: 0.1149469593 | I50: 0.1157604406 | J50: 0.1172812288 | K50: 0.1131175056 | L50: 0.1118176746 | M50: 0.1110538156
A51: Облігації ДІУ (7 - річні) | B51: 0.1103312003 | C51: 0.1106234012 | D51: 0.1108906769 | E51: 0.1112097253 | F51: 0.1129881668 | G51: 0.1138399906 | H51: 0.1149469593 | I51: 0.1157604406 | J51: 0.1172812288 | K51: 0.1131175056 | L51: 0.1118176746 | M51: 0.1110538156
A52: Облігації НАК "Нафтогаз України" (3 - річні) | B52: 0.1765299205 | C52: 0.1769974419 | D52: 0.177425083 | E52: 0.1779355605 | F52: 0.1807810669 | G52: 0.182143985 | H52: 0.1839151348 | I52: 0.1852167049 | J52: 0.187649966 | K52: 0.180988009 | L52: 0.1789082793 | M52: 0.1776861049
A53: Облігації Укравтодору (5 - річні) | B53: 0.1526248271 | C53: 0.1530290384 | D53: 0.1533987697 | E53: 0.15384012 | F53: 0.1563002974 | G53: 0.1574786537 | H53: 0.1590099603 | I53: 0.1601352761 | J53: 0.1622390331 | K53: 0.1564792161 | L53: 0.1546811165 | M53: 0.1536244449
A54: 2. Заборгованість перед банківськими та іншими фінансовими установами | B54: =SUM(B$55:B$57) -> 0.1152412696 | C54: 0.114336291 | D54: 0.1166606332 | E54: 0.1247945044 | F54: 0.1327688944 | G54: 0.1374974076 | H54: 0.1444653879 | I54: 0.1476554193 | J54: 0.1531420923 | K54: 0.1536301272 | L54: 0.1551867922 | M54: 0.1572986382
A55: ВАТ "Державний експортно-імпортний банк України" | B55: 0 | C55: 0 | D55: 0.0013703471 | E55: 0.00420633904 | F55: 0.00722258502 | G55: 0.00939326928 | H55: 0.01065878571 | I55: 0.01211771285 | J55: 0.01313806851 | K55: 0.01392842732 | L55: 0.01493082021 | M55: 0.01597106103
A56: ВАТ "Державний ощадний банк України" | B56: 0.1111297157 | C56: 0.1105533665 | D56: 0.1114982217 | E56: 0.1167851906 | F56: 0.1218889216 | G56: 0.1244191773 | H56: 0.1300858089 | I56: 0.1319384946 | J56: 0.1363575278 | K56: 0.1361846619 | L56: 0.1369222238 | M56: 0.1380166028
A57: ПАТ АБ "Укргазбанк" | B57: 0.00411155398 | C57: 0.0037829245 | D57: 0.00379206438 | E57: 0.00380297469 | F57: 0.00365738781 | G57: 0.00368496105 | H57: 0.00372079324 | I57: 0.00359921186 | J57: 0.00364649605 | K57: 0.003517038 | L57: 0.00333374818 | M57: 0.00331097437
A58: 3. Заборгованість, не віднесена до інших категорій | B58: =SUM(B$59:B$59) -> 3.510923e-05 | C58: 3.520221e-05 | D58: 3.528726e-05 | E58: 3.538879e-05 | F58: 3.595472e-05 | G58: 3.622578e-05 | H58: 3.657804e-05 | I58: 3.68369e-05 | J58: 3.732084e-05 | K58: 3.599588e-05 | L58: 3.558225e-05 | M58: 3.533918e-05
A59: Інші кредитори | B59: 3.510923e-05 | C59: 3.520221e-05 | D59: 3.528726e-05 | E59: 3.538879e-05 | F59: 3.595472e-05 | G59: 3.622578e-05 | H59: 3.657804e-05 | I59: 3.68369e-05 | J59: 3.732084e-05 | K59: 3.599588e-05 | L59: 3.558225e-05 | M59: 3.533918e-05
A60: Зовнішній борг | B60: =B$61+B$85 -> 45.6064618 | C60: 45.77647341 | D60: 45.61587134 | E60: 45.70472918 | F60: 47.75293444 | G60: 47.84867233 | H60: 48.24768426 | I60: 48.69632723 | J60: 48.61570408 | K60: 49.90310311 | L60: 49.25623525 | M60: 49.05654219
A61: Державний борг | B61: =B$62+B$69+B$75+B$77+B$83 -> 36.04843049 | C61: 36.17569716 | D61: 36.13701216 | E61: 36.19977515 | F61: 36.94480181 | G61: 37.09269381 | H61: 37.24956414 | I61: 37.43947442 | J61: 37.29965829 | K61: 38.65118593 | L61: 38.52418635 | M61: 38.48062147
A62: 1. Заборгованість за позиками, одержаними від міжнародних фінансових організацій | B62: =SUM(B$63:B$68) -> 13.67542633 | C62: 13.76189128 | D62: 13.71804923 | E62: 13.77762346 | F62: 14.50902537 | G62: 14.62930624 | H62: 14.76667873 | I62: 14.91016929 | J62: 14.75448787 | K62: 14.69938679 | L62: 14.59737388 | M62: 14.52347451
A63: Європейське Співтовариство | B63: 2.310113011 | C63: 2.349229978 | D63: 2.339727037 | E63: 2.372876961 | F63: 3.057560999 | G63: 3.139613015 | H63: 3.207053016 | I63: 3.295848963 | J63: 3.348395994 | K63: 3.309618052 | L63: 3.262972035 | M63: 3.323386999
A64: Європейський банк реконструкції та розвитку | B64: 0.59109237 | C64: 0.6096240107 | D64: 0.5997952489 | E64: 0.6079179954 | F64: 0.6145345121 | G64: 0.6042660746 | H64: 0.6251089587 | I64: 0.6425076445 | J64: 0.6519578429 | K64: 0.6516305944 | L64: 0.6393356195 | M64: 0.6204280044
A65: Європейський Інвестиційний Банк | B65: 0.5340904563 | C65: 0.5431341693 | D65: 0.5560677086 | E65: 0.5639462355 | F65: 0.5715096476 | G65: 0.5868465514 | H65: 0.5994522234 | I65: 0.6160496815 | J65: 0.6166863566 | K65: 0.6095444809 | L65: 0.6009535131 | M65: 0.683476015
A66: Міжнародний банк реконструкції та розвитку | B66: 5.055394225 | C66: 5.019283232 | D66: 5.000866739 | E66: 4.999819605 | F66: 4.977713502 | G66: 4.959414512 | H66: 4.96855611 | I66: 4.925930764 | J66: 4.913379979 | K66: 4.904687641 | L66: 4.902008851 | M66: 4.892119183
A67: Міжнародний Валютний Фонд | B67: 5.18225106 | C67: 5.238134679 | D67: 5.219107284 | E67: 5.230501452 | F67: 5.285145503 | G67: 5.336403718 | H67: 5.363646053 | I67: 5.426716873 | J67: 5.22055233 | K67: 5.220205653 | L67: 5.188403499 | M67: 4.999808942
A68: Фонд чистих технологій (МБРР) | B68: 0.00248521025 | C68: 0.00248521025 | D68: 0.00248521025 | E68: 0.00256121025 | F68: 0.00256121025 | G68: 0.00276236425 | H68: 0.00286236425 | I68: 0.00311536425 | J68: 0.00351536425 | K68: 0.00370036425 | L68: 0.00370036425 | M68: 0.00425536425
A69: 2. Заборгованість за позиками, одержаними від органів управління іноземних держав | B69: =SUM(B$70:B$74) -> 1.678781308 | C69: 1.701780047 | D69: 1.712998618 | E69: 1.712556921 | F69: 1.708773714 | G69: 1.720054721 | H69: 1.730873121 | I69: 1.757199603 | J69: 1.766137075 | K69: 1.748938768 | L69: 1.734525991 | M69: 1.75168
A70: Канада | B70: 0.295407655 | C70: 0.3040835227 | D70: 0.304903157 | E70: 0.2999161998 | F70: 0.2944192621 | G70: 0.2969962711 | H70: 0.3070693529 | I70: 0.3188961362 | J70: 0.3185883281 | K70: 0.3208390121 | L70: 0.3113554054 | M70: 0.3117290524
A71: Німеччина | B71: 0.2200474642 | C71: 0.2237735111 | D71: 0.2228683182 | E71: 0.2260259804 | F71: 0.2290573468 | G71: 0.235204278 | H71: 0.2446916411 | I71: 0.2514665918 | J71: 0.2554758237 | K71: 0.2525171453 | L71: 0.2524417489 | M71: 0.2606638881
A72: Росія | B72: 0.60585586 | C72: 0.60585586 | D72: 0.60585586 | E72: 0.60585586 | F72: 0.60585586 | G72: 0.60585586 | H72: 0.60585586 | I72: 0.60585586 | J72: 0.60585586 | K72: 0.60585586 | L72: 0.60585586 | M72: 0.60585586
A73: США | B73: 0.00759709027 | C73: 0.00759709027 | D73: 0.00759709027 | E73: 0.00759709027 | F73: 0.00759709027 | G73: 0.00759709027 | H73: 0.00759709027 | I73: 0.00759709027 | J73: 0.00759709027 | K73: 0.00759709027 | L73: 0.00759709027 | M73: 0.00759709027
A74: Японія | B74: 0.5498732387 | C74: 0.5604700626 | D74: 0.5717741927 | E74: 0.5731617906 | F74: 0.5718441546 | G74: 0.5744012215 | H74: 0.5656591763 | I74: 0.5733839244 | J74: 0.5786199734 | K74: 0.5621296604 | L74: 0.557275886 | M74: 0.5658341094
A75: 3. Заборгованість за позиками, одержаними від іноземних комерційних банків, інших іноземних фінансових установ | B75: =SUM(B$76:B$76) -> 5.344535e-05 | C75: 5.435034e-05 | D75: 5.413048e-05 | E75: 5.489742e-05 | F75: 5.563368e-05 | G75: 5.712666e-05 | H75: 5.835376e-05 | I75: 5.996944e-05 | J75: 6.092555e-05 | K75: 6.021997e-05 | L75: 5.937123e-05 | M75: 6.04705e-05
A76: Chase Manhattan Bank Luxembourg S.A. | B76: 5.344535e-05 | C76: 5.435034e-05 | D76: 5.413048e-05 | E76: 5.489742e-05 | F76: 5.563368e-05 | G76: 5.712666e-05 | H76: 5.835376e-05 | I76: 5.996944e-05 | J76: 6.092555e-05 | K76: 6.021997e-05 | L76: 5.937123e-05 | M76: 6.04705e-05
A77: 4. Заборгованість за випущеними цінними паперами на зовнішньому ринку | B77: =SUM(B$78:B$82) -> 19.04333 | C77: 19.04333 | D77: 19.04333 | E77: 19.04333 | F77: 19.04333 | G77: 19.04333 | H77: 19.04333 | I77: 19.04333 | J77: 19.04333 | K77: 20.467273 | L77: 20.467273 | M77: 20.467273
A78: ОЗДП 2013 року | B78: 3 | C78: 3 | D78: 3 | E78: 3 | F78: 3 | G78: 3 | H78: 3 | I78: 3 | J78: 3 | K78: 3 | L78: 3 | M78: 3
A79: ОЗДП 2014 року | B79: 1 | C79: 1 | D79: 1 | E79: 1 | F79: 1 | G79: 1 | H79: 1 | I79: 1 | J79: 1 | K79: 1 | L79: 1 | M79: 1
A80: ОЗДП 2015 року | B80: 14.04333 | C80: 14.04333 | D80: 14.04333 | E80: 14.04333 | F80: 14.04333 | G80: 14.04333 | H80: 14.04333 | I80: 14.04333 | J80: 14.04333 | K80: 12.467273 | L80: 12.467273 | M80: 12.467273
A81: ОЗДП 2016 року | B81: 1 | C81: 1 | D81: 1 | E81: 1 | F81: 1 | G81: 1 | H81: 1 | I81: 1 | J81: 1 | K81: 1 | L81: 1 | M81: 1
A82: ОЗДП 2017 року | B82: 0 | C82: 0 | D82: 0 | E82: 0 | F82: 0 | G82: 0 | H82: 0 | I82: 0 | J82: 0 | K82: 3 | L82: 3 | M82: 3
A83: 5. Заборгованість, не віднесена до інших категорій | B83: =SUM(B$84:B$84) -> 1.650839402 | C83: 1.668641488 | D83: 1.662580189 | E83: 1.666209875 | F83: 1.683617088 | G83: 1.699945722 | H83: 1.708623943 | I83: 1.728715559 | J83: 1.735642418 | K83: 1.735527161 | L83: 1.72495411 | M83: 1.738133496
A84: Міжнародний Валютний Фонд | B84: 1.650839402 | C84: 1.668641488 | D84: 1.662580189 | E84: 1.666209875 | F84: 1.683617088 | G84: 1.699945722 | H84: 1.708623943 | I84: 1.728715559 | J84: 1.735642418 | K84: 1.735527161 | L84: 1.72495411 | M84: 1.738133496
A85: Гарантований державою борг | B85: =B$86+B$92+B$94+B$102+B$103 -> 9.55803131 | C85: 9.600776241 | D85: 9.478859178 | E85: 9.504954025 | F85: 10.80813264 | G85: 10.75597853 | H85: 10.99812012 | I85: 11.25685281 | J85: 11.31604579 | K85: 11.25191718 | L85: 10.73204889 | M85: 10.57592071
A86: 1. Заборгованість за позиками, одержаними від міжнародних фінансових організацій | B86: =SUM(B$87:B$91) -> 7.023785243 | C86: 7.101708601 | D86: 6.980399254 | E86: 7.010098973 | F86: 8.077250493 | G86: 8.010331533 | H86: 8.045573218 | I86: 8.316732466 | J86: 8.335564952 | K86: 8.325683894 | L86: 8.267215438 | M86: 8.185702285
A87: Європейське співтоватиство з атомної енергії | B87: 0.01088056003 | C87: 0.01098410494 | D87: 0.0109589501 | E87: 0.00895298493 | F87: 0.00785125 | G87: 0.06383013029 | H87: 0.0651237303 | I87: 0.0668269693 | J87: 0.06783489988 | K87: 0.06479437096 | L87: 0.06148223064 | M87: 0.06259915498
A88: Європейський банк реконструкції та розвитку | B88: 0.3884477904 | C88: 0.3975636722 | D88: 0.294732038 | E88: 0.3075775102 | F88: 0.308704453 | G88: 0.1143635222 | H88: 0.1100447286 | I88: 0.2917449026 | J88: 0.4147266416 | K88: 0.4088571756 | L88: 0.4078790838 | M88: 0.407687743
A89: Європейський Інвестиційний Банк | B89: 0.03658550017 | C89: 0.03720499965 | D89: 0.03705450059 | E89: 0.03757949938 | F89: 0.03808349999 | G89: 0.03910550019 | H89: 0.0399455002 | I89: 0.04105149954 | J89: 0.04170599992 | K89: 0.04122300064 | L89: 0.04064200043 | M89: 0.04139449999
A90: Міжнародний банк реконструкції та розвитку | B90: 0.4550433454 | C90: 0.4569934608 | D90: 0.4612089801 | E90: 0.46606 | F90: 0.461615 | G90: 0.461615 | H90: 0.461615 | I90: 0.461615 | J90: 0.461615 | K90: 0.461615 | L90: 0.45279 | M90: 0.44967
A91: Міжнародний Валютний Фонд | B91: 6.132828047 | C91: 6.198962364 | D91: 6.176444785 | E91: 6.189928979 | F91: 7.26099629 | G91: 7.33141738 | H91: 7.368844258 | I91: 7.455494095 | J91: 7.34968241 | K91: 7.349194346 | L91: 7.304422123 | M91: 7.224350887
A92: 2. Заборгованість за позиками, одержаними від органів управління іноземних держав | B92: =SUM(B$93:B$93) -> 0.14621678 | C92: 0.1218473166 | D92: 0.1218473166 | E92: 0.1218473166 | F92: 0.1218473166 | G92: 0.1218473166 | H92: 0.1218473166 | I92: 0.09747785328 | J92: 0.09747785328 | K92: 0.09747785328 | L92: 0.09747785328 | M92: 0.09747785328
A93: Канада | B93: 0.14621678 | C93: 0.1218473166 | D93: 0.1218473166 | E93: 0.1218473166 | F93: 0.1218473166 | G93: 0.1218473166 | H93: 0.1218473166 | I93: 0.09747785328 | J93: 0.09747785328 | K93: 0.09747785328 | L93: 0.09747785328 | M93: 0.09747785328
A94: 3. Заборгованість за позиками, одержаними від іноземних комерційних банків, інших іноземних фінансових установ | B94: =SUM(B$95:B$101) -> 2.278542328 | C94: 2.266552695 | D94: 2.266346977 | E94: 2.262501376 | F94: 2.497373986 | G94: 2.511055889 | H94: 2.717380238 | I94: 2.727990627 | J94: 2.767891722 | K94: 2.713651814 | L94: 2.252953208 | M94: 2.177464097
A95: Citibank, N.A., Deutsche Bank AG | B95: 0 | C95: 0 | D95: 0 | E95: 0 | F95: 0.2406746093 | G95: 0.2693921956 | H95: 0.4745349774 | I95: 0.4967942336 | J95: 0.5424774358 | K95: 0.5361949774 | L95: 0.5286378032 | M95: 0.4561689881
A96: Deutsche Bank AG London | B96: 0.01427420651 | C96: 0.01471374783 | D96: 0.0146542288 | E96: 0.01486185412 | F96: 0.01509145477 | G96: 0.01549644564 | H96: 0.01596401321 | I96: 0.01640602014 | J96: 0.01666758785 | K96: 0.0209263375 | L96: 0.02126820612 | M96: 0.03400903504
A97: UniCredit Bank Austria AG | B97: 0.03554019995 | C97: 0.03614199944 | D97: 0.03599580035 | E97: 0.03194257427 | F97: 0.03237097478 | G97: 0.03323967495 | H97: 0.03395367495 | I97: 0.03489377439 | J97: 0.03545009971 | K97: 0.03003390027 | L97: 0.02961060012 | M97: 0.03015884979
A98: ВАТ "Газпромбанк" | B98: 0.5 | C98: 0.5 | D98: 0.5 | E98: 0.5 | F98: 0.5 | G98: 0.5 | H98: 0.5 | I98: 0.5 | J98: 0.4934 | K98: 0.4466 | L98: 0 | M98: 0
A99: Державний банк розвитку КНР | B99: 0.05916 | C99: 0.05916 | D99: 0.05916 | E99: 0.05916 | F99: 0.0527 | G99: 0.0527 | H99: 0.0527 | I99: 0.0527 | J99: 0.0527 | K99: 0.0527 | L99: 0.04624 | M99: 0.04624
A100: Експортно-імпортний банк Китаю | B100: 1.539092921 | C100: 1.526061947 | D100: 1.526061947 | E100: 1.526061947 | F100: 1.526061947 | G100: 1.526061947 | H100: 1.526061947 | I100: 1.513030974 | J100: 1.513030974 | K100: 1.513030974 | L100: 1.513030974 | M100: 1.513030974
A101: Експортно-імпортний банк Кореї | B101: 0.130475 | C101: 0.130475 | D101: 0.130475 | E101: 0.130475 | F101: 0.130475 | G101: 0.114165625 | H101: 0.114165625 | I101: 0.114165625 | J101: 0.114165625 | K101: 0.114165625 | L101: 0.114165625 | M101: 0.09785625
A102: 4. Заборгованість за випущеними цінними паперами на зовнішньому ринку
A103: 5. Заборгованість, не віднесена до інших категорій | B103: =SUM(B$104:B$104) -> 0.1094869587 | C103: 0.1106676285 | D103: 0.1102656311 | E103: 0.1105063591 | F103: 0.1116608402 | G103: 0.1127437877 | H103: 0.1133193447 | I103: 0.1146518606 | J103: 0.1151112637 | K103: 0.1151036196 | L103: 0.1144023938 | M103: 0.115276477
A104: Міжнародний Валютний Фонд | B104: 0.1094869587 | C104: 0.1106676285 | D104: 0.1102656311 | E104: 0.1105063591 | F104: 0.1116608402 | G104: 0.1127437877 | H104: 0.1133193447 | I104: 0.1146518606 | J104: 0.1151112637 | K104: 0.1151036196 | L104: 0.1144023938 | M104: 0.115276477

Sheet DKT2
A2: ="Державний та гарантований державою борг України за станом на " & TEXT(DREPORTDATE,"dd.MM.yyyy") -> Державний та гарантований державою борг України за станом на 30.11.2017
A3: (за ознакою умовності)
D5: =VALVAL -> млрд. одиниць
B6: дол.США | C6: грн. | D6: %
A7: Загальна сума державного та гарантованого державою боргу | B7: =B$8+B$68 -> 76.33106904 | C7: 2062.002156 | D7: 0.999999
A8: Державний борг | B8: =B$9+B$44 -> 65.00737781 | C8: 1756.104754 | D8: 0.85165
A9: Внутрішній борг | B9: =B$10+B$42 -> 26.52675633 | C9: 716.5919387 | D9: 0.347521
A10: 1. Заборгованість за випущеними цінними паперами на внутрішньому ринку | B10: =SUM(B$11:B$41) -> 26.43740952 | C10: 714.1783301 | D10: 0.34635
A11: ОВДП (10 - річні) | B11: 1.872568671 | C11: 50.585439 | D11: 0.024532
A12: ОВДП (11 - річні) | B12: 0.5564906698 | C12: 15.033 | D12: 0.00729
A13: ОВДП (12 - місячні) | B13: 0.1249832957 | C13: 3.37629 | D13: 0.001637
A14: ОВДП (12 - річні) | B14: 1.351154756 | C14: 36.5 | D14: 0.017701
A15: ОВДП (13 - річні) | B15: 1.062414873 | C15: 28.700001 | D15: 0.013919
A16: ОВДП (14 - річні) | B16: 1.736141317 | C16: 46.9 | D16: 0.022745
A17: ОВДП (15 - річні) | B17: 3.246048872 | C17: 87.688537 | D17: 0.042526
A18: ОВДП (16 - річні) | B18: 0.2239167718 | C18: 6.048872 | D18: 0.002933
A19: ОВДП (17 - річні) | B19: 0.2239167718 | C19: 6.048872 | D19: 0.002933
A20: ОВДП (18 - місячні) | B20: 0.893504 | C20: 24.13705451 | D20: 0.011706
A21: ОВДП (18 - річні) | B21: 0.8956670873 | C21: 24.195488 | D21: 0.011734
A22: ОВДП (19 - річні) | B22: 0.4478335437 | C22: 12.097744 | D22: 0.005867
A23: ОВДП (2 - річні) | B23: 2.567629418 | C23: 69.36176136 | D23: 0.033638
A24: ОВДП (20 - річні) | B24: 0.4478335437 | C24: 12.097744 | D24: 0.005867
A25: ОВДП (21-річні) | B25: 0.4478335437 | C25: 12.097744 | D25: 0.005867
A26: ОВДП (22-річні) | B26: 0.2239167718 | C26: 6.048872 | D26: 0.002933
A27: ОВДП (23-річні) | B27: 0.6717503155 | C27: 18.146616 | D27: 0.0088
A28: ОВДП (24-річні) | B28: 0.4478335437 | C28: 12.097744 | D28: 0.005867
A29: ОВДП (25-річні) | B29: 0.4478335437 | C29: 12.097744 | D29: 0.005867
A30: ОВДП (26-річні) | B30: 0.4478335437 | C30: 12.097744 | D30: 0.005867
A31: ОВДП (27-річні) | B31: 0.4478335437 | C31: 12.097744 | D31: 0.005867
A32: ОВДП (28-річні) | B32: 0.4478335437 | C32: 12.097744 | D32: 0.005867
A33: ОВДП (29-річні) | B33: 0.4478335437 | C33: 12.097744 | D33: 0.005867
A34: ОВДП (3 - річні) | B34: 1.67213058 | C34: 45.17081845 | D34: 0.021906
A35: ОВДП (30-річні) | B35: 0.4478338028 | C35: 12.097751 | D35: 0.005867
A36: ОВДП (4 - річні) | B36: 0.00111053816 | C36: 0.03 | D36: 1.5e-05
A37: ОВДП (5 - річні) | B37: 2.195559913 | C37: 59.3107018 | D37: 0.028764
A38: ОВДП (6 - річні) | B38: 0.2920752368 | C38: 7.8901 | D38: 0.003826
A39: ОВДП (7 - річні) | B39: 0.7303069194 | C39: 19.72846 | D39: 0.009568
A40: ОВДП (8 - річні) | B40: 0.6996390381 | C40: 18.9 | D40: 0.009166
A41: ОВДП (9 - річні) | B41: 0.7181480074 | C41: 19.4 | D41: 0.009408
A42: 2. Заборгованість перед банківськими та іншими фінансовими установами | B42: =SUM(B$43:B$43) -> 0.08934681239 | C42: 2.413608536 | D42: 0.001171
A43: Національний банк України | B43: 0.08934681239 | C43: 2.413608536 | D43: 0.001171
A44: Зовнішній борг | B44: =B$45+B$52+B$58+B$60+B$66 -> 38.48062147 | C44: 1039.512815 | D44: 0.504129
A45: 1. Заборгованість за позиками, одержаними від міжнародних фінансових організацій | B45: =SUM(B$46:B$51) -> 14.52347451 | C45: 392.3361237 | D45: 0.19027
A46: Європейське Співтовариство | B46: 3.323386999 | C46: 89.77774375 | D46: 0.043539
A47: Європейський банк реконструкції та розвитку | B47: 0.6204280044 | C47: 16.76019868 | D47: 0.008128
A48: Європейський Інвестиційний Банк | B48: 0.683476015 | C48: 18.46337323 | D48: 0.008954
A49: Міжнародний банк реконструкції та розвитку | B49: 4.892119183 | C49: 132.1553652 | D49: 0.064091
A50: Міжнародний Валютний Фонд | B50: 4.999808942 | C50: 135.0644888 | D50: 0.065502
A51: Фонд чистих технологій (МБРР) | B51: 0.00425536425 | C51: 0.114954112 | D51: 5.6e-05
A52: 2. Заборгованість за позиками, одержаними від органів управління іноземних держав | B52: =SUM(B$53:B$57) -> 1.75168 | C52: 47.31976091 | D52: 0.022949
A53: Канада | B53: 0.3117290524 | C53: 8.4210268 | D53: 0.004084
A54: Німеччина | B54: 0.2606638881 | C54: 7.041556027 | D54: 0.003415
A55: Росія | B55: 0.60585586 | C55: 16.36654779 | D55: 0.007937
A56: США | B56: 0.00759709027 | C56: 0.2052272647 | D56: 0.0001
A57: Японія | B57: 0.5658341094 | C57: 15.28540302 | D57: 0.007413
A58: 3. Заборгованість за позиками, одержаними від іноземних комерційних банків, інших іноземних фінансових установ | B58: =SUM(B$59:B$59) -> 6.04705e-05 | C58: 0.00163354598 | D58: 1e-06
A59: Chase Manhattan Bank Luxembourg S.A. | B59: 6.04705e-05 | C59: 0.00163354598 | D59: 1e-06
A60: 4. Заборгованість за випущеними цінними паперами на зовнішньому ринку | B60: =SUM(B$61:B$65) -> 20.467273 | C60: 552.9014801 | D60: 0.268138
A61: ОЗДП 2013 року | B61: 3 | C61: 81.04179 | D61: 0.039302
A62: ОЗДП 2014 року | B62: 1 | C62: 27.01393 | D62: 0.013101
A63: ОЗДП 2015 року | B63: 12.467273 | C63: 336.7900401 | D63: 0.163332
A64: ОЗДП 2016 року | B64: 1 | C64: 27.01393 | D64: 0.013101
A65: ОЗДП 2017 року | B65: 3 | C65: 81.04179 | D65: 0.039302
A66: 5. Заборгованість, не віднесена до інших категорій | B66: =SUM(B$67:B$67) -> 1.738133496 | C66: 46.9538166 | D66: 0.022771
A67: Міжнародний Валютний Фонд | B67: 1.738133496 | C67: 46.9538166 | D67: 0.022771
A68: Гарантований державою борг | B68: =B$69+B$83 -> 11.32369124 | C68: 305.8974025 | D68: 0.148349
A69: Внутрішній борг | B69: =B$70+B$77+B$81 -> 0.7477705262 | C69: 20.20022065 | D69: 0.009796
A70: 1. Заборгованість за випущеними цінними паперами на внутрішньому ринку | B70: =SUM(B$71:B$76) -> 0.5904365489 | C70: 15.9500116 | D70: 0.007736
A71: Державні цінні папери | B71: 4.2941e-07 | C71: 1.16e-05 | D71: 0
A72: Облігації ДІУ (10 - річні) | B72: 0.03701793852 | C72: 1 | D72: 0.000485
A73: Облігації ДІУ (5 - річні) | B73: 0.1110538156 | C73: 3 | D73: 0.001455
A74: Облігації ДІУ (7 - річні) | B74: 0.1110538156 | C74: 3 | D74: 0.001455
A75: Облігації НАК "Нафтогаз України" (3 - річні) | B75: 0.1776861049 | C75: 4.8 | D75: 0.002328
A76: Облігації Укравтодору (5 - річні) | B76: 0.1536244449 | C76: 4.15 | D76: 0.002013
A77: 2. Заборгованість перед банківськими та іншими фінансовими установами | B77: =SUM(B$78:B$80) -> 0.1572986382 | C77: 4.249254401 | D77: 0.00206
A78: ВАТ "Державний експортно-імпортний банк України" | B78: 0.01597106103 | C78: 0.4314411247 | D78: 0.000209
A79: ВАТ "Державний ощадний банк України" | B79: 0.1380166028 | C79: 3.728370846 | D79: 0.001808
A80: ПАТ АБ "Укргазбанк" | B80: 0.00331097437 | C80: 0.08944243001 | D80: 4.3e-05
A81: 3. Заборгованість, не віднесена до інших категорій | B81: =SUM(B$82:B$82) -> 3.533918e-05 | C81: 0.00095465 | D81: 0
A82: Інші кредитори | B82: 3.533918e-05 | C82: 0.00095465 | D82: 0
A83: Зовнішній борг | B83: =B$84+B$90+B$92+B$99+B$100 -> 10.57592071 | C83: 285.6971818 | D83: 0.138553
A84: 1. Заборгованість за позиками, одержаними від міжнародних фінансових організацій | B84: =SUM(B$85:B$89) -> 8.185702285 | C84: 221.1279885 | D84: 0.107239
A85: Європейське співтоватиство з атомної енергії | B85: 0.06259915498 | C85: 1.691049191 | D85: 0.00082
A86: Європейський банк реконструкції та розвитку | B86: 0.407687743 | C86: 11.01324815 | D86: 0.005341
A87: Європейський Інвестиційний Банк | B87: 0.04139449999 | C87: 1.118228125 | D87: 0.000542
A88: Міжнародний банк реконструкції та розвитку | B88: 0.44967 | C88: 12.1473539 | D88: 0.005891
A89: Міжнародний Валютний Фонд | B89: 7.224350887 | C89: 195.1581092 | D89: 0.094645
A90: 2. Заборгованість за позиками, одержаними від органів управління іноземних держав | B90: =SUM(B$91:B$91) -> 0.09747785328 | C90: 2.633259905 | D90: 0.001277
A91: Канада | B91: 0.09747785328 | C91: 2.633259905 | D91: 0.001277
A92: 3. Заборгованість за позиками, одержаними від іноземних комерційних банків, інших іноземних фінансових установ | B92: =SUM(B$93:B$98) -> 2.177464097 | C92: 58.82186269 | D92: 0.028527
A93: Citibank, N.A., Deutsche Bank AG | B93: 0.4561689881 | C93: 12.32291711 | D93: 0.005976
A94: Deutsche Bank AG London | B94: 0.03400903504 | C94: 0.9187176921 | D94: 0.000446
A95: UniCredit Bank Austria AG | B95: 0.03015884979 | C95: 0.8147090571 | D95: 0.000395
A96: Державний банк розвитку КНР | B96: 0.04624 | C96: 1.249124123 | D96: 0.000606
A97: Експортно-імпортний банк Китаю | B97: 1.513030974 | C97: 40.87291281 | D97: 0.019822
A98: Експортно-імпортний банк Кореї | B98: 0.09785625 | C98: 2.643481888 | D98: 0.001282
A99: 4. Заборгованість за випущеними цінними паперами на зовнішньому ринку
A100: 5. Заборгованість, не віднесена до інших категорій | B100: =SUM(B$101:B$101) -> 0.115276477 | C100: 3.11407068 | D100: 0.00151
A101: Міжнародний Валютний Фонд | B101: 0.115276477 | C101: 3.11407068 | D101: 0.00151

Sheet MKT2_UAH
A2: Державний та гарантований державою борг України за поточний рік
M4: =VALUAH -> млрд. грн
B5: 2016-12-31 | C5: 2017-01-31 | D5: 2017-02-28 | E5: 2017-03-31 | F5: 2017-04-30 | G5: 2017-05-31 | H5: 2017-06-30 | I5: 2017-07-31 | J5: 2017-08-31 | K5: 2017-09-30 | L5: 2017-10-31 | M5: 2017-11-30
A6: Загальна сума державного та гарантованого державою боргу | B6: =B$7+B$70 -> 1929.808832 | C6: 1931.105498 | D6: 1941.480573 | E6: 1951.851114 | F6: 1979.370176 | G6: 1968.039959 | H6: 1957.820677 | I6: 1971.195818 | J6: 1958.374458 | K6: 2043.260142 | L6: 2046.94076 | M6: 2062.002156
A7: Державний борг | B7: =B$8+B$46 -> 1650.833285 | C7: 1651.690045 | D7: 1665.935561 | E7: 1676.127493 | F7: 1672.922377 | G7: 1665.01564 | H7: 1651.059438 | I7: 1659.690304 | J7: 1649.04693 | K7: 1724.821584 | L7: 1738.891902 | M7: 1756.104754
A8: Внутрішній борг | B8: =B$9+B$44 -> 670.6455305 | C8: 670.6400111 | D8: 688.2966866 | E8: 699.6002593 | F8: 691.9842079 | G8: 687.5201143 | H8: 678.8832874 | I8: 689.4242723 | J8: 694.9387913 | K8: 699.7498485 | L8: 705.3114819 | M8: 716.5919387
A9: 1. Заборгованість за випущеними цінними паперами на внутрішньому ринку | B9: =SUM(B$10:B$43) -> 668.1327326 | C9: 668.1272131 | D9: 685.7838887 | E9: 697.1205245 | F9: 689.5044731 | G9: 685.0403795 | H9: 676.4366157 | I9: 686.9776006 | J9: 692.4921196 | K9: 697.3031768 | L9: 702.8978733 | M9: 714.1783301
A10: ОВДП (10 - річні) | B10: 74.832983 | C10: 74.832983 | D10: 81.319904 | E10: 81.319904 | F10: 81.319904 | G10: 81.319904 | H10: 81.319904 | I10: 81.319904 | J10: 81.319904 | K10: 81.319904 | L10: 50.585439 | M10: 50.585439
A11: ОВДП (11 - річні) | B11: 17.382981 | C11: 17.382981 | D11: 17.382981 | E11: 17.382981 | F11: 17.382981 | G11: 17.382981 | H11: 17.382981 | I11: 17.382981 | J11: 17.382981 | K11: 17.382981 | L11: 15.033 | M11: 15.033
A12: ОВДП (12 - місячні) | B12: 3.47757 | C12: 3.45757 | D12: 3.99197 | E12: 3.93636 | F12: 4.71486 | G12: 3.70886 | H12: 3.36279 | I12: 3.39429 | J12: 3.54429 | K12: 3.37629 | L12: 3.37629 | M12: 3.37629
A13: ОВДП (12 - річні) | B13: 28.5 | C13: 28.5 | D13: 28.5 | E13: 28.5 | F13: 28.5 | G13: 28.5 | H13: 28.5 | I13: 28.5 | J13: 28.5 | K13: 28.5 | L13: 36.5 | M13: 36.5
A14: ОВДП (13 - річні) | B14: 37.11763 | C14: 37.11763 | D14: 37.11763 | E14: 41.817631 | F14: 41.817631 | G14: 41.817631 | H14: 41.817631 | I14: 41.817631 | J14: 41.817631 | K14: 41.817631 | L14: 28.700001 | M14: 28.700001
A15: ОВДП (14 - річні) | B15: 51.25 | C15: 51.25 | D15: 56.15 | E15: 56.15 | F15: 56.15 | G15: 56.15 | H15: 56.15 | I15: 56.15 | J15: 56.15 | K15: 56.15 | L15: 46.9 | M15: 46.9
A16: ОВДП (15 - річні) | B16: 42.789838 | C16: 42.789838 | D16: 47.689838 | E16: 53.090798 | F16: 53.090798 | G16: 53.090798 | H16: 53.090798 | I16: 75.590793 | J16: 75.590793 | K16: 75.590793 | L16: 87.688537 | M16: 87.688537
A17: ОВДП (16 - річні) | B17: 0 | C17: 0 | D17: 0 | E17: 0 | F17: 0 | G17: 0 | H17: 0 | I17: 0 | J17: 0 | K17: 0 | L17: 6.048872 | M17: 6.048872
A18: ОВДП (17 - річні) | B18: 0 | C18: 0 | D18: 0 | E18: 0 | F18: 0 | G18: 0 | H18: 0 | I18: 0 | J18: 0 | K18: 0 | L18: 6.048872 | M18: 6.048872
A19: ОВДП (18 - місячні) | B19: 29.25796141 | C19: 29.18067935 | D19: 29.11034625 | E19: 29.02683188 | F19: 28.56994756 | G19: 28.35616889 | H19: 28.08309172 | I19: 15.32930413 | J19: 15.13052872 | K19: 15.68746579 | L19: 15.86982565 | M19: 24.13705451
A20: ОВДП (18 - річні) | B20: 0 | C20: 0 | D20: 0 | E20: 0 | F20: 0 | G20: 0 | H20: 0 | I20: 0 | J20: 0 | K20: 0 | L20: 24.195488 | M20: 24.195488
A21: ОВДП (19 - річні) | B21: 0 | C21: 0 | D21: 0 | E21: 0 | F21: 0 | G21: 0 | H21: 0 | I21: 0 | J21: 0 | K21: 0 | L21: 12.097744 | M21: 12.097744
A22: ОВДП (2 - річні) | B22: 64.35343953 | C22: 64.33258522 | D22: 64.48816773 | E22: 67.4175248 | F22: 66.60081855 | G22: 67.22255769 | H22: 66.78310088 | I22: 66.22423565 | J22: 66.38655129 | K22: 68.31353766 | L22: 68.89461801 | M22: 69.36176136
A23: ОВДП (20 - річні) | B23: 0 | C23: 0 | D23: 0 | E23: 0 | F23: 0 | G23: 0 | H23: 0 | I23: 0 | J23: 0 | K23: 0 | L23: 12.097744 | M23: 12.097744
A24: ОВДП (21-річні) | B24: 0 | C24: 0 | D24: 0 | E24: 0 | F24: 0 | G24: 0 | H24: 0 | I24: 0 | J24: 0 | K24: 0 | L24: 12.097744 | M24: 12.097744
A25: ОВДП (22-річні) | B25: 0 | C25: 0 | D25: 0 | E25: 0 | F25: 0 | G25: 0 | H25: 0 | I25: 0 | J25: 0 | K25: 0 | L25: 6.048872 | M25: 6.048872
A26: ОВДП (23-річні) | B26: 0 | C26: 0 | D26: 0 | E26: 0 | F26: 0 | G26: 0 | H26: 0 | I26: 0 | J26: 0 | K26: 0 | L26: 18.146616 | M26: 18.146616
A27: ОВДП (24-річні) | B27: 0 | C27: 0 | D27: 0 | E27: 0 | F27: 0 | G27: 0 | H27: 0 | I27: 0 | J27: 0 | K27: 0 | L27: 12.097744 | M27: 12.097744
A28: ОВДП (25-річні) | B28: 0 | C28: 0 | D28: 0 | E28: 0 | F28: 0 | G28: 0 | H28: 0 | I28: 0 | J28: 0 | K28: 0 | L28: 12.097744 | M28: 12.097744
A29: ОВДП (26-річні) | B29: 0 | C29: 0 | D29: 0 | E29: 0 | F29: 0 | G29: 0 | H29: 0 | I29: 0 | J29: 0 | K29: 0 | L29: 12.097744 | M29: 12.097744
A30: ОВДП (27-річні) | B30: 0 | C30: 0 | D30: 0 | E30: 0 | F30: 0 | G30: 0 | H30: 0 | I30: 0 | J30: 0 | K30: 0 | L30: 12.097744 | M30: 12.097744
A31: ОВДП (28-річні) | B31: 0 | C31: 0 | D31: 0 | E31: 0 | F31: 0 | G31: 0 | H31: 0 | I31: 0 | J31: 0 | K31: 0 | L31: 12.097744 | M31: 12.097744
A32: ОВДП (29-річні) | B32: 0 | C32: 0 | D32: 0 | E32: 0 | F32: 0 | G32: 0 | H32: 0 | I32: 0 | J32: 0 | K32: 0 | L32: 12.097744 | M32: 12.097744
A33: ОВДП (3 - місячні) | B33: 0.01 | C33: 0.01 | D33: 0.01 | E33: 0 | F33: 0 | G33: 0 | H33: 0 | I33: 0 | J33: 0 | K33: 0 | L33: 0 | M33: 0
A34: ОВДП (3 - річні) | B34: 18.462385 | C34: 19.409305 | D34: 20.768255 | E34: 20.622125 | F34: 16.956588 | G34: 17.86015449 | H34: 19.29364489 | I34: 24.07202433 | J34: 33.60618223 | K34: 36.00253686 | L34: 42.32254506 | M34: 45.17081845
A35: ОВДП (30-річні) | B35: 0 | C35: 0 | D35: 0 | E35: 0 | F35: 0 | G35: 0 | H35: 0 | I35: 0 | J35: 0 | K35: 0 | L35: 12.097751 | M35: 12.097751
A36: ОВДП (4 - річні) | B36: 15.58553728 | C36: 15.57404576 | D36: 15.56358752 | E36: 15.55116928 | F36: 15.48323248 | G36: 11.235 | H36: 11.235 | I36: 11.235 | J36: 11.235 | K36: 11.235 | L36: 0.03 | M36: 0.03
A37: ОВДП (5 - річні) | B37: 151.5696514 | C37: 150.9532078 | D37: 150.8198212 | E37: 149.6248115 | F37: 147.4373245 | G37: 147.3142695 | H37: 139.9439212 | I37: 139.2994345 | J37: 136.3662554 | K37: 137.7150345 | L37: 58.4728906 | M37: 59.3107018
A38: ОВДП (6 - місячні) | B38: 0.215801 | C38: 0.01 | D38: 0.01 | E38: 0.01 | F38: 0.01 | G38: 0.645 | H38: 0.635 | I38: 0.635 | J38: 0.635 | K38: 0.635 | L38: 0.635 | M38: 0
A39: ОВДП (6 - річні) | B39: 24.1 | C39: 24.1 | D39: 22.85 | E39: 22.85 | F39: 22.85 | G39: 22.85 | H39: 22.85 | I39: 22.85 | J39: 22.85 | K39: 21.6 | L39: 7.8901 | M39: 7.8901
A40: ОВДП (7 - річні) | B40: 44.739791 | C40: 44.739791 | D40: 44.739791 | E40: 44.739791 | F40: 43.539791 | G40: 43.539791 | H40: 44.066091 | I40: 44.639341 | J40: 43.439341 | K40: 43.439341 | L40: 19.72846 | M40: 19.72846
A41: ОВДП (8 - річні) | B41: 27.416198 | C41: 27.416198 | D41: 27.416198 | E41: 27.416198 | F41: 27.416198 | G41: 26.382865 | H41: 24.258263 | I41: 21.158263 | J41: 21.158263 | K41: 21.158263 | L41: 18.9 | M41: 18.9
A42: ОВДП (9 - місячні) | B42: 0.196567 | C42: 0.196 | D42: 0.981 | E42: 0.79 | F42: 0.79 | G42: 0.79 | H42: 0.79 | I42: 0.505 | J42: 0.505 | K42: 0.505 | L42: 0.505 | M42: 0
A43: ОВДП (9 - річні) | B43: 36.874399 | C43: 36.874399 | D43: 36.874399 | E43: 36.874399 | F43: 36.874399 | G43: 36.874399 | H43: 36.874399 | I43: 36.874399 | J43: 36.874399 | K43: 36.874399 | L43: 19.4 | M43: 19.4
A44: 2. Заборгованість перед банківськими та іншими фінансовими установами | B44: =SUM(B$45:B$45) -> 2.512797928 | C44: 2.512797928 | D44: 2.512797928 | E44: 2.479734797 | F44: 2.479734797 | G44: 2.479734797 | H44: 2.446671666 | I44: 2.446671666 | J44: 2.446671666 | K44: 2.446671666 | L44: 2.413608536 | M44: 2.413608536
A45: Національний банк України | B45: 2.512797928 | C45: 2.512797928 | D45: 2.512797928 | E45: 2.479734797 | F45: 2.479734797 | G45: 2.479734797 | H45: 2.446671666 | I45: 2.446671666 | J45: 2.446671666 | K45: 2.446671666 | L45: 2.413608536 | M45: 2.413608536
A46: Зовнішній борг | B46: =B$47+B$54+B$60+B$62+B$68 -> 980.1877545 | C46: 981.0500337 | D46: 977.6388742 | E46: 976.5272341 | F46: 980.9381688 | G46: 977.4955253 | H46: 972.1761511 | I46: 970.2660315 | J46: 954.1081384 | K46: 1025.071735 | L46: 1033.58042 | M46: 1039.512815
A47: 1. Заборгованість за позиками, одержаними від міжнародних фінансових організацій | B47: =SUM(B$48:B$53) -> 371.8465755 | C47: 373.209225 | D47: 371.1236043 | E47: 371.6659696 | F47: 385.2357053 | G47: 385.5228595 | H47: 385.3954594 | I47: 386.4058193 | J47: 377.4130273 | K47: 389.8438187 | L47: 391.6386368 | M47: 392.3361237
A48: Європейське Співтовариство | B48: 62.81395484 | C48: 63.70885235 | D48: 63.29820783 | E48: 64.01086653 | F48: 81.18268716 | G48: 82.73752479 | H48: 83.70085742 | I48: 85.41386714 | J48: 85.65043261 | K48: 87.77469145 | L48: 87.54354928 | M48: 89.77774375
A49: Європейський банк реконструкції та розвитку | B49: 16.0723087 | C49: 16.53241549 | D49: 16.22666393 | E49: 16.3992311 | F49: 16.31678422 | G49: 15.92408972 | H49: 16.31471496 | I49: 16.65096404 | J49: 16.67678237 | K49: 17.28195625 | L49: 17.15298468 | M49: 16.76019868
A50: Європейський Інвестиційний Банк | B50: 14.52237776 | C50: 14.72927509 | D50: 15.0436734 | E50: 15.21304636 | F50: 15.17441155 | G50: 15.46503689 | H50: 15.64509998 | I50: 15.96529035 | J50: 15.77455394 | K50: 16.16578647 | L50: 16.12321617 | M50: 18.46337323
A51: Міжнародний банк реконструкції та розвитку | B51: 137.4605065 | C51: 136.1181227 | D51: 135.2918085 | E51: 134.8754237 | F51: 132.1655261 | G51: 130.6943497 | H51: 129.6743161 | I51: 127.6583971 | J51: 125.6820046 | K51: 130.077682 | L51: 131.5179072 | M51: 132.1553652
A52: Міжнародний Валютний Фонд | B52: 140.9098527 | C52: 142.0531629 | D52: 141.1960166 | E52: 141.0983105 | F52: 140.3282924 | G52: 140.6290625 | H52: 139.9857662 | I52: 140.6365641 | J52: 133.5393324 | K52: 138.4455648 | L52: 139.201701 | M52: 135.0644888
A53: Фонд чистих технологій (МБРР) | B53: 0.06757499901 | C53: 0.06739650623 | D53: 0.06723406295 | E53: 0.06909135625 | F53: 0.06800385358 | G53: 0.07279597184 | H53: 0.07470482739 | I53: 0.08073649949 | J53: 0.08992140397 | K53: 0.09813770811 | L53: 0.09927851561 | M53: 0.114954112
A54: 2. Заборгованість за позиками, одержаними від органів управління іноземних держав | B54: =SUM(B$55:B$59) -> 45.64750416 | C54: 46.15063435 | D54: 46.34290275 | E54: 46.19803483 | F54: 45.37042495 | G54: 45.32822021 | H54: 45.17404719 | I54: 45.5388627 | J54: 45.17697573 | K54: 46.38376947 | L54: 46.53627427 | M54: 47.31976091
A55: Канада | B55: 8.0323876 | C55: 8.246452 | D55: 8.24875 | E55: 8.0905568 | F55: 7.8172592 | G55: 7.8266768 | H55: 8.0142012 | I55: 8.2643812 | J55: 8.1493432 | K55: 8.5090016 | L55: 8.3534756 | M55: 8.4210268
A56: Німеччина | B56: 5.983279353 | C56: 6.068521905 | D56: 6.029406379 | E56: 6.097289958 | F56: 6.081805378 | G56: 6.198286123 | H56: 6.386205674 | I56: 6.516904841 | J56: 6.534954307 | K56: 6.697030948 | L56: 6.772858134 | M56: 7.041556027
A57: Росія | B57: 16.47374066 | C57: 16.43022688 | D57: 16.39062572 | E57: 16.34360282 | F57: 16.08635339 | G57: 15.96598498 | H57: 15.81222845 | I57: 15.70111146 | J57: 15.49751481 | K57: 16.06796021 | L57: 16.25474315 | M57: 16.36654779
A58: США | B58: 0.2065714027 | C58: 0.2060257645 | D58: 0.2055291883 | E58: 0.2049395478 | F58: 0.2017137852 | G58: 0.2002044333 | H58: 0.1982764134 | I58: 0.196883069 | J58: 0.194330082 | K58: 0.2014831452 | L58: 0.2038252977 | M58: 0.2052272647
A59: Японія | B59: 14.95152515 | C59: 15.1994078 | D59: 15.46859147 | E59: 15.46164571 | F59: 15.18329319 | G59: 15.13706787 | H59: 14.76313545 | I59: 14.85958212 | J59: 14.80083333 | K59: 14.90829356 | L59: 14.95137208 | M59: 15.28540302
A60: 3. Заборгованість за позиками, одержаними від іноземних комерційних банків, інших іноземних фінансових установ | B60: =SUM(B$61:B$61) -> 0.001453225 | C60: 0.0014739288 | D60: 0.00146442838 | E60: 0.00148091602 | F60: 0.00147715511 | G60: 0.00150544607 | H60: 0.00152297433 | I60: 0.00155414331 | J60: 0.00155844772 | K60: 0.00159709956 | L60: 0.00159289382 | M60: 0.00163354598
A61: Chase Manhattan Bank Luxembourg S.A. | B61: 0.001453225 | C61: 0.0014739288 | D61: 0.00146442838 | E61: 0.00148091602 | F61: 0.00147715511 | G61: 0.00150544607 | H61: 0.00152297433 | I61: 0.00155414331 | J61: 0.00155844772 | K61: 0.00159709956 | L61: 0.00159289382 | M61: 0.00163354598
A62: 4. Заборгованість за випущеними цінними паперами на зовнішньому ринку | B62: =SUM(B$63:B$67) -> 517.8044819 | C62: 516.4367518 | D62: 515.1920036 | E62: 513.7139746 | F62: 505.6280815 | G62: 501.8446479 | H62: 497.0117554 | I62: 493.5191135 | J62: 487.1196405 | K62: 542.8144712 | L62: 549.1244496 | M62: 552.9014801
A63: ОЗДП 2013 року | B63: 81.572574 | C63: 81.357108 | D63: 81.161016 | E63: 80.928174 | F63: 79.654359 | G63: 79.058334 | H63: 78.296982 | I63: 77.746767 | J63: 76.738623 | K63: 79.563282 | L63: 80.48817 | M63: 81.04179
A64: ОЗДП 2014 року | B64: 27.190858 | C64: 27.119036 | D64: 27.053672 | E64: 26.976058 | F64: 26.551453 | G64: 26.352778 | H64: 26.098994 | I64: 25.915589 | J64: 25.579541 | K64: 26.521094 | L64: 26.82939 | M64: 27.01393
A65: ОЗДП 2015 року | B65: 381.8501919 | C65: 380.8415718 | D65: 379.9236436 | E65: 378.8336846 | F65: 372.8708165 | G65: 370.0807579 | H65: 366.5167854 | I65: 363.9411685 | J65: 359.2219355 | K65: 330.6457192 | L65: 334.4893296 | M65: 336.7900401
A66: ОЗДП 2016 року | B66: 27.190858 | C66: 27.119036 | D66: 27.053672 | E66: 26.976058 | F66: 26.551453 | G66: 26.352778 | H66: 26.098994 | I66: 25.915589 | J66: 25.579541 | K66: 26.521094 | L66: 26.82939 | M66: 27.01393
A67: ОЗДП 2017 року | B67: 0 | C67: 0 | D67: 0 | E67: 0 | F67: 0 | G67: 0 | H67: 0 | I67: 0 | J67: 0 | K67: 79.563282 | L67: 80.48817 | M67: 81.04179
A68: 5. Заборгованість, не віднесена до інших категорій | B68: =SUM(B$69:B$69) -> 44.88773975 | C68: 45.25194859 | D68: 44.9788991 | E68: 44.94777422 | F68: 44.70247999 | G68: 44.79829223 | H68: 44.59336605 | I68: 44.80068192 | J68: 44.3969364 | K68: 46.02807897 | L68: 46.27946654 | M68: 46.9538166
A69: Міжнародний Валютний Фонд | B69: 44.88773975 | C69: 45.25194859 | D69: 44.9788991 | E69: 44.94777422 | F69: 44.70247999 | G69: 44.79829223 | H69: 44.59336605 | I69: 44.80068192 | J69: 44.3969364 | K69: 46.02807897 | L69: 46.27946654 | M69: 46.9538166
A70: Гарантований державою борг | B70: =B$71+B$85 -> 278.9755473 | C70: 279.4154528 | D70: 275.5450119 | E70: 275.7236211 | F70: 306.447799 | G70: 303.0243192 | H70: 306.7612385 | I70: 311.5055142 | J70: 309.3275279 | K70: 318.4385585 | L70: 308.0488585 | M70: 305.8974025
A71: Внутрішній борг | B71: =B$72+B$79+B$83 -> 19.08447525 | C71: 19.05165624 | D71: 19.10706476 | E71: 19.31743004 | F71: 19.47617331 | G71: 19.57440491 | H71: 19.72136754 | I71: 19.77754341 | J71: 19.86827068 | K71: 20.02540529 | L71: 20.11453322 | M71: 20.20022065
A72: 1. Заборгованість за випущеними цінними паперами на внутрішньому ринку | B72: =SUM(B$73:B$78) -> 15.9500116 | C72: 15.9500116 | D72: 15.9500116 | E72: 15.9500116 | F72: 15.9500116 | G72: 15.9500116 | H72: 15.9500116 | I72: 15.9500116 | J72: 15.9500116 | K72: 15.9500116 | L72: 15.9500116 | M72: 15.9500116
A73: Державні цінні папери | B73: 1.16e-05 | C73: 1.16e-05 | D73: 1.16e-05 | E73: 1.16e-05 | F73: 1.16e-05 | G73: 1.16e-05 | H73: 1.16e-05 | I73: 1.16e-05 | J73: 1.16e-05 | K73: 1.16e-05 | L73: 1.16e-05 | M73: 1.16e-05
A74: Облігації ДІУ (10 - річні) | B74: 1 | C74: 1 | D74: 1 | E74: 1 | F74: 1 | G74: 1 | H74: 1 | I74: 1 | J74: 1 | K74: 1 | L74: 1 | M74: 1
A75: Облігації ДІУ (5 - річні) | B75: 3 | C75: 3 | D75: 3 | E75: 3 | F75: 3 | G75: 3 | H75: 3 | I75: 3 | J75: 3 | K75: 3 | L75: 3 | M75: 3
A76: Облігації ДІУ (7 - річні) | B76: 3 | C76: 3 | D76: 3 | E76: 3 | F76: 3 | G76: 3 | H76: 3 | I76: 3 | J76: 3 | K76: 3 | L76: 3 | M76: 3
A77: Облігації НАК "Нафтогаз України" (3 - річні) | B77: 4.8 | C77: 4.8 | D77: 4.8 | E77: 4.8 | F77: 4.8 | G77: 4.8 | H77: 4.8 | I77: 4.8 | J77: 4.8 | K77: 4.8 | L77: 4.8 | M77: 4.8
A78: Облігації Укравтодору (5 - річні) | B78: 4.15 | C78: 4.15 | D78: 4.15 | E78: 4.15 | F78: 4.15 | G78: 4.15 | H78: 4.15 | I78: 4.15 | J78: 4.15 | K78: 4.15 | L78: 4.15 | M78: 4.15
A79: 2. Заборгованість перед банківськими та іншими фінансовими установами | B79: =SUM(B$80:B$82) -> 3.133508998 | C79: 3.100689992 | D79: 3.156098505 | E79: 3.366463788 | F79: 3.52520706 | G79: 3.623438659 | H79: 3.770401292 | I79: 3.826577161 | J79: 3.91730443 | K79: 4.074439044 | L79: 4.163566971 | M79: 4.249254401
A80: ВАТ "Державний експортно-імпортний банк України" | B80: 0 | C80: 0 | D80: 0.03707292115 | E80: 0.1134704461 | F80: 0.1917701267 | G80: 0.2475387402 | H80: 0.2781835844 | I80: 0.314037666 | J80: 0.3360657624 | K80: 0.3693971302 | L80: 0.4005847984 | M80: 0.4314411247
A81: ВАТ "Державний ощадний банк України" | B81: 3.021712318 | C81: 2.998100726 | D81: 3.016436318 | E81: 3.150404076 | F81: 3.236327973 | G81: 3.278790958 | H81: 3.395108747 | I81: 3.4192638 | J81: 3.487962972 | K81: 3.611766219 | L81: 3.673539742 | M81: 3.728370846
A82: ПАТ АБ "Укргазбанк" | B82: 0.1117966802 | C82: 0.1025892659 | D82: 0.1025892659 | E82: 0.1025892659 | F82: 0.09710896056 | G82: 0.09710896056 | H82: 0.09710896056 | I82: 0.09327569528 | J82: 0.09327569528 | K82: 0.09327569528 | L82: 0.08944243001 | M82: 0.08944243001
A83: 3. Заборгованість, не віднесена до інших категорій | B83: =SUM(B$84:B$84) -> 0.00095465 | C83: 0.00095465 | D83: 0.00095465 | E83: 0.00095465 | F83: 0.00095465 | G83: 0.00095465 | H83: 0.00095465 | I83: 0.00095465 | J83: 0.00095465 | K83: 0.00095465 | L83: 0.00095465 | M83: 0.00095465
A84: Інші кредитори | B84: 0.00095465 | C84: 0.00095465 | D84: 0.00095465 | E84: 0.00095465 | F84: 0.00095465 | G84: 0.00095465 | H84: 0.00095465 | I84: 0.00095465 | J84: 0.00095465 | K84: 0.00095465 | L84: 0.00095465 | M84: 0.00095465
A85: Зовнішній борг | B85: =B$86+B$92+B$94+B$102+B$103 -> 259.8910721 | C85: 260.3637965 | D85: 256.4379471 | E85: 256.4061911 | F85: 286.9716257 | G85: 283.4499143 | H85: 287.0398709 | I85: 291.7279708 | J85: 289.4592573 | K85: 298.4131532 | L85: 287.9343253 | M85: 285.6971818
A86: 1. Заборгованість за позиками, одержаними від міжнародних фінансових організацій | B86: =SUM(B$87:B$91) -> 190.9827472 | C86: 192.5914912 | D86: 188.8454318 | E86: 189.1048365 | F86: 214.4627368 | G86: 211.0944886 | H86: 209.9813671 | I86: 215.5330204 | J86: 213.2199254 | K86: 220.8062452 | L86: 221.8043472 | M86: 221.1279885
A87: Європейське співтоватиство з атомної енергії | B87: 0.2958517627 | C87: 0.2978783374 | D87: 0.2964798414 | E87: 0.2415162408 | F87: 0.2084620953 | G87: 1.682101253 | H87: 1.699663846 | I87: 1.73186027 | J87: 1.735185603 | K87: 1.718417603 | L87: 1.649530744 | M87: 1.691049191
A88: Європейський банк реконструкції та розвитку | B88: 10.56222871 | C88: 10.78154354 | D88: 7.973583883 | E88: 8.297228754 | F88: 8.196551775 | G88: 3.013796512 | H88: 2.872056711 | I88: 7.560740988 | J88: 10.60851713 | K88: 10.84333959 | L88: 10.94314701 | M88: 11.01324815
A89: Європейський Інвестиційний Банк | B89: 0.99479114 | C89: 1.008963725 | D89: 1.002460305 | E89: 1.013746755 | F89: 1.01117226 | G89: 1.030538565 | H89: 1.04253737 | I89: 1.06387379 | J89: 1.066820335 | K89: 1.093279075 | L89: 1.09040008 | M89: 1.118228125
A90: Міжнародний банк реконструкції та розвитку | B90: 12.37301899 | C90: 12.39322211 | D90: 12.47739647 | E90: 12.57246159 | F90: 12.25654898 | G90: 12.16483762 | H90: 12.04768712 | I90: 11.96302462 | J90: 11.80789982 | K90: 12.24253481 | L90: 12.1480795 | M90: 12.1473539
A91: Міжнародний Валютний Фонд | B91: 166.7568566 | C91: 168.1098835 | D91: 167.0955113 | E91: 166.9798831 | F91: 192.7900017 | G91: 193.2032147 | H91: 192.3194221 | I91: 193.2135207 | J91: 188.0015026 | K91: 194.9086741 | L91: 195.9731899 | M91: 195.1581092
A92: 2. Заборгованість за позиками, одержаними від органів управління іноземних держав | B92: =SUM(B$93:B$93) -> 3.975759701 | C92: 3.304381766 | D92: 3.296417338 | E92: 3.28696028 | F92: 3.2352233 | G92: 3.211015285 | H92: 3.180092385 | I92: 2.526195982 | J92: 2.493438745 | K92: 2.58521931 | L92: 2.615271342 | M92: 2.633259905
A93: Канада | B93: 3.975759701 | C93: 3.304381766 | D93: 3.296417338 | E93: 3.28696028 | F93: 3.2352233 | G93: 3.211015285 | H93: 3.180092385 | I93: 2.526195982 | J93: 2.493438745 | K93: 2.58521931 | L93: 2.615271342 | M93: 2.633259905
A94: 3. Заборгованість за позиками, одержаними від іноземних комерційних банків, інших іноземних фінансових установ | B94: =SUM(B$95:B$101) -> 61.95552088 | C94: 61.46672413 | D94: 61.31300774 | E94: 61.03336834 | F94: 66.30890802 | G94: 66.17329838 | H94: 70.92089053 | I94: 70.69748388 | J94: 70.80139979 | K94: 71.96901484 | L94: 60.44536028 | M94: 58.82186269
A95: Citibank, N.A., Deutsche Bank AG | B95: 0 | C95: 0 | D95: 0 | E95: 0 | F95: 6.390260578 | G95: 7.099232725 | H95: 12.38488553 | I95: 12.87471518 | J95: 13.87632381 | K95: 14.2204774 | L95: 14.18302979 | M95: 12.32291711
A96: Deutsche Bank AG London | B96: 0.3881279224 | C96: 0.3990226571 | D96: 0.3964506995 | E96: 0.4009142388 | F96: 0.4007000521 | G96: 0.4083743918 | H96: 0.4166446849 | I96: 0.4251716751 | J96: 0.4263492467 | K96: 0.554989364 | L96: 0.5706129965 | M96: 0.9187176921
A97: UniCredit Bank Austria AG | B97: 0.96636853 | C97: 0.980136184 | D97: 0.973818576 | E97: 0.8616847362 | F97: 0.8594964155 | G97: 0.8759577747 | H97: 0.8861567588 | I97: 0.9042927157 | J97: 0.906797279 | K97: 0.7965318922 | L97: 0.7944343387 | M97: 0.8147090571
A98: ВАТ "Газпромбанк" | B98: 13.595429 | C98: 13.559518 | D98: 13.526836 | E98: 13.488029 | F98: 13.2757265 | G98: 13.176389 | H98: 13.049497 | I98: 12.9577945 | J98: 12.62094553 | K98: 11.84432058 | L98: 0 | M98: 0
A99: Державний банк розвитку КНР | B99: 1.608611159 | C99: 1.60436217 | D99: 1.600495236 | E99: 1.595903591 | F99: 1.399261573 | G99: 1.388791401 | H99: 1.375416984 | I99: 1.36575154 | J99: 1.348041811 | K99: 1.397661654 | L99: 1.240590994 | M99: 1.249124123
A100: Експортно-імпортний банк Китаю | B100: 41.84925707 | C100: 41.38532889 | D100: 41.28557938 | E100: 41.16713561 | F100: 40.51916207 | G100: 40.21597172 | H100: 39.82868161 | I100: 39.21108886 | J100: 38.70263783 | K100: 40.12723668 | L100: 40.59369808 | M100: 40.87291281
A101: Експортно-імпортний банк Кореї | B101: 3.547727198 | C101: 3.538356222 | D101: 3.529827854 | E101: 3.519701168 | F101: 3.46430083 | G101: 3.008581371 | H101: 2.979607962 | I101: 2.958669415 | J101: 2.920304285 | K101: 3.027797272 | L101: 3.062994078 | M101: 2.643481888
A102: 4. Заборгованість за випущеними цінними паперами на зовнішньому ринку
A103: 5. Заборгованість, не віднесена до інших категорій | B103: =SUM(B$104:B$104) -> 2.977044347 | C103: 3.001199403 | D103: 2.983090217 | E103: 2.981025952 | F103: 2.96475755 | G103: 2.971112009 | H103: 2.957520896 | I103: 2.971270498 | J103: 2.94449329 | K103: 3.052673916 | L103: 3.06934644 | M103: 3.11407068
A104: Міжнародний Валютний Фонд | B104: 2.977044347 | C104: 3.001199403 | D104: 2.983090217 | E104: 2.981025952 | F104: 2.96475755 | G104: 2.971112009 | H104: 2.957520896 | I104: 2.971270498 | J104: 2.94449329 | K104: 3.052673916 | L104: 3.06934644 | M104: 3.11407068

Sheet MKT2_USD
A2: Державний та гарантований державою борг України за поточний рік
M4: =VALUSD -> млрд. дол. США
B5: 2016-12-31 | C5: 2017-01-31 | D5: 2017-02-28 | E5: 2017-03-31 | F5: 2017-04-30 | G5: 2017-05-31 | H5: 2017-06-30 | I5: 2017-07-31 | J5: 2017-08-31 | K5: 2017-09-30 | L5: 2017-10-31 | M5: 2017-11-30
A6: Загальна сума державного та гарантованого державою боргу | B6: =B$7+B$70 -> 70.97270827 | C6: 71.20848608 | D6: 71.76403161 | E6: 72.35494209 | F6: 74.54846918 | G6: 74.68055014 | H6: 75.01517786 | I6: 76.06216544 | J6: 76.5601876 | K6: 77.04283022 | L6: 76.29471861 | M6: 76.33106904
A7: Державний борг | B7: =B$8+B$46 -> 60.71280594 | C7: 60.90519017 | D7: 61.57890732 | E7: 62.13389271 | F7: 63.00681084 | G7: 63.18178826 | H7: 63.26142067 | I7: 64.04216025 | J7: 64.46741674 | K7: 65.03583841 | L7: 64.8129496 | M7: 65.00737781
A8: Внутрішній борг | B8: =B$9+B$44 -> 24.66437545 | C8: 24.729493 | D8: 25.44189516 | E8: 25.93411755 | F8: 26.06200903 | G8: 26.08909445 | H8: 26.01185653 | I8: 26.60268583 | J8: 27.16775846 | K8: 26.38465248 | L8: 26.28876325 | M8: 26.52675633
A9: 1. Заборгованість за випущеними цінними паперами на внутрішньому ринку | B9: =SUM(B$10:B$43) -> 24.57196211 | C9: 24.63683492 | D9: 25.3490132 | E9: 25.84219401 | F9: 25.96861547 | G9: 25.99499679 | H9: 25.9181107 | I9: 26.50827657 | J9: 27.0721089 | K9: 26.29239868 | L9: 26.19880189 | M9: 26.43740952
A10: ОВДП (10 - річні) | B10: 2.752137612 | C10: 2.759426368 | D10: 3.005873066 | E10: 3.014521395 | F10: 3.062728959 | G10: 3.085819036 | H10: 3.115825231 | I10: 3.137875971 | J10: 3.179099422 | K10: 3.0662349 | L10: 1.885448719 | M10: 1.872568671
A11: ОВДП (11 - річні) | B11: 0.6392950528 | C11: 0.6409881605 | D11: 0.6425368431 | E11: 0.644385514 | F11: 0.6546903855 | G11: 0.6596261313 | H11: 0.6660402696 | I11: 0.6707538463 | J11: 0.6795657905 | K11: 0.6554398171 | L11: 0.5603183673 | M11: 0.5564906698
A12: ОВДП (12 - місячні) | B12: 0.1278948241 | C12: 0.1274960511 | D12: 0.1475574185 | E12: 0.1459205048 | F12: 0.1775744627 | G12: 0.1407388625 | H12: 0.128847495 | I12: 0.1309748353 | J12: 0.1385595621 | K12: 0.1273058344 | L12: 0.1258429655 | M12: 0.1249832957
A13: ОВДП (12 - річні) | B13: 1.048146403 | C13: 1.050922312 | D13: 1.05346143 | E13: 1.05649239 | F13: 1.073387584 | G13: 1.081479911 | H13: 1.091996113 | I13: 1.099724185 | J13: 1.114171673 | K13: 1.074616304 | L13: 1.360448374 | M13: 1.351154756
A14: ОВДП (13 - річні) | B14: 1.365077557 | C14: 1.368692825 | D14: 1.371999705 | E14: 1.550175752 | F14: 1.574965822 | G14: 1.586839573 | H14: 1.602269842 | I14: 1.613609129 | J14: 1.634807716 | K14: 1.576768703 | L14: 1.069722457 | M14: 1.062414873
A15: ОВДП (14 - річні) | B15: 1.884824672 | C15: 1.889816437 | D15: 2.075503835 | E15: 2.081475359 | F15: 2.114761855 | G15: 2.130705158 | H15: 2.151423921 | I15: 2.166649579 | J15: 2.195113665 | K15: 2.117182647 | L15: 1.748082979 | M15: 1.736141317
A16: ОВДП (15 - річні) | B16: 1.573684729 | C16: 1.577852472 | D16: 1.762786139 | E16: 1.968071021 | F16: 1.99954398 | G16: 2.014618649 | H16: 2.034208598 | I16: 2.916807833 | J16: 2.955127029 | K16: 2.850213984 | L16: 3.268376098 | M16: 3.246048872
A17: ОВДП (16 - річні) | B17: 0 | C17: 0 | D17: 0 | E17: 0 | F17: 0 | G17: 0 | H17: 0 | I17: 0 | J17: 0 | K17: 0 | L17: 0.2254569336 | M17: 0.2239167718
A18: ОВДП (17 - річні) | B18: 0 | C18: 0 | D18: 0 | E18: 0 | F18: 0 | G18: 0 | H18: 0 | I18: 0 | J18: 0 | K18: 0 | L18: 0.2254569336 | M18: 0.2239167718
A19: ОВДП (18 - місячні) | B19: 1.076022 | C19: 1.076022 | D19: 1.076022 | E19: 1.076022 | F19: 1.076022 | G19: 1.076022 | H19: 1.076022 | I19: 0.591509 | J19: 0.591509 | K19: 0.591509 | L19: 0.591509 | M19: 0.893504
A20: ОВДП (18 - річні) | B20: 0 | C20: 0 | D20: 0 | E20: 0 | F20: 0 | G20: 0 | H20: 0 | I20: 0 | J20: 0 | K20: 0 | L20: 0.9018277344 | M20: 0.8956670873
A21: ОВДП (19 - річні) | B21: 0 | C21: 0 | D21: 0 | E21: 0 | F21: 0 | G21: 0 | H21: 0 | I21: 0 | J21: 0 | K21: 0 | L21: 0.4509138672 | M21: 0.4478335437
A22: ОВДП (2 - річні) | B22: 2.366730742 | C22: 2.372229795 | D22: 2.38371219 | E22: 2.499161471 | F22: 2.508368131 | G22: 2.550871779 | H22: 2.558838125 | I22: 2.555382231 | J22: 2.59529877 | K22: 2.575818994 | L22: 2.567878659 | M22: 2.567629418
A23: ОВДП (20 - річні) | B23: 0 | C23: 0 | D23: 0 | E23: 0 | F23: 0 | G23: 0 | H23: 0 | I23: 0 | J23: 0 | K23: 0 | L23: 0.4509138672 | M23: 0.4478335437
A24: ОВДП (21-річні) | B24: 0 | C24: 0 | D24: 0 | E24: 0 | F24: 0 | G24: 0 | H24: 0 | I24: 0 | J24: 0 | K24: 0 | L24: 0.4509138672 | M24: 0.4478335437
A25: ОВДП (22-річні) | B25: 0 | C25: 0 | D25: 0 | E25: 0 | F25: 0 | G25: 0 | H25: 0 | I25: 0 | J25: 0 | K25: 0 | L25: 0.2254569336 | M25: 0.2239167718
A26: ОВДП (23-річні) | B26: 0 | C26: 0 | D26: 0 | E26: 0 | F26: 0 | G26: 0 | H26: 0 | I26: 0 | J26: 0 | K26: 0 | L26: 0.6763708008 | M26: 0.6717503155
A27: ОВДП (24-річні) | B27: 0 | C27: 0 | D27: 0 | E27: 0 | F27: 0 | G27: 0 | H27: 0 | I27: 0 | J27: 0 | K27: 0 | L27: 0.4509138672 | M27: 0.4478335437
A28: ОВДП (25-річні) | B28: 0 | C28: 0 | D28: 0 | E28: 0 | F28: 0 | G28: 0 | H28: 0 | I28: 0 | J28: 0 | K28: 0 | L28: 0.4509138672 | M28: 0.4478335437
A29: ОВДП (26-річні) | B29: 0 | C29: 0 | D29: 0 | E29: 0 | F29: 0 | G29: 0 | H29: 0 | I29: 0 | J29: 0 | K29: 0 | L29: 0.4509138672 | M29: 0.4478335437
A30: ОВДП (27-річні) | B30: 0 | C30: 0 | D30: 0 | E30: 0 | F30: 0 | G30: 0 | H30: 0 | I30: 0 | J30: 0 | K30: 0 | L30: 0.4509138672 | M30: 0.4478335437
A31: ОВДП (28-річні) | B31: 0 | C31: 0 | D31: 0 | E31: 0 | F31: 0 | G31: 0 | H31: 0 | I31: 0 | J31: 0 | K31: 0 | L31: 0.4509138672 | M31: 0.4478335437
A32: ОВДП (29-річні) | B32: 0 | C32: 0 | D32: 0 | E32: 0 | F32: 0 | G32: 0 | H32: 0 | I32: 0 | J32: 0 | K32: 0 | L32: 0.4509138672 | M32: 0.4478335437
A33: ОВДП (3 - місячні) | B33: 0.00036777067 | C33: 0.00036874467 | D33: 0.00036963559 | E33: 0 | F33: 0 | G33: 0 | H33: 0 | I33: 0 | J33: 0 | K33: 0 | L33: 0 | M33: 0
A34: ОВДП (3 - річні) | B34: 0.6789923657 | C34: 0.7157077781 | D34: 0.7676686181 | E34: 0.7644602855 | F34: 0.6386312643 | G34: 0.6777332732 | H34: 0.7392486044 | I34: 0.9288627137 | J34: 1.313791449 | K34: 1.357505722 | L34: 1.577469524 | M34: 1.67213058
A35: ОВДП (30-річні) | B35: 0 | C35: 0 | D35: 0 | E35: 0 | F35: 0 | G35: 0 | H35: 0 | I35: 0 | J35: 0 | K35: 0 | L35: 0.4509141281 | M35: 0.4478338028
A36: ОВДП (4 - річні) | B36: 0.5731903451 | C36: 0.5742846376 | D36: 0.5752855849 | E36: 0.5764804213 | F36: 0.5831406846 | G36: 0.4263307648 | H36: 0.4304763624 | I36: 0.4335228499 | J36: 0.4392182018 | K36: 0.4236250586 | L36: 0.00111817675 | M36: 0.00111053816
A37: ОВДП (5 - річні) | B37: 5.574287189 | C37: 5.56631909 | D37: 5.574837353 | E37: 5.546578063 | F37: 5.552891003 | G37: 5.590085017 | H37: 5.362042737 | I37: 5.375121303 | J37: 5.331067332 | K37: 5.192660398 | L37: 2.179434217 | M37: 2.195559913
A38: ОВДП (6 - місячні) | B38: 0.00793652779 | C38: 0.00036874467 | D38: 0.00036963559 | E38: 0.00037069908 | F38: 0.00037662722 | G38: 0.02447559799 | H38: 0.02433043971 | I38: 0.02450262658 | J38: 0.02482452675 | K38: 0.02394320536 | L38: 0.02366807445 | M38: 0
A39: ОВДП (6 - річні) | B39: 0.886327309 | C39: 0.8886746564 | D39: 0.8446173222 | E39: 0.8470474077 | F39: 0.8605932037 | G39: 0.8670812618 | H39: 0.875512673 | I39: 0.8817086889 | J39: 0.8932920258 | K39: 0.8144460406 | L39: 0.2940842114 | M39: 0.2920752368
A40: ОВДП (7 - річні) | B40: 1.645398281 | C40: 1.64975595 | D40: 1.653741902 | E40: 1.658499956 | F40: 1.639827056 | G40: 1.6521898 | H40: 1.688421056 | I40: 1.722489927 | J40: 1.69820643 | K40: 1.637916633 | L40: 0.7353301734 | M40: 0.7303069194
A41: ОВДП (8 - річні) | B41: 1.008287344 | C41: 1.01095769 | D41: 1.013400251 | E41: 1.01631595 | F41: 1.032568651 | G41: 1.001141701 | H41: 0.9294711896 | I41: 0.8164299488 | J41: 0.8271556945 | K41: 0.797789978 | L41: 0.7044513498 | M41: 0.6996390381
A42: ОВДП (9 - місячні) | B42: 0.00722915769 | C42: 0.00722739555 | D42: 0.03626125134 | E42: 0.02928522766 | F42: 0.02975355058 | G42: 0.0299778642 | H42: 0.03026936594 | I42: 0.01948634083 | J42: 0.01974234017 | K42: 0.01904144679 | L42: 0.01882264189 | M42: 0
A43: ОВДП (9 - річні) | B43: 1.356132234 | C43: 1.359723812 | D43: 1.363009021 | E43: 1.366930595 | F43: 1.388790248 | G43: 1.399260412 | H43: 1.41286668 | I43: 1.422865558 | J43: 1.441558275 | K43: 1.390380012 | L43: 0.7230876289 | M43: 0.7181480074
A44: 2. Заборгованість перед банківськими та іншими фінансовими установами | B44: =SUM(B$45:B$45) -> 0.09241333715 | C44: 0.09265808444 | D44: 0.09288195435 | E44: 0.09192354187 | F44: 0.09339356294 | G44: 0.094097662 | H44: 0.09374582278 | I44: 0.09440926333 | J44: 0.09564955315 | K44: 0.09225379867 | L44: 0.0899613646 | M44: 0.08934681239
A45: Національний банк України | B45: 0.09241333715 | C45: 0.09265808444 | D45: 0.09288195435 | E45: 0.09192354187 | F45: 0.09339356294 | G45: 0.094097662 | H45: 0.09374582278 | I45: 0.09440926333 | J45: 0.09564955315 | K45: 0.09225379867 | L45: 0.0899613646 | M45: 0.08934681239
A46: Зовнішній борг | B46: =B$47+B$54+B$60+B$62+B$68 -> 36.04843049 | C46: 36.17569716 | D46: 36.13701216 | E46: 36.19977515 | F46: 36.94480181 | G46: 37.09269381 | H46: 37.24956414 | I46: 37.43947442 | J46: 37.29965829 | K46: 38.65118593 | L46: 38.52418635 | M46: 38.48062147
A47: 1. Заборгованість за позиками, одержаними від міжнародних фінансових організацій | B47: =SUM(B$48:B$53) -> 13.67542633 | C47: 13.76189128 | D47: 13.71804923 | E47: 13.77762346 | F47: 14.50902537 | G47: 14.62930624 | H47: 14.76667873 | I47: 14.91016929 | J47: 14.75448787 | K47: 14.69938679 | L47: 14.59737388 | M47: 14.52347451
A48: Європейське Співтовариство | B48: 2.310113011 | C48: 2.349229978 | D48: 2.339727037 | E48: 2.372876961 | F48: 3.057560999 | G48: 3.139613015 | H48: 3.207053016 | I48: 3.295848963 | J48: 3.348395994 | K48: 3.309618052 | L48: 3.262972035 | M48: 3.323386999
A49: Європейський банк реконструкції та розвитку | B49: 0.59109237 | C49: 0.6096240107 | D49: 0.5997952489 | E49: 0.6079179954 | F49: 0.6145345121 | G49: 0.6042660746 | H49: 0.6251089587 | I49: 0.6425076445 | J49: 0.6519578429 | K49: 0.6516305944 | L49: 0.6393356195 | M49: 0.6204280044
A50: Європейський Інвестиційний Банк | B50: 0.5340904563 | C50: 0.5431341693 | D50: 0.5560677086 | E50: 0.5639462355 | F50: 0.5715096476 | G50: 0.5868465514 | H50: 0.5994522234 | I50: 0.6160496815 | J50: 0.6166863566 | K50: 0.6095444809 | L50: 0.6009535131 | M50: 0.683476015
A51: Міжнародний банк реконструкції та розвитку | B51: 5.055394225 | C51: 5.019283232 | D51: 5.000866739 | E51: 4.999819605 | F51: 4.977713502 | G51: 4.959414512 | H51: 4.96855611 | I51: 4.925930764 | J51: 4.913379979 | K51: 4.904687641 | L51: 4.902008851 | M51: 4.892119183
A52: Міжнародний Валютний Фонд | B52: 5.18225106 | C52: 5.238134679 | D52: 5.219107284 | E52: 5.230501452 | F52: 5.285145503 | G52: 5.336403718 | H52: 5.363646053 | I52: 5.426716873 | J52: 5.22055233 | K52: 5.220205653 | L52: 5.188403499 | M52: 4.999808942
A53: Фонд чистих технологій (МБРР) | B53: 0.00248521025 | C53: 0.00248521025 | D53: 0.00248521025 | E53: 0.00256121025 | F53: 0.00256121025 | G53: 0.00276236425 | H53: 0.00286236425 | I53: 0.00311536425 | J53: 0.00351536425 | K53: 0.00370036425 | L53: 0.00370036425 | M53: 0.00425536425
A54: 2. Заборгованість за позиками, одержаними від органів управління іноземних держав | B54: =SUM(B$55:B$59) -> 1.678781308 | C54: 1.701780047 | D54: 1.712998618 | E54: 1.712556921 | F54: 1.708773714 | G54: 1.720054721 | H54: 1.730873121 | I54: 1.757199603 | J54: 1.766137075 | K54: 1.748938768 | L54: 1.734525991 | M54: 1.75168
A55: Канада | B55: 0.295407655 | C55: 0.3040835227 | D55: 0.304903157 | E55: 0.2999161998 | F55: 0.2944192621 | G55: 0.2969962711 | H55: 0.3070693529 | I55: 0.3188961362 | J55: 0.3185883281 | K55: 0.3208390121 | L55: 0.3113554054 | M55: 0.3117290524
A56: Німеччина | B56: 0.2200474642 | C56: 0.2237735111 | D56: 0.2228683182 | E56: 0.2260259804 | F56: 0.2290573468 | G56: 0.235204278 | H56: 0.2446916411 | I56: 0.2514665918 | J56: 0.2554758237 | K56: 0.2525171453 | L56: 0.2524417489 | M56: 0.2606638881
A57: Росія | B57: 0.60585586 | C57: 0.60585586 | D57: 0.60585586 | E57: 0.60585586 | F57: 0.60585586 | G57: 0.60585586 | H57: 0.60585586 | I57: 0.60585586 | J57: 0.60585586 | K57: 0.60585586 | L57: 0.60585586 | M57: 0.60585586
A58: США | B58: 0.00759709027 | C58: 0.00759709027 | D58: 0.00759709027 | E58: 0.00759709027 | F58: 0.00759709027 | G58: 0.00759709027 | H58: 0.00759709027 | I58: 0.00759709027 | J58: 0.00759709027 | K58: 0.00759709027 | L58: 0.00759709027 | M58: 0.00759709027
A59: Японія | B59: 0.5498732387 | C59: 0.5604700626 | D59: 0.5717741927 | E59: 0.5731617906 | F59: 0.5718441546 | G59: 0.5744012215 | H59: 0.5656591763 | I59: 0.5733839244 | J59: 0.5786199734 | K59: 0.5621296604 | L59: 0.557275886 | M59: 0.5658341094
A60: 3. Заборгованість за позиками, одержаними від іноземних комерційних банків, інших іноземних фінансових установ | B60: =SUM(B$61:B$61) -> 5.344535e-05 | C60: 5.435034e-05 | D60: 5.413048e-05 | E60: 5.489742e-05 | F60: 5.563368e-05 | G60: 5.712666e-05 | H60: 5.835376e-05 | I60: 5.996944e-05 | J60: 6.092555e-05 | K60: 6.021997e-05 | L60: 5.937123e-05 | M60: 6.04705e-05
A61: Chase Manhattan Bank Luxembourg S.A. | B61: 5.344535e-05 | C61: 5.435034e-05 | D61: 5.413048e-05 | E61: 5.489742e-05 | F61: 5.563368e-05 | G61: 5.712666e-05 | H61: 5.835376e-05 | I61: 5.996944e-05 | J61: 6.092555e-05 | K61: 6.021997e-05 | L61: 5.937123e-05 | M61: 6.04705e-05
A62: 4. Заборгованість за випущеними цінними паперами на зовнішньому ринку | B62: =SUM(B$63:B$67) -> 19.04333 | C62: 19.04333 | D62: 19.04333 | E62: 19.04333 | F62: 19.04333 | G62: 19.04333 | H62: 19.04333 | I62: 19.04333 | J62: 19.04333 | K62: 20.467273 | L62: 20.467273 | M62: 20.467273
A63: ОЗДП 2013 року | B63: 3 | C63: 3 | D63: 3 | E63: 3 | F63: 3 | G63: 3 | H63: 3 | I63: 3 | J63: 3 | K63: 3 | L63: 3 | M63: 3
A64: ОЗДП 2014 року | B64: 1 | C64: 1 | D64: 1 | E64: 1 | F64: 1 | G64: 1 | H64: 1 | I64: 1 | J64: 1 | K64: 1 | L64: 1 | M64: 1
A65: ОЗДП 2015 року | B65: 14.04333 | C65: 14.04333 | D65: 14.04333 | E65: 14.04333 | F65: 14.04333 | G65: 14.04333 | H65: 14.04333 | I65: 14.04333 | J65: 14.04333 | K65: 12.467273 | L65: 12.467273 | M65: 12.467273
A66: ОЗДП 2016 року | B66: 1 | C66: 1 | D66: 1 | E66: 1 | F66: 1 | G66: 1 | H66: 1 | I66: 1 | J66: 1 | K66: 1 | L66: 1 | M66: 1
A67: ОЗДП 2017 року | B67: 0 | C67: 0 | D67: 0 | E67: 0 | F67: 0 | G67: 0 | H67: 0 | I67: 0 | J67: 0 | K67: 3 | L67: 3 | M67: 3
A68: 5. Заборгованість, не віднесена до інших категорій | B68: =SUM(B$69:B$69) -> 1.650839402 | C68: 1.668641488 | D68: 1.662580189 | E68: 1.666209875 | F68: 1.683617088 | G68: 1.699945722 | H68: 1.708623943 | I68: 1.728715559 | J68: 1.735642418 | K68: 1.735527161 | L68: 1.72495411 | M68: 1.738133496
A69: Міжнародний Валютний Фонд | B69: 1.650839402 | C69: 1.668641488 | D69: 1.662580189 | E69: 1.666209875 | F69: 1.683617088 | G69: 1.699945722 | H69: 1.708623943 | I69: 1.728715559 | J69: 1.735642418 | K69: 1.735527161 | L69: 1.72495411 | M69: 1.738133496
A70: Гарантований державою борг | B70: =B$71+B$85 -> 10.25990233 | C70: 10.30329591 | D70: 10.18512429 | E70: 10.22104939 | F70: 11.54165834 | G70: 11.49876188 | H70: 11.75375719 | I70: 12.02000519 | J70: 12.09277086 | K70: 12.00699181 | L70: 11.481769 | M70: 11.32369124
A71: Внутрішній борг | B71: =B$72+B$79+B$83 -> 0.7018710203 | C71: 0.7025196707 | D71: 0.7062651146 | E71: 0.7160953627 | F71: 0.7335257061 | G71: 0.742783357 | H71: 0.7556370771 | I71: 0.7631523795 | J71: 0.7767250663 | K71: 0.7550746321 | L71: 0.74972011 | M71: 0.7477705262
A72: 1. Заборгованість за випущеними цінними паперами на внутрішньому ринку | B72: =SUM(B$73:B$78) -> 0.5865946415 | C72: 0.5881481775 | D72: 0.5895691942 | E72: 0.5912654696 | F72: 0.6007208569 | G72: 0.6052497236 | H72: 0.6111351112 | I72: 0.6154601232 | J72: 0.6235456532 | K72: 0.601408509 | L72: 0.5944977355 | M72: 0.5904365488
A73: Державні цінні папери | B73: 4.2661e-07 | C73: 4.2774e-07 | D73: 4.2878e-07 | E73: 4.3001e-07 | F73: 4.3689e-07 | G73: 4.4018e-07 | H73: 4.4446e-07 | I73: 4.4761e-07 | J73: 4.5349e-07 | K73: 4.3739e-07 | L73: 4.3236e-07 | M73: 4.2941e-07
A74: Облігації ДІУ (10 - річні) | B74: 0.03677706676 | C74: 0.03687446707 | D74: 0.03696355896 | E74: 0.03706990844 | F74: 0.03766272226 | G74: 0.03794666354 | H74: 0.03831565309 | I74: 0.03858681352 | J74: 0.03909374293 | K74: 0.03770583521 | L74: 0.03727255819 | M74: 0.03701793852
A75: Облігації ДІУ (5 - річні) | B75: 0.1103312003 | C75: 0.1106234012 | D75: 0.1108906769 | E75: 0.1112097253 | F75: 0.1129881668 | G75: 0.1138399906 | H75: 0.1149469593 | I75: 0.1157604406 | J75: 0.1172812288 | K75: 0.1131175056 | L75: 0.1118176746 | M75: 0.1110538156
A76: Облігації ДІУ (7 - річні) | B76: 0.1103312003 | C76: 0.1106234012 | D76: 0.1108906769 | E76: 0.1112097253 | F76: 0.1129881668 | G76: 0.1138399906 | H76: 0.1149469593 | I76: 0.1157604406 | J76: 0.1172812288 | K76: 0.1131175056 | L76: 0.1118176746 | M76: 0.1110538156
A77: Облігації НАК "Нафтогаз України" (3 - річні) | B77: 0.1765299205 | C77: 0.1769974419 | D77: 0.177425083 | E77: 0.1779355605 | F77: 0.1807810669 | G77: 0.182143985 | H77: 0.1839151348 | I77: 0.1852167049 | J77: 0.187649966 | K77: 0.180988009 | L77: 0.1789082793 | M77: 0.1776861049
A78: Облігації Укравтодору (5 - річні) | B78: 0.1526248271 | C78: 0.1530290384 | D78: 0.1533987697 | E78: 0.15384012 | F78: 0.1563002974 | G78: 0.1574786537 | H78: 0.1590099603 | I78: 0.1601352761 | J78: 0.1622390331 | K78: 0.1564792161 | L78: 0.1546811165 | M78: 0.1536244449
A79: 2. Заборгованість перед банківськими та іншими фінансовими установами | B79: =SUM(B$80:B$82) -> 0.1152412696 | C79: 0.114336291 | D79: 0.1166606332 | E79: 0.1247945044 | F79: 0.1327688944 | G79: 0.1374974076 | H79: 0.1444653879 | I79: 0.1476554193 | J79: 0.1531420923 | K79: 0.1536301272 | L79: 0.1551867922 | M79: 0.1572986382
A80: ВАТ "Державний експортно-імпортний банк України" | B80: 0 | C80: 0 | D80: 0.0013703471 | E80: 0.00420633904 | F80: 0.00722258502 | G80: 0.00939326928 | H80: 0.01065878571 | I80: 0.01211771285 | J80: 0.01313806851 | K80: 0.01392842732 | L80: 0.01493082021 | M80: 0.01597106103
A81: ВАТ "Державний ощадний банк України" | B81: 0.1111297157 | C81: 0.1105533665 | D81: 0.1114982217 | E81: 0.1167851906 | F81: 0.1218889216 | G81: 0.1244191773 | H81: 0.1300858089 | I81: 0.1319384946 | J81: 0.1363575278 | K81: 0.1361846619 | L81: 0.1369222238 | M81: 0.1380166028
A82: ПАТ АБ "Укргазбанк" | B82: 0.00411155398 | C82: 0.0037829245 | D82: 0.00379206438 | E82: 0.00380297469 | F82: 0.00365738781 | G82: 0.00368496105 | H82: 0.00372079324 | I82: 0.00359921186 | J82: 0.00364649605 | K82: 0.003517038 | L82: 0.00333374818 | M82: 0.00331097437
A83: 3. Заборгованість, не віднесена до інших категорій | B83: =SUM(B$84:B$84) -> 3.510923e-05 | C83: 3.520221e-05 | D83: 3.528726e-05 | E83: 3.538879e-05 | F83: 3.595472e-05 | G83: 3.622578e-05 | H83: 3.657804e-05 | I83: 3.68369e-05 | J83: 3.732084e-05 | K83: 3.599588e-05 | L83: 3.558225e-05 | M83: 3.533918e-05
A84: Інші кредитори | B84: 3.510923e-05 | C84: 3.520221e-05 | D84: 3.528726e-05 | E84: 3.538879e-05 | F84: 3.595472e-05 | G84: 3.622578e-05 | H84: 3.657804e-05 | I84: 3.68369e-05 | J84: 3.732084e-05 | K84: 3.599588e-05 | L84: 3.558225e-05 | M84: 3.533918e-05
A85: Зовнішній борг | B85: =B$86+B$92+B$94+B$102+B$103 -> 9.55803131 | C85: 9.600776241 | D85: 9.478859178 | E85: 9.504954025 | F85: 10.80813264 | G85: 10.75597853 | H85: 10.99812012 | I85: 11.25685281 | J85: 11.31604579 | K85: 11.25191718 | L85: 10.73204889 | M85: 10.57592071
A86: 1. Заборгованість за позиками, одержаними від міжнародних фінансових організацій | B86: =SUM(B$87:B$91) -> 7.023785243 | C86: 7.101708601 | D86: 6.980399254 | E86: 7.010098973 | F86: 8.077250493 | G86: 8.010331533 | H86: 8.045573218 | I86: 8.316732466 | J86: 8.335564952 | K86: 8.325683894 | L86: 8.267215438 | M86: 8.185702285
A87: Європейське співтоватиство з атомної енергії | B87: 0.01088056003 | C87: 0.01098410494 | D87: 0.0109589501 | E87: 0.00895298493 | F87: 0.00785125 | G87: 0.06383013029 | H87: 0.0651237303 | I87: 0.0668269693 | J87: 0.06783489988 | K87: 0.06479437096 | L87: 0.06148223064 | M87: 0.06259915498
A88: Європейський банк реконструкції та розвитку | B88: 0.3884477904 | C88: 0.3975636722 | D88: 0.294732038 | E88: 0.3075775102 | F88: 0.308704453 | G88: 0.1143635222 | H88: 0.1100447286 | I88: 0.2917449026 | J88: 0.4147266416 | K88: 0.4088571756 | L88: 0.4078790838 | M88: 0.407687743
A89: Європейський Інвестиційний Банк | B89: 0.03658550017 | C89: 0.03720499965 | D89: 0.03705450059 | E89: 0.03757949938 | F89: 0.03808349999 | G89: 0.03910550019 | H89: 0.0399455002 | I89: 0.04105149954 | J89: 0.04170599992 | K89: 0.04122300064 | L89: 0.04064200043 | M89: 0.04139449999
A90: Міжнародний банк реконструкції та розвитку | B90: 0.4550433454 | C90: 0.4569934608 | D90: 0.4612089801 | E90: 0.46606 | F90: 0.461615 | G90: 0.461615 | H90: 0.461615 | I90: 0.461615 | J90: 0.461615 | K90: 0.461615 | L90: 0.45279 | M90: 0.44967
A91: Міжнародний Валютний Фонд | B91: 6.132828047 | C91: 6.198962364 | D91: 6.176444785 | E91: 6.189928979 | F91: 7.26099629 | G91: 7.33141738 | H91: 7.368844258 | I91: 7.455494095 | J91: 7.34968241 | K91: 7.349194346 | L91: 7.304422123 | M91: 7.224350887
A92: 2. Заборгованість за позиками, одержаними від органів управління іноземних держав | B92: =SUM(B$93:B$93) -> 0.14621678 | C92: 0.1218473166 | D92: 0.1218473166 | E92: 0.1218473166 | F92: 0.1218473166 | G92: 0.1218473166 | H92: 0.1218473166 | I92: 0.09747785328 | J92: 0.09747785328 | K92: 0.09747785328 | L92: 0.09747785328 | M92: 0.09747785328
A93: Канада | B93: 0.14621678 | C93: 0.1218473166 | D93: 0.1218473166 | E93: 0.1218473166 | F93: 0.1218473166 | G93: 0.1218473166 | H93: 0.1218473166 | I93: 0.09747785328 | J93: 0.09747785328 | K93: 0.09747785328 | L93: 0.09747785328 | M93: 0.09747785328
A94: 3. Заборгованість за позиками, одержаними від іноземних комерційних банків, інших іноземних фінансових установ | B94: =SUM(B$95:B$101) -> 2.278542328 | C94: 2.266552695 | D94: 2.266346977 | E94: 2.262501376 | F94: 2.497373986 | G94: 2.511055889 | H94: 2.717380238 | I94: 2.727990627 | J94: 2.767891722 | K94: 2.713651814 | L94: 2.252953208 | M94: 2.177464097
A95: Citibank, N.A., Deutsche Bank AG | B95: 0 | C95: 0 | D95: 0 | E95: 0 | F95: 0.2406746093 | G95: 0.2693921956 | H95: 0.4745349774 | I95: 0.4967942336 | J95: 0.5424774358 | K95: 0.5361949774 | L95: 0.5286378032 | M95: 0.4561689881
A96: Deutsche Bank AG London | B96: 0.01427420651 | C96: 0.01471374783 | D96: 0.0146542288 | E96: 0.01486185412 | F96: 0.01509145477 | G96: 0.01549644564 | H96: 0.01596401321 | I96: 0.01640602014 | J96: 0.01666758785 | K96: 0.0209263375 | L96: 0.02126820612 | M96: 0.03400903504
A97: UniCredit Bank Austria AG | B97: 0.03554019995 | C97: 0.03614199944 | D97: 0.03599580035 | E97: 0.03194257427 | F97: 0.03237097478 | G97: 0.03323967495 | H97: 0.03395367495 | I97: 0.03489377439 | J97: 0.03545009971 | K97: 0.03003390027 | L97: 0.02961060012 | M97: 0.03015884979
A98: ВАТ "Газпромбанк" | B98: 0.5 | C98: 0.5 | D98: 0.5 | E98: 0.5 | F98: 0.5 | G98: 0.5 | H98: 0.5 | I98: 0.5 | J98: 0.4934 | K98: 0.4466 | L98: 0 | M98: 0
A99: Державний банк розвитку КНР | B99: 0.05916 | C99: 0.05916 | D99: 0.05916 | E99: 0.05916 | F99: 0.0527 | G99: 0.0527 | H99: 0.0527 | I99: 0.0527 | J99: 0.0527 | K99: 0.0527 | L99: 0.04624 | M99: 0.04624
A100: Експортно-імпортний банк Китаю | B100: 1.539092921 | C100: 1.526061947 | D100: 1.526061947 | E100: 1.526061947 | F100: 1.526061947 | G100: 1.526061947 | H100: 1.526061947 | I100: 1.513030974 | J100: 1.513030974 | K100: 1.513030974 | L100: 1.513030974 | M100: 1.513030974
A101: Експортно-імпортний банк Кореї | B101: 0.130475 | C101: 0.130475 | D101: 0.130475 | E101: 0.130475 | F101: 0.130475 | G101: 0.114165625 | H101: 0.114165625 | I101: 0.114165625 | J101: 0.114165625 | K101: 0.114165625 | L101: 0.114165625 | M101: 0.09785625
A102: 4. Заборгованість за випущеними цінними паперами на зовнішньому ринку
A103: 5. Заборгованість, не віднесена до інших категорій | B103: =SUM(B$104:B$104) -> 0.1094869587 | C103: 0.1106676285 | D103: 0.1102656311 | E103: 0.1105063591 | F103: 0.1116608402 | G103: 0.1127437877 | H103: 0.1133193447 | I103: 0.1146518606 | J103: 0.1151112637 | K103: 0.1151036196 | L103: 0.1144023938 | M103: 0.115276477
A104: Міжнародний Валютний Фонд | B104: 0.1094869587 | C104: 0.1106676285 | D104: 0.1102656311 | E104: 0.1105063591 | F104: 0.1116608402 | G104: 0.1127437877 | H104: 0.1133193447 | I104: 0.1146518606 | J104: 0.1151112637 | K104: 0.1151036196 | L104: 0.1144023938 | M104: 0.115276477

Sheet MT_ALL (hidden)
A2: Державний та гарантований державою борг України за поточний рік
A4: =$A$2 & " (" &M4 & ")" -> Державний та гарантований державою борг України за поточний рік (млрд. грн) | M4: =VALUAH -> млрд. грн
B5: 2016-12-31 | C5: 2017-01-31 | D5: 2017-02-28 | E5: 2017-03-31 | F5: 2017-04-30 | G5: 2017-05-31 | H5: 2017-06-30 | I5: 2017-07-31 | J5: 2017-08-31 | K5: 2017-09-30 | L5: 2017-10-31 | M5: 2017-11-30
A6: Загальна сума державного та гарантованого державою боргу | B6: =SUM(B7:B8) -> 1929.808832 | C6: 1931.105498 | D6: 1941.480573 | E6: 1951.851114 | F6: 1979.370176 | G6: 1968.039959 | H6: 1957.820677 | I6: 1971.195818 | J6: 1958.374458 | K6: 2043.260142 | L6: 2046.94076 | M6: 2062.002156
A7: Внутрішній борг | B7: 689.7300058 | C7: 689.6916673 | D7: 707.4037514 | E7: 718.9176893 | F7: 711.4603812 | G7: 707.0945192 | H7: 698.6046549 | I7: 709.2018157 | J7: 714.807062 | K7: 719.7752538 | L7: 725.4260151 | M7: 736.7921593
A8: Зовнішній борг | B8: 1240.078827 | C8: 1241.41383 | D8: 1234.076821 | E8: 1232.933425 | F8: 1267.909795 | G8: 1260.94544 | H8: 1259.216022 | I8: 1261.994002 | J8: 1243.567396 | K8: 1323.484889 | L8: 1321.514745 | M8: 1325.209997
A10: =$A$2 & " (" &M10 & ")" -> Державний та гарантований державою борг України за поточний рік (млрд. дол. США) | M10: =VALUSD -> млрд. дол. США
B11: 2016-12-31 | C11: 2017-01-31 | D11: 2017-02-28 | E11: 2017-03-31 | F11: 2017-04-30 | G11: 2017-05-31 | H11: 2017-06-30 | I11: 2017-07-31 | J11: 2017-08-31 | K11: 2017-09-30 | L11: 2017-10-31 | M11: 2017-11-30
A12: Загальна сума державного та гарантованого державою боргу | B12: =SUM(B13:B14) -> 70.97270827 | C12: 71.20848608 | D12: 71.76403161 | E12: 72.35494209 | F12: 74.54846918 | G12: 74.68055014 | H12: 75.01517786 | I12: 76.06216544 | J12: 76.5601876 | K12: 77.04283022 | L12: 76.29471861 | M12: 76.33106904
A13: Внутрішній борг | B13: 25.36624647 | C13: 25.43201268 | D13: 26.14816027 | E13: 26.65021292 | F13: 26.79553474 | G13: 26.83187781 | H13: 26.7674936 | I13: 27.36583821 | J13: 27.94448352 | K13: 27.13972711 | L13: 27.03848336 | M13: 27.27452686
A14: Зовнішній борг | B14: 45.6064618 | C14: 45.77647341 | D14: 45.61587134 | E14: 45.70472918 | F14: 47.75293444 | G14: 47.84867233 | H14: 48.24768426 | I14: 48.69632723 | J14: 48.61570408 | K14: 49.90310311 | L14: 49.25623525 | M14: 49.05654219
M16: %%
B17: 2016-12-31 | C17: 2017-01-31 | D17: 2017-02-28 | E17: 2017-03-31 | F17: 2017-04-30 | G17: 2017-05-31 | H17: 2017-06-30 | I17: 2017-07-31 | J17: 2017-08-31 | K17: 2017-09-30 | L17: 2017-10-31 | M17: 2017-11-30
A18: Загальна сума державного та гарантованого державою боргу | B18: =SUM(B19:B20) -> 1 | C18: 1 | D18: 1 | E18: 1 | F18: 1 | G18: 1 | H18: 1 | I18: 1 | J18: 1 | K18: 1 | L18: 1 | M18: 1
A19: Внутрішній борг | B19: 0.357408 | C19: 0.357149 | D19: 0.364363 | E19: 0.368326 | F19: 0.359438 | G19: 0.359289 | H19: 0.356828 | I19: 0.359783 | J19: 0.365 | K19: 0.352268 | L19: 0.354395 | M19: 0.357319
A20: Зовнішній борг | B20: 0.642592 | C20: 0.642851 | D20: 0.635637 | E20: 0.631674 | F20: 0.640562 | G20: 0.640711 | H20: 0.643172 | I20: 0.640217 | J20: 0.635 | K20: 0.647732 | L20: 0.645605 | M20: 0.642681

Sheet MTM_ALL (hidden)
A2: Державний та гарантований державою борг України за поточний рік
M4: млрд. грн.
B5: =MT_ALL!B5 -> 2016-12-31 | C5: =MT_ALL!C5 -> 2017-01-31 | D5: =MT_ALL!D5 -> 2017-02-28 | E5: =MT_ALL!E5 -> 2017-03-31 | F5: =MT_ALL!F5 -> 2017-04-30 | G5: =MT_ALL!G5 -> 2017-05-31 | H5: =MT_ALL!H5 -> 2017-06-30 | I5: =MT_ALL!I5 -> 2017-07-31 | J5: =MT_ALL!J5 -> 2017-08-31 | K5: =MT_ALL!K5 -> 2017-09-30 | L5: =MT_ALL!L5 -> 2017-10-31 | M5: =MT_ALL!M5 -> 2017-11-30
A6: =MT_ALL!A6 -> Загальна сума державного та гарантованого державою боргу | B6: =SUM(B7:B8) -> 1929.808832 | C6: 1931.105498 | D6: 1941.480573 | E6: 1951.851114 | F6: 1979.370176 | G6: 1968.039959 | H6: 1957.820677 | I6: 1971.195818 | J6: 1958.374458 | K6: 2043.260142 | L6: 2046.94076 | M6: 2062.002156
A7: =MT_ALL!A7 -> Внутрішній борг | B7: =MT_ALL!B7/DMLMLR -> 689.7300058 | C7: =MT_ALL!C7/DMLMLR -> 689.6916673 | D7: =MT_ALL!D7/DMLMLR -> 707.4037514 | E7: =MT_ALL!E7/DMLMLR -> 718.9176893 | F7: =MT_ALL!F7/DMLMLR -> 711.4603812 | G7: =MT_ALL!G7/DMLMLR -> 707.0945192 | H7: =MT_ALL!H7/DMLMLR -> 698.6046549 | I7: =MT_ALL!I7/DMLMLR -> 709.2018157 | J7: =MT_ALL!J7/DMLMLR -> 714.807062 | K7: =MT_ALL!K7/DMLMLR -> 719.7752538 | L7: =MT_ALL!L7/DMLMLR -> 725.4260151 | M7: =MT_ALL!M7/DMLMLR -> 736.7921593
A8: =MT_ALL!A8 -> Зовнішній борг | B8: =MT_ALL!B8/DMLMLR -> 1240.078827 | C8: =MT_ALL!C8/DMLMLR -> 1241.41383 | D8: =MT_ALL!D8/DMLMLR -> 1234.076821 | E8: =MT_ALL!E8/DMLMLR -> 1232.933425 | F8: =MT_ALL!F8/DMLMLR -> 1267.909795 | G8: =MT_ALL!G8/DMLMLR -> 1260.94544 | H8: =MT_ALL!H8/DMLMLR -> 1259.216022 | I8: =MT_ALL!I8/DMLMLR -> 1261.994002 | J8: =MT_ALL!J8/DMLMLR -> 1243.567396 | K8: =MT_ALL!K8/DMLMLR -> 1323.484889 | L8: =MT_ALL!L8/DMLMLR -> 1321.514745 | M8: =MT_ALL!M8/DMLMLR -> 1325.209997
M10: млрд. дол.США
B11: =MT_ALL!B11 -> 2016-12-31 | C11: =MT_ALL!C11 -> 2017-01-31 | D11: =MT_ALL!D11 -> 2017-02-28 | E11: =MT_ALL!E11 -> 2017-03-31 | F11: =MT_ALL!F11 -> 2017-04-30 | G11: =MT_ALL!G11 -> 2017-05-31 | H11: =MT_ALL!H11 -> 2017-06-30 | I11: =MT_ALL!I11 -> 2017-07-31 | J11: =MT_ALL!J11 -> 2017-08-31 | K11: =MT_ALL!K11 -> 2017-09-30 | L11: =MT_ALL!L11 -> 2017-10-31 | M11: =MT_ALL!M11 -> 2017-11-30
A12: =MT_ALL!A12 -> Загальна сума державного та гарантованого державою боргу | B12: =SUM(B13:B14) -> 70.97270827 | C12: 71.20848608 | D12: 71.76403161 | E12: 72.35494209 | F12: 74.54846918 | G12: 74.68055014 | H12: 75.01517786 | I12: 76.06216544 | J12: 76.5601876 | K12: 77.04283022 | L12: 76.29471861 | M12: 76.33106904
A13: =MT_ALL!A13 -> Внутрішній борг | B13: =MT_ALL!B13/DMLMLR -> 25.36624647 | C13: =MT_ALL!C13/DMLMLR -> 25.43201268 | D13: =MT_ALL!D13/DMLMLR -> 26.14816027 | E13: =MT_ALL!E13/DMLMLR -> 26.65021292 | F13: =MT_ALL!F13/DMLMLR -> 26.79553474 | G13: =MT_ALL!G13/DMLMLR -> 26.83187781 | H13: =MT_ALL!H13/DMLMLR -> 26.7674936 | I13: =MT_ALL!I13/DMLMLR -> 27.36583821 | J13: =MT_ALL!J13/DMLMLR -> 27.94448352 | K13: =MT_ALL!K13/DMLMLR -> 27.13972711 | L13: =MT_ALL!L13/DMLMLR -> 27.03848336 | M13: =MT_ALL!M13/DMLMLR -> 27.27452686
A14: =MT_ALL!A14 -> Зовнішній борг | B14: =MT_ALL!B14/DMLMLR -> 45.6064618 | C14: =MT_ALL!C14/DMLMLR -> 45.77647341 | D14: =MT_ALL!D14/DMLMLR -> 45.61587134 | E14: =MT_ALL!E14/DMLMLR -> 45.70472918 | F14: =MT_ALL!F14/DMLMLR -> 47.75293444 | G14: =MT_ALL!G14/DMLMLR -> 47.84867233 | H14: =MT_ALL!H14/DMLMLR -> 48.24768426 | I14: =MT_ALL!I14/DMLMLR -> 48.69632723 | J14: =MT_ALL!J14/DMLMLR -> 48.61570408 | K14: =MT_ALL!K14/DMLMLR -> 49.90310311 | L14: =MT_ALL!L14/DMLMLR -> 49.25623525 | M14: =MT_ALL!M14/DMLMLR -> 49.05654219
M16: %%
B17: =MT_ALL!B17 -> 2016-12-31 | C17: =MT_ALL!C17 -> 2017-01-31 | D17: =MT_ALL!D17 -> 2017-02-28 | E17: =MT_ALL!E17 -> 2017-03-31 | F17: =MT_ALL!F17 -> 2017-04-30 | G17: =MT_ALL!G17 -> 2017-05-31 | H17: =MT_ALL!H17 -> 2017-06-30 | I17: =MT_ALL!I17 -> 2017-07-31 | J17: =MT_ALL!J17 -> 2017-08-31 | K17: =MT_ALL!K17 -> 2017-09-30 | L17: =MT_ALL!L17 -> 2017-10-31 | M17: =MT_ALL!M17 -> 2017-11-30
A18: =MT_ALL!A18 -> Загальна сума державного та гарантованого державою боргу | B18: =SUM(B19:B20) -> 1 | C18: 1 | D18: 1 | E18: 1 | F18: 1 | G18: 1 | H18: 1 | I18: 1 | J18: 1 | K18: 1 | L18: 1 | M18: 1
A19: =MT_ALL!A19 -> Внутрішній борг | B19: =MT_ALL!B19 -> 0.357408 | C19: =MT_ALL!C19 -> 0.357149 | D19: =MT_ALL!D19 -> 0.364363 | E19: =MT_ALL!E19 -> 0.368326 | F19: =MT_ALL!F19 -> 0.359438 | G19: =MT_ALL!G19 -> 0.359289 | H19: =MT_ALL!H19 -> 0.356828 | I19: =MT_ALL!I19 -> 0.359783 | J19: =MT_ALL!J19 -> 0.365 | K19: =MT_ALL!K19 -> 0.352268 | L19: =MT_ALL!L19 -> 0.354395 | M19: =MT_ALL!M19 -> 0.357319
A20: =MT_ALL!A20 -> Зовнішній борг | B20: =MT_ALL!B20 -> 0.642592 | C20: =MT_ALL!C20 -> 0.642851 | D20: =MT_ALL!D20 -> 0.635637 | E20: =MT_ALL!E20 -> 0.631674 | F20: =MT_ALL!F20 -> 0.640562 | G20: =MT_ALL!G20 -> 0.640711 | H20: =MT_ALL!H20 -> 0.643172 | I20: =MT_ALL!I20 -> 0.640217 | J20: =MT_ALL!J20 -> 0.635 | K20: =MT_ALL!K20 -> 0.647732 | L20: =MT_ALL!L20 -> 0.645605 | M20: =MT_ALL!M20 -> 0.642681

Sheet MK_ALL (hidden)
A2: Державний та гарантований державою борг України за поточний рік
A4: =$A$2 & " (" &M4 & ")" -> Державний та гарантований державою борг України за поточний рік (млрд. грн) | M4: =VALUAH -> млрд. грн
B5: 2016-12-31 | C5: 2017-01-31 | D5: 2017-02-28 | E5: 2017-03-31 | F5: 2017-04-30 | G5: 2017-05-31 | H5: 2017-06-30 | I5: 2017-07-31 | J5: 2017-08-31 | K5: 2017-09-30 | L5: 2017-10-31 | M5: 2017-11-30
A6: Загальна сума державного та гарантованого державою боргу | B6: =SUM(B7:B8) -> 1929.808832 | C6: 1931.105498 | D6: 1941.480573 | E6: 1951.851114 | F6: 1979.370176 | G6: 1968.039959 | H6: 1957.820677 | I6: 1971.195818 | J6: 1958.374458 | K6: 2043.260142 | L6: 2046.94076 | M6: 2062.002156
A7: Державний борг | B7: 1650.833285 | C7: 1651.690045 | D7: 1665.935561 | E7: 1676.127493 | F7: 1672.922377 | G7: 1665.01564 | H7: 1651.059438 | I7: 1659.690304 | J7: 1649.04693 | K7: 1724.821584 | L7: 1738.891902 | M7: 1756.104754
A8: Гарантований державою борг | B8: 278.9755473 | C8: 279.4154528 | D8: 275.5450119 | E8: 275.7236211 | F8: 306.447799 | G8: 303.0243192 | H8: 306.7612385 | I8: 311.5055142 | J8: 309.3275279 | K8: 318.4385585 | L8: 308.0488585 | M8: 305.8974025
A10: =$A$2 & " (" &M10 & ")" -> Державний та гарантований державою борг України за поточний рік (млрд. дол. США) | M10: =VALUSD -> млрд. дол. США
B11: 2016-12-31 | C11: 2017-01-31 | D11: 2017-02-28 | E11: 2017-03-31 | F11: 2017-04-30 | G11: 2017-05-31 | H11: 2017-06-30 | I11: 2017-07-31 | J11: 2017-08-31 | K11: 2017-09-30 | L11: 2017-10-31 | M11: 2017-11-30
A12: Загальна сума державного та гарантованого державою боргу | B12: =SUM(B13:B14) -> 70.97270827 | C12: 71.20848608 | D12: 71.76403161 | E12: 72.35494209 | F12: 74.54846918 | G12: 74.68055014 | H12: 75.01517786 | I12: 76.06216544 | J12: 76.5601876 | K12: 77.04283022 | L12: 76.29471861 | M12: 76.33106904
A13: Державний борг | B13: 60.71280594 | C13: 60.90519017 | D13: 61.57890732 | E13: 62.13389271 | F13: 63.00681084 | G13: 63.18178826 | H13: 63.26142067 | I13: 64.04216025 | J13: 64.46741674 | K13: 65.03583841 | L13: 64.8129496 | M13: 65.00737781
A14: Гарантований державою борг | B14: 10.25990233 | C14: 10.30329591 | D14: 10.18512429 | E14: 10.22104939 | F14: 11.54165834 | G14: 11.49876188 | H14: 11.75375719 | I14: 12.02000519 | J14: 12.09277086 | K14: 12.00699181 | L14: 11.481769 | M14: 11.32369124
M16: %%
B17: 2016-12-31 | C17: 2017-01-31 | D17: 2017-02-28 | E17: 2017-03-31 | F17: 2017-04-30 | G17: 2017-05-31 | H17: 2017-06-30 | I17: 2017-07-31 | J17: 2017-08-31 | K17: 2017-09-30 | L17: 2017-10-31 | M17: 2017-11-30
A18: Загальна сума державного та гарантованого державою боргу | B18: =SUM(B19:B20) -> 1 | C18: 1 | D18: 1 | E18: 1 | F18: 1 | G18: 1 | H18: 1 | I18: 1 | J18: 1 | K18: 1 | L18: 1 | M18: 1
A19: Державний борг | B19: 0.855439 | C19: 0.855308 | D19: 0.858075 | E19: 0.858737 | F19: 0.845179 | G19: 0.846027 | H19: 0.843315 | I19: 0.841971 | J19: 0.842049 | K19: 0.844152 | L19: 0.849508 | M19: 0.85165
A20: Гарантований державою борг | B20: 0.144561 | C20: 0.144692 | D20: 0.141925 | E20: 0.141263 | F20: 0.154821 | G20: 0.153973 | H20: 0.156685 | I20: 0.158029 | J20: 0.157951 | K20: 0.155848 | L20: 0.150492 | M20: 0.14835

Sheet SRATE_M (hidden)
A2: ="Державний та гарантований державою борг України за станом на " & TEXT(DREPORTDATE,"dd.MM.yyyy")&" (за видами відсоткових ставок)" -> Державний та гарантований державою борг України за станом на 30.11.2017 (за видами відсоткових ставок)
D4: =VALVAL -> млрд. одиниць
B5: дол.США | C5: грн. | D5: %
A6: Загальна сума державного та гарантованого державою боргу | B6: =SUM(B$7+ B$8) -> 76.33106904 | C6: 2062.002156 | D6: 1
A7: Борг, по якому сплата відсотків здійснюється за плаваючими процентними ставками | B7: 28.57144789 | C7: 771.8270934 | D7: 0.37431
A8: Борг, по якому сплата відсотків здійснюється за фіксованими процентними ставками | B8: 47.75962115 | C8: 1290.175063 | D8: 0.62569

Sheet SRATE (hidden)
A2: ="Державний та гарантований державою борг України за станом на " & TEXT(DREPORTDATE,"dd.MM.yyyy") -> Державний та гарантований державою борг України за станом на 30.11.2017
A3: (за видами відсоткових ставок)
D5: =VALVAL -> млрд. одиниць
B6: дол.США | C6: грн. | D6: %
A7: Загальна сума державного та гарантованого державою боргу | B7: =SUM(B$8+ B$9) -> 76.33106904 | C7: 2062.002156 | D7: 1
A8: =SRATE_M!A7 -> Борг, по якому сплата відсотків здійснюється за плаваючими процентними ставками | B8: =SRATE_M!B7 -> 28.57144789 | C8: =SRATE_M!C7 -> 771.8270934 | D8: =SRATE_M!D7 -> 0.37431
A9: =SRATE_M!A8 -> Борг, по якому сплата відсотків здійснюється за фіксованими процентними ставками | B9: =SRATE_M!B8 -> 47.75962115 | C9: =SRATE_M!C8 -> 1290.175063 | D9: =SRATE_M!D8 -> 0.62569
A11: В тому числі:
D12: =VALVAL -> млрд. одиниць
B13: дол.США | C13: грн. | D13: %
A14: Загальна сума державного та гарантованого державою боргу | B14: =B$15+B$18 -> 76.33106904 | C14: 2062.002156 | D14: 0.999999
A15: Державний борг | B15: =SUM(B$16:B$17) -> 65.00737781 | C15: 1756.104754 | D15: 1.095831
A16: Борг, по якому сплата відсотків здійснюється за плаваючими процентними ставками | B16: 18.63860385 | C16: 503.5019396 | D16: 0.244181
A17: Борг, по якому сплата відсотків здійснюється за фіксованими процентними ставками | B17: 46.36877396 | C17: 1252.602814 | D17: 0.607469
A18: Гарантований державою борг | B18: =SUM(B$19:B$20) -> 11.32369124 | C18: 305.8974025 | D18: 0.278477
A19: Борг, по якому сплата відсотків здійснюється за плаваючими процентними ставками | B19: 9.932844047 | C19: 268.3251538 | D19: 0.130128
A20: Борг, по якому сплата відсотків здійснюється за фіксованими процентними ставками | B20: 1.390847191 | C20: 37.57224866 | D20: 0.018221

Sheet RATE_M
A2: ="Державний та гарантований державою борг України за станом на " & TEXT(DREPORTDATE,"dd.MM.yyyy") -> Державний та гарантований державою борг України за станом на 30.11.2017
A3: (за видами відсоткових ставок)
D5: =VALVAL -> млрд. одиниць
B6: дол.США | C6: грн. | D6: %
A7: Загальна сума державного та гарантованого державою боргу | B7: =SUM(B8:B19) -> 76.33106904 | C7: 2062.002156 | D7: 1
A8: LIBOR | B8: 9.119875308 | C8: 246.3636732 | D8: 0.119478
A9: Індекс споживчих цін (СРІ) | B9: 5.374002783 | C9: 145.172935 | D9: 0.070404
A10: Ставка МВФ | B10: 14.0775698 | C10: 380.2904852 | D10: 0.184428
A11: Фіксована | B11: 47.75962115 | C11: 1290.175063 | D11: 0.62569

Sheet RATE (hidden)
A2: ="Державний та гарантований державою борг України за станом на " & TEXT(DREPORTDATE,"dd.MM.yyyy") -> Державний та гарантований державою борг України за станом на 30.11.2017
A3: (за видами відсоткових ставок)
D5: =VALVAL -> млрд. одиниць
B6: дол.США | C6: грн. | D6: %
A7: Загальна сума державного та гарантованого державою боргу | B7: =SUM(B8:B18) -> 76.33106904 | C7: 2062.002156 | D7: 1
A8: LIBOR | B8: 9.119875308 | C8: 246.3636732 | D8: 0.119478
A9: Індекс споживчих цін (СРІ) | B9: 5.374002783 | C9: 145.172935 | D9: 0.070404
A10: Ставка МВФ | B10: 14.0775698 | C10: 380.2904852 | D10: 0.184428
A11: Фіксована | B11: 47.75962115 | C11: 1290.175063 | D11: 0.62569
A19: В тому числі:
B20: ="Державний борг України за станом на " & TEXT(DREPORTDATE,"dd.MM.yyyy") -> Державний борг України за станом на 30.11.2017 | D20: =VALVAL -> млрд. одиниць
B21: дол.США | C21: грн. | D21: %
A22: Загальна сума державного та гарантованого державою боргу | B22: =B$23+B$28 -> 76.33106904 | C22: 2062.002156 | D22: 1
A23: Державний борг | B23: =SUM(B$24:B$27) -> 65.00737781 | C23: 1756.104754 | D23: 0.851651
A24: LIBOR | B24: 6.526658625 | C24: 176.3106992 | D24: 0.085505
A25: Індекс споживчих цін (СРІ) | B25: 5.374002783 | C25: 145.172935 | D25: 0.070404
A26: Ставка МВФ | B26: 6.737942438 | C26: 182.0183054 | D26: 0.088273
A27: Фіксована | B27: 46.36877396 | C27: 1252.602814 | D27: 0.607469
A28: Гарантований державою борг | B28: =SUM(B$29:B$31) -> 11.32369124 | C28: 305.8974025 | D28: 0.148349
A29: LIBOR | B29: 2.593216683 | C29: 70.05297395 | D29: 0.033973
A30: Ставка МВФ | B30: 7.339627364 | C30: 198.2721798 | D30: 0.096155
A31: Фіксована | B31: 1.390847191 | C31: 37.57224866 | D31: 0.018221

Sheet RATE_CMP (hidden)
A2: Структура боргу за типом ставки на кінець попереднього року та звітну дату
H4: =VALVAL -> млрд. одиниць
B5: 2016-12-31 | E5: 2017-11-30
B6: дол.США | C6: грн. | D6: % | E6: дол.США | F6: грн. | G6: % | H6: Зміна структури
A7: Загальна сума державного та гарантованого державою боргу | B7: =SUM(B8:B15) -> 70.97270827 | C7: 1929.808832 | D7: 0.999999 | E7: 76.33106904 | F7: 2062.002156 | G7: 1 | H7: 0
A8: LIBOR | B8: 9.032931234 | C8: 245.6131505 | D8: 0.127273 | E8: 9.119875308 | F8: 246.3636732 | G8: 0.119478 | H8: -0.007795
A9: Індекс споживчих цін (СРІ) | B9: 0 | C9: 0 | D9: 0 | E9: 5.374002783 | F9: 145.172935 | G9: 0.070404 | H9: 0.070404
A10: Ставка МВФ | B10: 13.07540547 | C10: 355.5314934 | D10: 0.184231 | E10: 14.0775698 | F10: 380.2904852 | G10: 0.184428 | H10: 0.000196
A11: Фіксована | B11: 48.86437157 | C11: 1328.664189 | D11: 0.688495 | E11: 47.75962115 | F11: 1290.175063 | G11: 0.62569 | H11: -0.062805
H12: =G12-D12 -> 0
H13: 0
H17: =VALVAL -> млрд. одиниць
B18: 2016-12-31 | E18: 2017-11-30
B19: дол.США | C19: грн. | D19: % | E19: дол.США | F19: грн. | G19: % | H19: Зміна структури
A20: Загальна сума державного та гарантованого державою боргу | B20: =B$21+B$26 -> 70.97270827 | C20: 1929.808832 | D20: 1.000001 | E20: 76.33106904 | F20: 2062.002156 | G20: 1 | H20: 0
A21: Державний борг | B21: =SUM(B$22:B$25) -> 60.71280594 | C21: 1650.833285 | D21: 0.855439 | E21: 65.00737781 | F21: 1756.104754 | G21: 0.851651 | H21: -0.003788
A22: LIBOR | B22: 6.497224832 | C22: 176.6651178 | D22: 0.091545 | E22: 6.526658625 | F22: 176.3106992 | G22: 0.085505 | H22: -0.006041
A23: Індекс споживчих цін (СРІ) | B23: 0 | C23: 0 | D23: 0 | E23: 5.374002783 | F23: 145.172935 | G23: 0.070404 | H23: 0.070404
A24: Ставка МВФ | B24: 6.833090461 | C24: 185.7975924 | D24: 0.096278 | E24: 6.737942438 | F24: 182.0183054 | G24: 0.088273 | H24: -0.008005
A25: Фіксована | B25: 47.38249065 | C25: 1288.370575 | D25: 0.667616 | E25: 46.36877396 | F25: 1252.602814 | G25: 0.607469 | H25: -0.060146
A26: Гарантований державою борг | B26: =SUM(B$27:B$29) -> 10.25990233 | C26: 278.9755473 | D26: 0.144562 | E26: 11.32369124 | F26: 305.8974025 | G26: 0.148349 | H26: 0.003788
A27: LIBOR | B27: 2.535706403 | C27: 68.94803272 | D27: 0.035728 | E27: 2.593216683 | F27: 70.05297395 | G27: 0.033973 | H27: -0.001755
A28: Ставка МВФ | B28: 6.242315006 | C28: 169.7339009 | D28: 0.087954 | E28: 7.339627364 | F28: 198.2721798 | G28: 0.096155 | H28: 0.008201
A29: Фіксована | B29: 1.481880921 | C29: 40.29361371 | D29: 0.02088 | E29: 1.390847191 | F29: 37.57224866 | G29: 0.018221 | H29: -0.002658

Sheet CUR_M
A2: ="Державний та гарантований державою борг України за станом на " & TEXT(DREPORTDATE,"dd.MM.yyyy") -> Державний та гарантований державою борг України за станом на 30.11.2017
A3: (в розрізі валют погашеня)
D5: =VALVAL -> млрд. одиниць
B6: дол.США | C6: грн. | D6: %
A7: Загальна сума державного та гарантованого державою боргу | B7: =SUM(B8:B26) -> 76.33106904 | C7: 2062.002156 | D7: 1
A8: Долар США | B8: 32.52156628 | C8: 878.535315 | D8: 0.426059
A9: ЄВРО | B9: 5.746555104 | C9: 155.2370373 | D9: 0.075285
A10: Канадський долар | B10: 0.3117290524 | C10: 8.4210268 | D10: 0.004084
A11: СПЗ | B11: 14.0775698 | C11: 380.2904852 | D11: 0.184428
A12: Українська гривня | B12: 23.10781469 | C12: 624.2328886 | D12: 0.302731
A13: Японська єна | B13: 0.5658341094 | C13: 15.28540302 | D13: 0.007413

Sheet CUR (hidden)
A2: ="Державний та гарантований державою борг України за станом на " & TEXT(DREPORTDATE,"dd.MM.yyyy") -> Державний та гарантований державою борг України за станом на 30.11.2017
A3: (в розрізі валют погашеня)
D5: =VALVAL -> млрд. одиниць
B6: дол.США | C6: грн. | D6: %
A7: Загальна сума державного та гарантованого державою боргу | B7: =SUM(B8:B18) -> 76.33106904 | C7: 2062.002156 | D7: 1
A8: Долар США | B8: 32.52156628 | C8: 878.535315 | D8: 0.426059
A9: ЄВРО | B9: 5.746555104 | C9: 155.2370373 | D9: 0.075285
A10: Канадський долар | B10: 0.3117290524 | C10: 8.4210268 | D10: 0.004084
A11: СПЗ | B11: 14.0775698 | C11: 380.2904852 | D11: 0.184428
A12: Українська гривня | B12: 23.10781469 | C12: 624.2328886 | D12: 0.302731
A13: Японська єна | B13: 0.5658341094 | C13: 15.28540302 | D13: 0.007413
A20: В тому числі:
B21: ="Державний борг України за станом на " & TEXT(DREPORTDATE,"dd.MM.yyyy") -> Державний борг України за станом на 30.11.2017 | D21: =VALVAL -> млрд. одиниць
B22: дол.США | C22: грн. | D22: %
A23: Загальна сума державного та гарантованого державою боргу | B23: =B$24+B$31 -> 76.33106904 | C23: 2062.002156 | D23: 1
A24: Державний борг | B24: =SUM(B$25:B$30) -> 65.00737781 | C24: 1756.104754 | D24: 0.851651
A25: Долар США | B25: 29.9766735 | C25: 809.7877595 | D25: 0.392719
A26: ЄВРО | B26: 5.055154541 | C26: 136.5595909 | D26: 0.066227
A27: Канадський долар | B27: 0.3117290524 | C27: 8.4210268 | D27: 0.004084
A28: СПЗ | B28: 6.737942438 | C28: 182.0183054 | D28: 0.088273
A29: Українська гривня | B29: 22.36004417 | C29: 604.0326679 | D29: 0.292935
A30: Японська єна | B30: 0.5658341094 | C30: 15.28540302 | D30: 0.007413
A31: Гарантований державою борг | B31: =SUM(B$32:B$35) -> 11.32369124 | C31: 305.8974025 | D31: 0.148349
A32: Долар США | B32: 2.544892785 | C32: 68.74755555 | D32: 0.03334
A33: ЄВРО | B33: 0.6914005631 | C33: 18.67744641 | D33: 0.009058
A34: СПЗ | B34: 7.339627364 | C34: 198.2721798 | D34: 0.096155
A35: Українська гривня | B35: 0.7477705262 | C35: 20.20022065 | D35: 0.009796

Sheet CUR_CMP (hidden)
A2: Валютна структура державного боргу на кінець попереднього року та звітну дату
H5: =VALVAL -> млрд. одиниць
B6: 2016-12-31 | E6: 2017-11-30
B7: дол.США | C7: грн. | D7: % | E7: дол.США | F7: грн. | G7: % | H7: Зміна структури
A8: Загальна сума державного та гарантованого державою боргу | B8: =SUM(B9:B18) -> 70.97270827 | C8: 1929.808832 | D8: 0.999999 | E8: 76.33106904 | F8: 2062.002156 | G8: 1 | H8: 2.710505431e-18
A9: Долар США | B9: 31.63775002 | C9: 860.2575682 | D9: 0.445773 | E9: 32.52156628 | F9: 878.535315 | G9: 0.426059 | H9: -0.019714
A10: ЄВРО | B10: 3.934205215 | C10: 106.9744153 | D10: 0.055433 | E10: 5.746555104 | F10: 155.2370373 | G10: 0.075285 | H10: 0.019852
A11: Канадський долар | B11: 0.295407655 | C11: 8.0323876 | D11: 0.004162 | E11: 0.3117290524 | F11: 8.4210268 | G11: 0.004084 | H11: -7.8e-05
A12: СПЗ | B12: 13.07540547 | C12: 355.5314934 | D12: 0.184231 | E12: 14.0775698 | F12: 380.2904852 | G12: 0.184428 | H12: 0.000196
A13: Українська гривня | B13: 21.48006667 | C13: 584.0614428 | D13: 0.302652 | E13: 23.10781469 | F13: 624.2328886 | G13: 0.302731 | H13: 7.9e-05
A14: Японська єна | B14: 0.5498732387 | C14: 14.95152515 | D14: 0.007748 | E14: 0.5658341094 | F14: 15.28540302 | G14: 0.007413 | H14: -0.000335
H21: =VALVAL -> млрд. одиниць
B22: 2016-12-31 | E22: 2017-11-30
B23: дол.США | C23: грн. | D23: % | E23: дол.США | F23: грн. | G23: % | H23: Зміна структури
A24: Загальна сума державного та гарантованого державою боргу | B24: =B$25+B$32 -> 70.97270827 | C24: 1929.808832 | D24: 1 | E24: 76.33106904 | F24: 2062.002156 | G24: 1 | H24: 0
A25: Державний борг | B25: =SUM(B$26:B$31) -> 60.71280594 | C25: 1650.833285 | D25: 0.855439 | E25: 65.00737781 | F25: 1756.104754 | G25: 0.851651 | H25: -0.003788
A26: Долар США | B26: 28.45312039 | C26: 773.6647561 | D26: 0.400902 | E26: 29.9766735 | F26: 809.7877595 | G26: 0.392719 | H26: -0.008183
A27: ЄВРО | B27: 3.803118543 | C27: 103.4100563 | D27: 0.053586 | E27: 5.055154541 | F27: 136.5595909 | G27: 0.066227 | H27: 0.012641
A28: Канадський долар | B28: 0.295407655 | C28: 8.0323876 | D28: 0.004162 | E28: 0.3117290524 | F28: 8.4210268 | G28: 0.004084 | H28: -7.8e-05
A29: СПЗ | B29: 6.833090461 | C29: 185.7975924 | D29: 0.096278 | E29: 6.737942438 | F29: 182.0183054 | G29: 0.088273 | H29: -0.008005
A30: Українська гривня | B30: 20.77819565 | C30: 564.9769675 | D30: 0.292763 | E30: 22.36004417 | F30: 604.0326679 | G30: 0.292935 | H30: 0.000172
A31: Японська єна | B31: 0.5498732387 | C31: 14.95152515 | D31: 0.007748 | E31: 0.5658341094 | F31: 15.28540302 | G31: 0.007413 | H31: -0.000335
A32: Гарантований державою борг | B32: =SUM(B$33:B$36) -> 10.25990233 | C32: 278.9755473 | D32: 0.144561 | E32: 11.32369124 | F32: 305.8974025 | G32: 0.148349 | H32: 0.003788
A33: Долар США | B33: 3.184629632 | C33: 86.5928121 | D33: 0.044871 | E33: 2.544892785 | F33: 68.74755555 | G33: 0.03334 | H33: -0.011531
A34: ЄВРО | B34: 0.1310866718 | C34: 3.564359079 | D34: 0.001847 | E34: 0.6914005631 | F34: 18.67744641 | G34: 0.009058 | H34: 0.007211
A35: СПЗ | B35: 6.242315006 | C35: 169.7339009 | D35: 0.087954 | E35: 7.339627364 | F35: 198.2721798 | G35: 0.096155 | H35: 0.008201
A36: Українська гривня | B36: 0.7018710203 | C36: 19.08447525 | D36: 0.009889 | E36: 0.7477705262 | F36: 20.20022065 | G36: 0.009796 | H36: -9.3e-05

Sheet CUR_M_EXT (hidden)
A2: Валютна структура боргу на кінець попереднього року та на звітну дату
N4: =VALVAL -> млрд. одиниць
B5: 2016-12-31 | H5: 2017-11-30
B6: оріг. | C6: курс до USD | D6: курс до UAH | E6: дол.США | F6: грн. | G6: % | H6: оріг. | I6: курс до USD | J6: курс до UAH | K6: дол.США | L6: грн. | M6: % | N6: Зміна структури
A7: Загальна сума державного та гарантованого державою боргу | E7: =SUM(E8:E23) -> 70.97270827 | F7: 1929.808832 | G7: 0.999999 | K7: =SUM(K8:K23) -> 76.33106904 | L7: 2062.002156 | M7: 1 | N7: 2.710505431e-18
A8: Долар США | B8: 31.63775002 | C8: 1 | D8: 27.190858 | E8: 31.63775002 | F8: 860.2575682 | G8: 0.445773 | H8: 32.52156628 | I8: 1 | J8: 27.01393 | K8: 32.52156628 | L8: 878.535315 | M8: 0.426059 | N8: -0.019714
A9: ЄВРО | B9: 3.763709171 | C9: 1.0453 | D9: 28.422604 | E9: 3.934205215 | F9: 106.9744153 | G9: 0.055433 | H9: 4.85884426 | I9: 1.1827 | J9: 31.949375 | K9: 5.746555104 | L9: 155.2370373 | M9: 0.075285 | N9: 0.019852
A10: Канадський долар | B10: 0.4 | C10: 0.738519 | D10: 20.080969 | E10: 0.295407655 | F10: 8.0323876 | G10: 0.004162 | H10: 0.4 | I10: 0.779323 | J10: 21.052567 | K10: 0.3117290524 | L10: 8.4210268 | M10: 0.004084 | N10: -7.8e-05
A11: СПЗ | B11: 9.726323407 | C11: 1.344332 | D11: 36.553534 | E11: 13.07540547 | F11: 355.5314934 | G11: 0.184231 | H11: 9.945873407 | I11: 1.415418 | J11: 38.236007 | K11: 14.0775698 | L11: 380.2904852 | M11: 0.184428 | N11: 0.000196
A12: Українська гривня | B12: 584.0614428 | C12: 0.036777 | D12: 1 | E12: 21.48006667 | F12: 584.0614428 | G12: 0.302652 | H12: 624.2328886 | I12: 0.037018 | J12: 1 | K12: 23.10781469 | L12: 624.2328886 | M12: 0.302731 | N12: 7.9e-05
A13: Японська єна | B13: 64.198346 | C13: 0.008565 | D13: 0.232896 | E13: 0.5498732387 | F13: 14.95152515 | G13: 0.007748 | H13: 63.26703 | I13: 0.008944 | J13: 0.241601 | K13: 0.5658341094 | L13: 15.28540302 | M13: 0.007413 | N13: -0.000335

Sheet CUR_CMP_EXT (hidden)
A2: Валютна структура боргу на кінець попереднього року та на звітну дату (розширений)
N4: =VALVAL -> млрд. одиниць
B5: 2016-12-31 | H5: 2017-11-30
B6: оріг. | C6: курс до USD | D6: курс до UAH | E6: дол.США | F6: грн. | G6: % | H6: оріг. | I6: курс до USD | J6: курс до UAH | K6: дол.США | L6: грн. | M6: % | N6: Зміна структури
A7: Загальна сума державного та гарантованого державою боргу | E7: =SUM(E8:E24) -> 70.97270827 | F7: 1929.808832 | G7: 0.999999 | K7: =SUM(K8:K24) -> 76.33106904 | L7: 2062.002156 | M7: 1 | N7: 2.710505431e-18
A8: Долар США | B8: 31.63775002 | C8: 1 | D8: 27.190858 | E8: 31.63775002 | F8: 860.2575682 | G8: 0.445773 | H8: 32.52156628 | I8: 1 | J8: 27.01393 | K8: 32.52156628 | L8: 878.535315 | M8: 0.426059 | N8: -0.019714
A9: ЄВРО | B9: 3.763709171 | C9: 1.0453 | D9: 28.422604 | E9: 3.934205215 | F9: 106.9744153 | G9: 0.055433 | H9: 4.85884426 | I9: 1.1827 | J9: 31.949375 | K9: 5.746555104 | L9: 155.2370373 | M9: 0.075285 | N9: 0.019852
A10: Канадський долар | B10: 0.4 | C10: 0.738519 | D10: 20.080969 | E10: 0.295407655 | F10: 8.0323876 | G10: 0.004162 | H10: 0.4 | I10: 0.779323 | J10: 21.052567 | K10: 0.3117290524 | L10: 8.4210268 | M10: 0.004084 | N10: -7.8e-05
A11: СПЗ | B11: 9.726323407 | C11: 1.344332 | D11: 36.553534 | E11: 13.07540547 | F11: 355.5314934 | G11: 0.184231 | H11: 9.945873407 | I11: 1.415418 | J11: 38.236007 | K11: 14.0775698 | L11: 380.2904852 | M11: 0.184428 | N11: 0.000196
A12: Українська гривня | B12: 584.0614428 | C12: 0.036777 | D12: 1 | E12: 21.48006667 | F12: 584.0614428 | G12: 0.302652 | H12: 624.2328886 | I12: 0.037018 | J12: 1 | K12: 23.10781469 | L12: 624.2328886 | M12: 0.302731 | N12: 7.9e-05
A13: Японська єна | B13: 64.198346 | C13: 0.008565 | D13: 0.232896 | E13: 0.5498732387 | F13: 14.95152515 | G13: 0.007748 | H13: 63.26703 | I13: 0.008944 | J13: 0.241601 | K13: 0.5658341094 | L13: 15.28540302 | M13: 0.007413 | N13: -0.000335
N23: =VALVAL -> млрд. одиниць
B24: 2016-12-31 | H24: 2017-11-30
B25: оріг. | C25: курс до USD | D25: курс до UAH | E25: дол.США | F25: грн. | G25: % | H25: оріг. | I25: курс до USD | J25: курс до UAH | K25: дол.США | L25: грн. | M25: % | N25: Зміна структури
A26: Загальна сума державного та гарантованого державою боргу | B26: =B$27+B$34 -> 693.7875714 | C26: 7.599902 | D26: 206.647857 | E26: 70.97270827 | F26: 1929.808832 | G26: 1 | H26: 735.2262025 | I26: 8.058539 | J26: 217.692792 | K26: 76.33106904 | L26: 2062.002156 | M26: 1 | N26: 0
A27: Державний борг | B27: =SUM(B$28:B$33) -> 666.7496273 | C27: 4.173493 | D27: 113.480861 | E27: 60.71280594 | F27: 1650.833285 | G27: 0.855439 | H27: 706.7110106 | I27: 4.423403 | J27: 119.49348 | K27: 65.00737781 | L27: 1756.104754 | M27: 0.851651 | N27: -0.003788
A28: Долар США | B28: 28.45312039 | C28: 1 | D28: 27.190858 | E28: 28.45312039 | F28: 773.6647561 | G28: 0.400902 | H28: 29.9766735 | I28: 1 | J28: 27.01393 | K28: 29.9766735 | L28: 809.7877595 | M28: 0.392719 | N28: -0.008183
A29: ЄВРО | B29: 3.638303382 | C29: 1.0453 | D29: 28.422604 | E29: 3.803118543 | F29: 103.4100563 | G29: 0.053586 | H29: 4.274249212 | I29: 1.1827 | J29: 31.949375 | K29: 5.055154541 | L29: 136.5595909 | M29: 0.066227 | N29: 0.012641
A30: Канадський долар | B30: 0.4 | C30: 0.738519 | D30: 20.080969 | E30: 0.295407655 | F30: 8.0323876 | G30: 0.004162 | H30: 0.4 | I30: 0.779323 | J30: 21.052567 | K30: 0.3117290524 | L30: 8.4210268 | M30: 0.004084 | N30: -7.8e-05
A31: СПЗ | B31: 5.08289 | C31: 1.344332 | D31: 36.553534 | E31: 6.833090461 | F31: 185.7975924 | G31: 0.096278 | H31: 4.76039 | I31: 1.415418 | J31: 38.236007 | K31: 6.737942438 | L31: 182.0183054 | M31: 0.088273 | N31: -0.008005
A32: Українська гривня | B32: 564.9769675 | C32: 0.036777 | D32: 1 | E32: 20.77819565 | F32: 564.9769675 | G32: 0.292763 | H32: 604.0326679 | I32: 0.037018 | J32: 1 | K32: 22.36004417 | L32: 604.0326679 | M32: 0.292935 | N32: 0.000172
A33: Японська єна | B33: 64.198346 | C33: 0.008565 | D33: 0.232896 | E33: 0.5498732387 | F33: 14.95152515 | G33: 0.007748 | H33: 63.26703 | I33: 0.008944 | J33: 0.241601 | K33: 0.5658341094 | L33: 15.28540302 | M33: 0.007413 | N33: -0.000335
A34: Гарантований державою борг | B34: =SUM(B$35:B$38) -> 27.03794408 | C34: 3.426409 | D34: 93.166996 | E34: 10.25990233 | F34: 278.9755473 | G34: 0.144561 | H34: 28.51519189 | I34: 3.635136 | J34: 98.199312 | K34: 11.32369124 | L34: 305.8974025 | M34: 0.148349 | N34: 0.003788
A35: Долар США | B35: 3.184629632 | C35: 1 | D35: 27.190858 | E35: 3.184629632 | F35: 86.5928121 | G35: 0.044871 | H35: 2.544892785 | I35: 1 | J35: 27.01393 | K35: 2.544892785 | L35: 68.74755555 | M35: 0.03334 | N35: -0.011531
A36: ЄВРО | B36: 0.125405789 | C36: 1.0453 | D36: 28.422604 | E36: 0.1310866718 | F36: 3.564359079 | G36: 0.001847 | H36: 0.584595048 | I36: 1.1827 | J36: 31.949375 | K36: 0.6914005631 | L36: 18.67744641 | M36: 0.009058 | N36: 0.007211
A37: СПЗ | B37: 4.643433407 | C37: 1.344332 | D37: 36.553534 | E37: 6.242315006 | F37: 169.7339009 | G37: 0.087954 | H37: 5.185483407 | I37: 1.415418 | J37: 38.236007 | K37: 7.339627364 | L37: 198.2721798 | M37: 0.096155 | N37: 0.008201
A38: Українська гривня | B38: 19.08447525 | C38: 0.036777 | D38: 1 | E38: 0.7018710203 | F38: 19.08447525 | G38: 0.009889 | H38: 20.20022065 | I38: 0.037018 | J38: 1 | K38: 0.7477705262 | L38: 20.20022065 | M38: 0.009796 | N38: -9.3e-05

Sheet DKT1 (hidden)
A2: ="Державний та гарантований державою борг України за станом на " & TEXT(DREPORTDATE,"dd.MM.yyyy") -> Державний та гарантований державою борг України за станом на 30.11.2017
A3: (за типом кредитора)
D5: =VALVAL -> млрд. одиниць
B6: дол.США | C6: грн. | D6: % | E6: FORMAT
A7: Загальна сума державного та гарантованого державою боргу | B7: =B$8+B$18 -> 76.33106904 | C7: 2062.002156 | D7: 1 | E7: 3
A8: Державний борг | B8: =B$9+B$12 -> 65.00737781 | C8: 1756.104754 | D8: 0.851651 | E8: 3
A9: Внутрішній борг | B9: =SUM(B$10:B$11) -> 26.52675633 | C9: 716.5919387 | D9: 0.347523 | E9: 2
A10: 1. Заборгованість за випущеними цінними паперами на внутрішньому ринку | B10: 26.43740952 | C10: 714.1783301 | D10: 0.346352 | E10: 1
A11: 2. Заборгованість перед банківськими та іншими фінансовими установами | B11: 0.08934681239 | C11: 2.413608536 | D11: 0.001171
A12: Зовнішній борг | B12: =SUM(B$13:B$17) -> 38.48062147 | C12: 1039.512815 | D12: 0.504128
A13: 1. Заборгованість за позиками, одержаними від міжнародних фінансових організацій | B13: 14.52347451 | C13: 392.3361237 | D13: 0.19027
A14: 2. Заборгованість за позиками, одержаними від органів управління іноземних держав | B14: 1.75168 | C14: 47.31976091 | D14: 0.022948
A15: 3. Заборгованість за позиками, одержаними від іноземних комерційних банків, інших іноземних фінансових установ | B15: 6.04705e-05 | C15: 0.00163354598 | D15: 1e-06
A16: 4. Заборгованість за випущеними цінними паперами на зовнішньому ринку | B16: 20.467273 | C16: 552.9014801 | D16: 0.268138
A17: 5. Заборгованість, не віднесена до інших категорій | B17: 1.738133496 | C17: 46.9538166 | D17: 0.022771
A18: Гарантований державою борг | B18: =B$19+B$23 -> 11.32369124 | C18: 305.8974025 | D18: 0.148349
A19: Внутрішній борг | B19: =SUM(B$20:B$22) -> 0.7477705262 | C19: 20.20022065 | D19: 0.009796
A20: 1. Заборгованість за випущеними цінними паперами на внутрішньому ринку | B20: 0.5904365488 | C20: 15.9500116 | D20: 0.007735
A21: 2. Заборгованість перед банківськими та іншими фінансовими установами | B21: 0.1572986382 | C21: 4.249254401 | D21: 0.002061
A22: 3. Заборгованість, не віднесена до інших категорій | B22: 3.533918e-05 | C22: 0.00095465 | D22: 0
A23: Зовнішній борг | B23: =SUM(B$24:B$27) -> 10.57592071 | C23: 285.6971818 | D23: 0.138553
A24: 1. Заборгованість за позиками, одержаними від міжнародних фінансових організацій | B24: 8.185702285 | C24: 221.1279885 | D24: 0.107239
A25: 2. Заборгованість за позиками, одержаними від органів управління іноземних держав | B25: 0.09747785328 | C25: 2.633259905 | D25: 0.001277
A26: 3. Заборгованість за позиками, одержаними від іноземних комерційних банків, інших іноземних фінансових установ | B26: 2.177464097 | C26: 58.82186269 | D26: 0.028527
A27: 5. Заборгованість, не віднесена до інших категорій | B27: 0.115276477 | C27: 3.11407068 | D27: 0.00151

Sheet DKR (hidden)
A2: ="Державний та гарантований державою борг України за станом на " & TEXT(DREPORTDATE,"dd.MM.yyyy") -> Державний та гарантований державою борг України за станом на 30.11.2017
A3: (за типом кредитора)
D5: =VALVAL -> млрд. одиниць
B6: дол.США | C6: грн. | D6: %
A7: Загальна сума державного та гарантованого державою боргу | B7: =SUM(B8:B46) -> 76.33106904 | C7: 2062.002156 | D7: 0.999998
A8: Внутрішній борг за випущеними цінними паперами | B8: 27.02784607 | C8: 730.1283417 | D8: 0.354087
A9: Внутрішній борг перед банківськими та іншими фінансовими установами | B9: 0.2466454506 | C9: 6.662862936 | D9: 0.003231
A10: Внутрішня заборгованість, не віднесена до інших категорій | B10: 3.533918e-05 | C10: 0.00095465 | D10: 0
A11: Зовнішній борг за випущеними цінними паперами | B11: 20.467273 | C11: 552.9014801 | D11: 0.268138
A12: Зовнішній борг за позиками, одержаними від іноземних комерційних банків, інших іноземних фінансових установ | B12: 2.177524567 | C12: 58.82349623 | D12: 0.028527
A13: Зовнішній борг за позиками, одержаними від міжнародних фінансових організацій | B13: 22.70917679 | C13: 613.4641122 | D13: 0.297509
A14: Зовнішній борг за позиками, одержаними від органів управління іноземних держав | B14: 1.849157853 | C14: 49.95302081 | D14: 0.024225
A15: Зовнішній борг, не віднесений до інших категорій | B15: 1.853409973 | C15: 50.06788728 | D15: 0.024281

Sheet DKR2 (hidden)
A1: ="Державний борг України за станом на " & TEXT(DREPORTDATE,"dd.MM.yyyy") -> Державний борг України за станом на 30.11.2017
A2: ="Гарантований державою борг України за станом на " & TEXT(DREPORTDATE,"dd.MM.yyyy") -> Гарантований державою борг України за станом на 30.11.2017
A3: ="Державний та гарантований державою борг України за станом на " & TEXT(DREPORTDATE,"dd.MM.yyyy") -> Державний та гарантований державою борг України за станом на 30.11.2017
A4: (за типом кредитора)
D6: =VALVAL -> млрд. одиниць
B7: дол.США | C7: грн. | D7: %
A8: Загальна сума державного та гарантованого державою боргу | B8: =B$9+B$17 -> 76.33106904 | C8: 2062.002156 | D8: 2.092704
A9: Державний борг | B9: =SUM(B$10:B$16) -> 65.00737781 | C9: 1756.104754 | D9: 1.251651
A10: Внутрішній борг за випущеними цінними паперами | B10: 26.43740952 | C10: 714.1783301 | D10: 0.346352
A11: Внутрішній борг перед банківськими та іншими фінансовими установами | B11: 0.08934681239 | C11: 2.413608536 | D11: 0.001171
A12: Зовнішній борг за випущеними цінними паперами | B12: 20.467273 | C12: 552.9014801 | D12: 0.268138
A13: Зовнішній борг за позиками, одержаними від іноземних комерційних банків, інших іноземних фінансових установ | B13: 6.04705e-05 | C13: 0.00163354598 | D13: 1e-06
A14: Зовнішній борг за позиками, одержаними від міжнародних фінансових організацій | B14: 14.52347451 | C14: 392.3361237 | D14: 0.19027
A15: Зовнішній борг за позиками, одержаними від органів управління іноземних держав | B15: 1.75168 | C15: 47.31976091 | D15: 0.022948
A16: Зовнішній борг, не віднесений до інших категорій | B16: 1.738133496 | C16: 46.9538166 | D16: 0.022771
A17: Гарантований державою борг | B17: =SUM(B$18:B$24) -> 11.32369124 | C17: 305.8974025 | D17: 0.148349
A18: Внутрішній борг за випущеними цінними паперами | B18: 0.5904365488 | C18: 15.9500116 | D18: 0.007735
A19: Внутрішній борг перед банківськими та іншими фінансовими установами | B19: 0.1572986382 | C19: 4.249254401 | D19: 0.002061
A20: Внутрішня заборгованість, не віднесена до інших категорій | B20: 3.533918e-05 | C20: 0.00095465 | D20: 0
A21: Зовнішній борг за позиками, одержаними від іноземних комерційних банків, інших іноземних фінансових установ | B21: 2.177464097 | C21: 58.82186269 | D21: 0.028527
A22: Зовнішній борг за позиками, одержаними від міжнародних фінансових організацій | B22: 8.185702285 | C22: 221.1279885 | D22: 0.107239
A23: Зовнішній борг за позиками, одержаними від органів управління іноземних держав | B23: 0.09747785328 | C23: 2.633259905 | D23: 0.001277
A24: Зовнішній борг, не віднесений до інших категорій | B24: 0.115276477 | C24: 3.11407068 | D24: 0.00151

Sheet YT_ALL (hidden)
A2: Державний та гарантований державою борг України за останні 5 років
A4: =$A$2 & " (" &G4 & ")" -> Державний та гарантований державою борг України за останні 5 років (млрд. грн) | G4: =VALUAH -> млрд. грн
B5: 2012-12-31 | C5: 2013-12-31 | D5: 2014-12-31 | E5: 2015-12-31 | F5: 2016-12-31 | G5: 2017-11-30
A6: Загальна сума державного та гарантованого державою боргу | B6: =SUM(B$7+ B$8) -> 515.5108331 | C6: 584.7865709 | D6: 1100.833217 | E6: 1572.180159 | F6: 1929.808832 | G6: 2062.002156
A7: Внутрішній борг | B7: 206.5107136 | C7: 284.0887255 | D7: 488.8669074 | E7: 529.460578 | F7: 689.7300058 | G7: 736.7921593
A8: Зовнішній борг | B8: 309.0001195 | C8: 300.6978455 | D8: 611.9663093 | E8: 1042.719581 | F8: 1240.078827 | G8: 1325.209997
A10: =$A$2 & " (" &G10 & ")" -> Державний та гарантований державою борг України за останні 5 років (млрд. дол. США) | G10: =VALUSD -> млрд. дол. США
B11: 2012-12-31 | C11: 2013-12-31 | D11: 2014-12-31 | E11: 2015-12-31 | F11: 2016-12-31 | G11: 2017-11-30
A12: Загальна сума державного та гарантованого державою боргу | B12: =SUM(B$13+ B$14) -> 64.49528751 | C12: 73.16233841 | D12: 69.81192296 | E12: 65.50568611 | F12: 70.97270827 | G12: 76.33106904
A13: Внутрішній борг | B13: 25.83644609 | C13: 35.5421901 | D13: 31.00264269 | E13: 22.06024433 | F13: 25.36624647 | G13: 27.27452686
A14: Зовнішній борг | B14: 38.65884142 | C14: 37.62014831 | D14: 38.80928028 | E14: 43.44544179 | F14: 45.6064618 | G14: 49.05654219
G16: %
B17: 2012-12-31 | C17: 2013-12-31 | D17: 2014-12-31 | E17: 2015-12-31 | F17: 2016-12-31 | G17: 2017-11-30
A18: Загальна сума державного та гарантованого державою боргу | B18: =SUM(B$19+ B$20) -> 1 | C18: 1 | D18: 1 | E18: 1 | F18: 1 | G18: 1
A19: Внутрішній борг | B19: 0.400594 | C19: 0.485799 | D19: 0.444088 | E19: 0.336768 | F19: 0.357408 | G19: 0.357319
A20: Зовнішній борг | B20: 0.599406 | C20: 0.514201 | D20: 0.555912 | E20: 0.663232 | F20: 0.642592 | G20: 0.642681

Sheet YTM_ALL (hidden)
A2: Державний та гарантований державою борг України за останні 5 років
G4: млрд. грн.
B5: =YT_ALL!B5 -> 2012-12-31 | C5: =YT_ALL!C5 -> 2013-12-31 | D5: =YT_ALL!D5 -> 2014-12-31 | E5: =YT_ALL!E5 -> 2015-12-31 | F5: =YT_ALL!F5 -> 2016-12-31 | G5: =YT_ALL!G5 -> 2017-11-30
A6: Загальна сума державного та гарантованого державою боргу | B6: =SUM(B$7+ B$8) -> 515.5108331 | C6: 584.7865709 | D6: 1100.833217 | E6: 1572.180159 | F6: 1929.808832 | G6: 2062.002156
A7: =YT_ALL!A7 -> Внутрішній борг | B7: =YT_ALL!B7/DMLMLR -> 206.5107136 | C7: =YT_ALL!C7/DMLMLR -> 284.0887255 | D7: =YT_ALL!D7/DMLMLR -> 488.8669074 | E7: =YT_ALL!E7/DMLMLR -> 529.460578 | F7: =YT_ALL!F7/DMLMLR -> 689.7300058 | G7: =YT_ALL!G7/DMLMLR -> 736.7921593
A8: =YT_ALL!A8 -> Зовнішній борг | B8: =YT_ALL!B8/DMLMLR -> 309.0001195 | C8: =YT_ALL!C8/DMLMLR -> 300.6978455 | D8: =YT_ALL!D8/DMLMLR -> 611.9663093 | E8: =YT_ALL!E8/DMLMLR -> 1042.719581 | F8: =YT_ALL!F8/DMLMLR -> 1240.078827 | G8: =YT_ALL!G8/DMLMLR -> 1325.209997
G10: млрд. дол.США
B11: =YT_ALL!B11 -> 2012-12-31 | C11: =YT_ALL!C11 -> 2013-12-31 | D11: =YT_ALL!D11 -> 2014-12-31 | E11: =YT_ALL!E11 -> 2015-12-31 | F11: =YT_ALL!F11 -> 2016-12-31 | G11: =YT_ALL!G11 -> 2017-11-30
A12: Загальна сума державного та гарантованого державою боргу | B12: =SUM(B$13+ B$14) -> 64.49528751 | C12: 73.16233841 | D12: 69.81192296 | E12: 65.50568611 | F12: 70.97270827 | G12: 76.33106904
A13: =YT_ALL!A13 -> Внутрішній борг | B13: =YT_ALL!B13/DMLMLR -> 25.83644609 | C13: =YT_ALL!C13/DMLMLR -> 35.5421901 | D13: =YT_ALL!D13/DMLMLR -> 31.00264269 | E13: =YT_ALL!E13/DMLMLR -> 22.06024433 | F13: =YT_ALL!F13/DMLMLR -> 25.36624647 | G13: =YT_ALL!G13/DMLMLR -> 27.27452686
A14: =YT_ALL!A14 -> Зовнішній борг | B14: =YT_ALL!B14/DMLMLR -> 38.65884142 | C14: =YT_ALL!C14/DMLMLR -> 37.62014831 | D14: =YT_ALL!D14/DMLMLR -> 38.80928028 | E14: =YT_ALL!E14/DMLMLR -> 43.44544179 | F14: =YT_ALL!F14/DMLMLR -> 45.6064618 | G14: =YT_ALL!G14/DMLMLR -> 49.05654219
G16: %
B17: =YT_ALL!B17 -> 2012-12-31 | C17: =YT_ALL!C17 -> 2013-12-31 | D17: =YT_ALL!D17 -> 2014-12-31 | E17: =YT_ALL!E17 -> 2015-12-31 | F17: =YT_ALL!F17 -> 2016-12-31 | G17: =YT_ALL!G17 -> 2017-11-30
A18: Загальна сума державного та гарантованого державою боргу | B18: =SUM(B$19+ B$20) -> 1 | C18: 1 | D18: 1 | E18: 1 | F18: 1 | G18: 1
A19: =YT_ALL!A19 -> Внутрішній борг | B19: =YT_ALL!B19 -> 0.400594 | C19: =YT_ALL!C19 -> 0.485799 | D19: =YT_ALL!D19 -> 0.444088 | E19: =YT_ALL!E19 -> 0.336768 | F19: =YT_ALL!F19 -> 0.357408 | G19: =YT_ALL!G19 -> 0.357319
A20: =YT_ALL!A20 -> Зовнішній борг | B20: =YT_ALL!B20 -> 0.599406 | C20: =YT_ALL!C20 -> 0.514201 | D20: =YT_ALL!D20 -> 0.555912 | E20: =YT_ALL!E20 -> 0.663232 | F20: =YT_ALL!F20 -> 0.642592 | G20: =YT_ALL!G20 -> 0.642681

Sheet YKM_ALL (hidden)
A2: Державний та гарантований державою борг України за останні 5 років
G4: млрд. грн.
B5: =YT_ALL!B5 -> 2012-12-31 | C5: =YT_ALL!C5 -> 2013-12-31 | D5: =YT_ALL!D5 -> 2014-12-31 | E5: =YT_ALL!E5 -> 2015-12-31 | F5: =YT_ALL!F5 -> 2016-12-31 | G5: =YT_ALL!G5 -> 2017-11-30
A6: Загальна сума державного та гарантованого державою боргу | B6: =SUM(B$7+ B$8) -> 515.5108331 | C6: 584.7865709 | D6: 1100.833217 | E6: 1572.180159 | F6: 1929.808832 | G6: 2062.002156
A7: =YK_ALL!A7 -> Державний борг | B7: =YK_ALL!B7/DMLMLR -> 399.2182341 | C7: =YK_ALL!C7/DMLMLR -> 480.2186294 | D7: =YK_ALL!D7/DMLMLR -> 947.0304691 | E7: =YK_ALL!E7/DMLMLR -> 1334.271601 | F7: =YK_ALL!F7/DMLMLR -> 1650.833285 | G7: =YK_ALL!G7/DMLMLR -> 1756.104754
A8: =YK_ALL!A8 -> Гарантований державою борг | B8: =YK_ALL!B8/DMLMLR -> 116.292599 | C8: =YK_ALL!C8/DMLMLR -> 104.5679415 | D8: =YK_ALL!D8/DMLMLR -> 153.8027476 | E8: =YK_ALL!E8/DMLMLR -> 237.9085577 | F8: =YK_ALL!F8/DMLMLR -> 278.9755473 | G8: =YK_ALL!G8/DMLMLR -> 305.8974025
G10: млрд. дол.США
B11: =YT_ALL!B11 -> 2012-12-31 | C11: =YT_ALL!C11 -> 2013-12-31 | D11: =YT_ALL!D11 -> 2014-12-31 | E11: =YT_ALL!E11 -> 2015-12-31 | F11: =YT_ALL!F11 -> 2016-12-31 | G11: =YT_ALL!G11 -> 2017-11-30
A12: Загальна сума державного та гарантованого державою боргу | B12: =SUM(B$13+ B$14) -> 64.49528751 | C12: 73.16233841 | D12: 69.81192296 | E12: 65.50568611 | F12: 70.97270827 | G12: 76.33106904
A13: =YK_ALL!A13 -> Державний борг | B13: =YK_ALL!B13/DMLMLR -> 49.945982 | C13: =YK_ALL!C13/DMLMLR -> 60.07989859 | D13: =YK_ALL!D13/DMLMLR -> 60.05816063 | E13: =YK_ALL!E13/DMLMLR -> 55.59310503 | F13: =YK_ALL!F13/DMLMLR -> 60.71280594 | G13: =YK_ALL!G13/DMLMLR -> 65.00737781
A14: =YK_ALL!A14 -> Гарантований державою борг | B14: =YK_ALL!B14/DMLMLR -> 14.54930551 | C14: =YK_ALL!C14/DMLMLR -> 13.08243982 | D14: =YK_ALL!D14/DMLMLR -> 9.753762333 | E14: =YK_ALL!E14/DMLMLR -> 9.912581084 | F14: =YK_ALL!F14/DMLMLR -> 10.25990233 | G14: =YK_ALL!G14/DMLMLR -> 11.32369124
G16: %
B17: =YT_ALL!B17 -> 2012-12-31 | C17: =YT_ALL!C17 -> 2013-12-31 | D17: =YT_ALL!D17 -> 2014-12-31 | E17: =YT_ALL!E17 -> 2015-12-31 | F17: =YT_ALL!F17 -> 2016-12-31 | G17: =YT_ALL!G17 -> 2017-11-30
A18: Загальна сума державного та гарантованого державою боргу | B18: =SUM(B$19+ B$20) -> 1 | C18: 1 | D18: 1 | E18: 1 | F18: 1 | G18: 1
A19: =YK_ALL!A19 -> Державний борг | B19: =YK_ALL!B19 -> 0.774413 | C19: =YK_ALL!C19 -> 0.821186 | D19: =YK_ALL!D19 -> 0.860285 | E19: =YK_ALL!E19 -> 0.848676 | F19: =YK_ALL!F19 -> 0.855439 | G19: =YK_ALL!G19 -> 0.85165
A20: =YK_ALL!A20 -> Гарантований державою борг | B20: =YK_ALL!B20 -> 0.225587 | C20: =YK_ALL!C20 -> 0.178814 | D20: =YK_ALL!D20 -> 0.139715 | E20: =YK_ALL!E20 -> 0.151324 | F20: =YK_ALL!F20 -> 0.144561 | G20: =YK_ALL!G20 -> 0.14835

Sheet YK_ALL (hidden)
A2: Державний та гарантований державою борг України за останні 5 років
G4: =VALUAH -> млрд. грн
B5: 2012-12-31 | C5: 2013-12-31 | D5: 2014-12-31 | E5: 2015-12-31 | F5: 2016-12-31 | G5: 2017-11-30
A6: Загальна сума державного та гарантованого державою боргу | B6: =SUM(B$7+ B$8) -> 515.5108331 | C6: 584.7865709 | D6: 1100.833217 | E6: 1572.180159 | F6: 1929.808832 | G6: 2062.002156
A7: Державний борг | B7: 399.2182341 | C7: 480.2186294 | D7: 947.0304691 | E7: 1334.271601 | F7: 1650.833285 | G7: 1756.104754
A8: Гарантований державою борг | B8: 116.292599 | C8: 104.5679415 | D8: 153.8027476 | E8: 237.9085577 | F8: 278.9755473 | G8: 305.8974025
G10: =VALUSD -> млрд. дол. США
B11: 2012-12-31 | C11: 2013-12-31 | D11: 2014-12-31 | E11: 2015-12-31 | F11: 2016-12-31 | G11: 2017-11-30
A12: Загальна сума державного та гарантованого державою боргу | B12: =SUM(B$13+ B$14) -> 64.49528751 | C12: 73.16233841 | D12: 69.81192296 | E12: 65.50568611 | F12: 70.97270827 | G12: 76.33106904
A13: Державний борг | B13: 49.945982 | C13: 60.07989859 | D13: 60.05816063 | E13: 55.59310503 | F13: 60.71280594 | G13: 65.00737781
A14: Гарантований державою борг | B14: 14.54930551 | C14: 13.08243982 | D14: 9.753762333 | E14: 9.912581084 | F14: 10.25990233 | G14: 11.32369124
G16: %
B17: 2012-12-31 | C17: 2013-12-31 | D17: 2014-12-31 | E17: 2015-12-31 | F17: 2016-12-31 | G17: 2017-11-30
A18: Загальна сума державного та гарантованого державою боргу | B18: =SUM(B$19+ B$20) -> 1 | C18: 1 | D18: 1 | E18: 1 | F18: 1 | G18: 1
A19: Державний борг | B19: 0.774413 | C19: 0.821186 | D19: 0.860285 | E19: 0.848676 | F19: 0.855439 | G19: 0.85165
A20: Гарантований державою борг | B20: 0.225587 | C20: 0.178814 | D20: 0.139715 | E20: 0.151324 | F20: 0.144561 | G20: 0.14835

Sheet YKT2_UAH
A2: Державний та гарантований державою борг України за останні 5 років
G4: =VALUAH -> млрд. грн
B5: 2012-12-31 | C5: 2013-12-31 | D5: 2014-12-31 | E5: 2015-12-31 | F5: 2016-12-31 | G5: 2017-11-30
A6: Загальна сума державного та гарантованого державою боргу | B6: =B$7+B$81 -> 515.5108331 | C6: 584.7865709 | D6: 1100.833217 | E6: 1572.180159 | F6: 1929.808832 | G6: 2062.002156
A7: Державний борг | B7: =B$8+B$48 -> 399.2182341 | C7: 480.2186294 | D7: 947.0304691 | E7: 1334.271601 | F7: 1650.833285 | G7: 1756.104754
A8: Внутрішній борг | B8: =B$9+B$46 -> 190.2992977 | C8: 256.9595757 | D8: 461.0036228 | E8: 508.0011231 | F8: 670.6455305 | G8: 716.5919387
A9: 1. Заборгованість за випущеними цінними паперами на внутрішньому ринку | B9: =SUM(B$10:B$45) -> 187.2574897 | C9: 254.0500202 | D9: 458.2263198 | E9: 505.3560727 | F9: 668.1327326 | G9: 714.1783301
A10: Казначейські зобов'язання | B10: 0.8262324135 | C10: 1.5986 | D10: 0.088426 | E10: 0.098638 | F10: 0 | G10: 0
A11: ОВДП (1 - місячні) | B11: 0 | C11: 2.360977795 | D11: 0 | E11: 0 | F11: 0 | G11: 0
A12: ОВДП (10 - річні) | B12: 15.412189 | C12: 15.742189 | D12: 50.254465 | E12: 60.558463 | F12: 74.832983 | G12: 50.585439
A13: ОВДП (11 - річні) | B13: 3.849981 | C13: 3.849981 | D13: 3.849981 | E13: 17.382981 | F13: 17.382981 | G13: 15.033
A14: ОВДП (12 - місячні) | B14: 14.39281113 | C14: 2.9587168 | D14: 7.33788948 | E14: 8.283710212 | F14: 3.47757 | G14: 3.37629
A15: ОВДП (12 - річні) | B15: 1.5 | C15: 1.5 | D15: 1.5 | E15: 12.5 | F15: 28.5 | G15: 36.5
A16: ОВДП (13 - річні) | B16: 0 | C16: 0 | D16: 2.61763 | E16: 13.11763 | F16: 37.11763 | G16: 28.700001
A17: ОВДП (14 - річні) | B17: 0 | C17: 0 | D17: 3.25 | E17: 3.25 | F17: 51.25 | G17: 46.9
A18: ОВДП (15 - річні) | B18: 0 | C18: 0 | D18: 15.84884 | E18: 15.84884 | F18: 42.789838 | G18: 87.688537
A19: ОВДП (16 - річні) | B19: 0 | C19: 0 | D19: 0 | E19: 0 | F19: 0 | G19: 6.048872
A20: ОВДП (17 - річні) | B20: 0 | C20: 0 | D20: 0 | E20: 0 | F20: 0 | G20: 6.048872
A21: ОВДП (18 - місячні) | B21: 5.709035823 | C21: 2.803424855 | D21: 0.76931632 | E21: 1.04892516 | F21: 29.25796141 | G21: 24.13705451
A22: ОВДП (18 - річні) | B22: 0 | C22: 0 | D22: 0 | E22: 0 | F22: 0 | G22: 24.195488
A23: ОВДП (19 - річні) | B23: 0 | C23: 0 | D23: 0 | E23: 0 | F23: 0 | G23: 12.097744
A24: ОВДП (2 - річні) | B24: 11.0783616 | C24: 20.37080624 | D24: 40.90737357 | E24: 21.91034234 | F24: 64.35343953 | G24: 69.36176136
A25: ОВДП (20 - річні) | B25: 0 | C25: 0 | D25: 0 | E25: 0 | F25: 0 | G25: 12.097744
A26: ОВДП (21-річні) | B26: 0 | C26: 0 | D26: 0 | E26: 0 | F26: 0 | G26: 12.097744
A27: ОВДП (22-річні) | B27: 0 | C27: 0 | D27: 0 | E27: 0 | F27: 0 | G27: 6.048872
A28: ОВДП (23-річні) | B28: 0 | C28: 0 | D28: 0 | E28: 0 | F28: 0 | G28: 18.146616
A29: ОВДП (24-річні) | B29: 0 | C29: 0 | D29: 0 | E29: 0 | F29: 0 | G29: 12.097744
A30: ОВДП (25-річні) | B30: 0 | C30: 0 | D30: 0 | E30: 0 | F30: 0 | G30: 12.097744
A31: ОВДП (26-річні) | B31: 0 | C31: 0 | D31: 0 | E31: 0 | F31: 0 | G31: 12.097744
A32: ОВДП (27-річні) | B32: 0 | C32: 0 | D32: 0 | E32: 0 | F32: 0 | G32: 12.097744
A33: ОВДП (28-річні) | B33: 0 | C33: 0 | D33: 0 | E33: 0 | F33: 0 | G33: 12.097744
A34: ОВДП (29-річні) | B34: 0 | C34: 0 | D34: 0 | E34: 0 | F34: 0 | G34: 12.097744
A35: ОВДП (3 - місячні) | B35: 0 | C35: 0 | D35: 0 | E35: 0 | F35: 0.01 | G35: 0
A36: ОВДП (3 - річні) | B36: 28.45427742 | C36: 34.65649649 | D36: 46.58505481 | E36: 43.37723613 | F36: 18.462385 | G36: 45.17081845
A37: ОВДП (30-річні) | B37: 0 | C37: 0 | D37: 0 | E37: 0 | F37: 0 | G37: 12.097751
A38: ОВДП (4 - річні) | B38: 1.598269 | C38: 6.5181647 | D38: 2.92218286 | E38: 15.04510672 | F38: 15.58553728 | G38: 0.03
A39: ОВДП (5 - річні) | B39: 32.6656933 | C39: 75.31738528 | D39: 131.3797728 | E39: 149.0338121 | F39: 151.5696514 | G39: 59.3107018
A40: ОВДП (6 - місячні) | B40: 0 | C40: 0.55379 | D40: 0.17 | E40: 0 | F40: 0.215801 | G40: 0
A41: ОВДП (6 - річні) | B41: 9.5 | C41: 9.5 | D41: 27.1 | E41: 27.1 | F41: 24.1 | G41: 7.8901
A42: ОВДП (7 - річні) | B42: 33.095042 | C42: 47.143891 | D42: 54.624791 | E42: 48.624791 | F42: 44.739791 | G42: 19.72846
A43: ОВДП (8 - річні) | B43: 14.301198 | C43: 14.301198 | D43: 31.301198 | E43: 31.301198 | F43: 27.416198 | G43: 18.9
A44: ОВДП (9 - місячні) | B44: 0 | C44: 0 | D44: 0.845 | E44: 0 | F44: 0.196567 | G44: 0
A45: ОВДП (9 - річні) | B45: 14.874399 | C45: 14.874399 | D45: 36.874399 | E45: 36.874399 | F45: 36.874399 | G45: 19.4
A46: 2. Заборгованість перед банківськими та іншими фінансовими установами | B46: =SUM(B$47:B$47) -> 3.041808018 | C46: 2.909555495 | D46: 2.777302973 | E46: 2.64505045 | F46: 2.512797928 | G46: 2.413608536
A47: Національний банк України | B47: 3.041808018 | C47: 2.909555495 | D47: 2.777302973 | E47: 2.64505045 | F47: 2.512797928 | G47: 2.413608536
A48: Зовнішній борг | B48: =B$49+B$56+B$64+B$66+B$79 -> 208.9189364 | C48: 223.2590538 | D48: 486.0268463 | E48: 826.2704782 | F48: 980.1877545 | G48: 1039.512815
A49: 1. Заборгованість за позиками, одержаними від міжнародних фінансових організацій | B49: =SUM(B$50:B$55) -> 80.09720305 | C49: 61.90365009 | D49: 169.0899033 | E49: 337.4492911 | F49: 371.8465755 | G49: 392.3361237
A50: Європейське Співтовариство | B50: 0 | C50: 0 | D50: 26.15675488 | E50: 57.95311509 | F50: 62.81395484 | G50: 89.77774375
A51: Європейський банк реконструкції та розвитку | B51: 4.266735656 | C51: 4.766645754 | D51: 9.368981111 | E51: 13.99069907 | F51: 16.0723087 | G51: 16.76019868
A52: Європейський Інвестиційний Банк | B52: 3.203300288 | C52: 4.283134554 | D52: 7.652991944 | E52: 12.53014512 | F52: 14.52237776 | G52: 18.46337323
A53: Міжнародний банк реконструкції та розвитку | B53: 24.23351704 | C53: 24.53954845 | D53: 68.31898228 | E53: 124.7471258 | F53: 137.4605065 | G53: 132.1553652
A54: Міжнародний Валютний Фонд | B54: 48.39365006 | C54: 28.31432133 | D54: 57.58509724 | E54: 128.2076972 | F54: 140.9098527 | G54: 135.0644888
A55: Фонд чистих технологій (МБРР) | B55: 0 | C55: 0 | D55: 0.0070958502 | E55: 0.02050886997 | F55: 0.06757499901 | G55: 0.114954112
A56: 2. Заборгованість за позиками, одержаними від органів управління іноземних держав | B56: =SUM(B$57:B$63) -> 9.099501375 | C56: 7.278928575 | D56: 16.37226171 | E56: 32.70852715 | F56: 45.64750416 | G56: 47.31976091
A57: Італія | B57: 0.08464974598 | C57: 0 | D57: 0 | E57: 0 | F57: 0 | G57: 0
A58: Канада | B58: 0 | C58: 0 | D58: 2.7121072 | E58: 6.9140144 | F58: 8.0323876 | G58: 8.4210268
A59: Німеччина | B59: 0.4819254518 | C59: 0.1064888486 | D59: 0.134630356 | E59: 5.428187703 | F59: 5.983279353 | G59: 7.041556027
A60: Росія | B60: 6.405237389 | C60: 5.623921639 | D60: 9.553472056 | E60: 14.54094475 | F60: 16.47374066 | G60: 16.36654779
A61: США | B61: 0.2648623985 | C61: 0.09489139132 | D61: 0.1647326001 | E61: 0.216533956 | F61: 0.2065714027 | G61: 0.2052272647
A62: Франція | B62: 0.02220053566 | C62: 0 | D62: 0 | E62: 0 | F62: 0 | G62: 0
A63: Японія | B63: 1.840625854 | C63: 1.453626696 | D63: 3.807319496 | E63: 5.608846349 | F63: 14.95152515 | G63: 15.28540302
A64: 3. Заборгованість за позиками, одержаними від іноземних комерційних банків, інших іноземних фінансових установ | B64: =SUM(B$65:B$65) -> 0.00053875717 | C64: 0.0005645446 | D64: 0.0009833632 | E64: 0.00134076761 | F64: 0.001453225 | G64: 0.00163354598
A65: Chase Manhattan Bank Luxembourg S.A. | B65: 0.00053875717 | C65: 0.0005645446 | D65: 0.0009833632 | E65: 0.00134076761 | F65: 0.001453225 | G65: 0.00163354598
A66: 4. Заборгованість за випущеними цінними паперами на зовнішньому ринку | B66: =SUM(B$67:B$78) -> 104.6362032 | C66: 138.909068 | D66: 272.5093466 | E66: 415.2699327 | F66: 517.8044819 | G66: 552.9014801
A67: ОЗДП 2003 року | B67: 7.993 | C67: 0 | D67: 0 | E67: 0 | F67: 0 | G67: 0
A68: ОЗДП 2005 року | B68: 6.3223032 | C68: 6.624918 | D68: 11.5397448 | E68: 0 | F68: 0 | G68: 0
A69: ОЗДП 2006 року | B69: 7.993 | C69: 7.993 | D69: 15.768556 | E69: 0 | F69: 0 | G69: 0
A70: ОЗДП 2007 року | B70: 5.5951 | C70: 5.5951 | D70: 11.0379892 | E70: 0 | F70: 0 | G70: 0
A71: ОЗДП 2010 року | B71: 15.986 | C71: 15.986 | D71: 31.537112 | E71: 0 | F71: 0 | G71: 0
A72: ОЗДП 2011 року | B72: 21.98075 | C72: 21.98075 | D72: 43.363529 | E72: 0 | F72: 0 | G72: 0
A73: ОЗДП 2012 року | B73: 38.76605 | C73: 46.75905 | D73: 76.4774966 | E73: 0 | F73: 0 | G73: 0
A74: ОЗДП 2013 року | B74: 0 | C74: 33.97025 | D74: 67.016363 | E74: 72.002001 | F74: 81.572574 | G74: 81.04179
A75: ОЗДП 2014 року | B75: 0 | C75: 0 | D75: 15.768556 | E75: 24.000667 | F75: 27.190858 | G75: 27.01393
A76: ОЗДП 2015 року | B76: 0 | C76: 0 | D76: 0 | E76: 319.2672647 | F76: 381.8501919 | G76: 336.7900401
A77: ОЗДП 2016 року | B77: 0 | C77: 0 | D77: 0 | E77: 0 | F77: 27.190858 | G77: 27.01393
A78: ОЗДП 2017 року | B78: 0 | C78: 0 | D78: 0 | E78: 0 | F78: 0 | G78: 81.04179
A79: 5. Заборгованість, не віднесена до інших категорій | B79: =SUM(B$80:B$80) -> 15.08549003 | C79: 15.16684257 | D79: 28.05435136 | E79: 40.84138642 | F79: 44.88773975 | G79: 46.9538166
A80: Міжнародний Валютний Фонд | B80: 15.08549003 | C80: 15.16684257 | D80: 28.05435136 | E80: 40.84138642 | F80: 44.88773975 | G80: 46.9538166
A81: Гарантований державою борг | B81: =B$82+B$102 -> 116.292599 | C81: 104.5679415 | D81: 153.8027476 | E81: 237.9085577 | F81: 278.9755473 | G81: 305.8974025
A82: Внутрішній борг | B82: =B$83+B$96+B$100 -> 16.2114159 | C82: 27.12914981 | D82: 27.86328456 | E82: 21.45945491 | F82: 19.08447525 | G82: 20.20022065
A83: 1. Заборгованість за випущеними цінними паперами на внутрішньому ринку | B83: =SUM(B$84:B$95) -> 9.971204724 | C83: 21.13576798 | D83: 21.5670116 | E83: 16.4000116 | F83: 15.9500116 | G83: 15.9500116
A84: Векселі Укравтодору | B84: 1.567787124 | C84: 0.9998503833 | D84: 0 | E84: 0 | F84: 0 | G84: 0
A85: Державні цінні папери | B85: 1.16e-05 | C85: 1.16e-05 | D85: 1.16e-05 | E85: 1.16e-05 | F85: 1.16e-05 | G85: 1.16e-05
A86: Облігації ДІУ (10 - річні) | B86: 0 | C86: 0 | D86: 1 | E86: 1 | F86: 1 | G86: 1
A87: Облігації ДІУ (5 - річні) | B87: 1.8175 | C87: 1.8 | D87: 3 | E87: 3 | F87: 3 | G87: 3
A88: Облігації ДІУ (7 - річні) | B88: 0.4 | C88: 1.4 | D88: 3.2 | E88: 3.2 | F88: 3 | G88: 3
A89: Облігації ДП КАЗ "Авіант" (5 - річні) | B89: 0.578906 | C89: 0.578906 | D89: 0 | E89: 0 | F89: 0 | G89: 0
A90: Облігації НАК "Нафтогаз України" (3 - річні) | B90: 0 | C90: 4.8 | D90: 4.8 | E90: 4.8 | F90: 4.8 | G90: 4.8
A91: Облігації Укравтодору (12 - місячні) | B91: 0 | C91: 1.55 | D91: 0 | E91: 0 | F91: 0 | G91: 0
A92: Облігації Укравтодору (3 - річні) | B92: 4 | C92: 4.25 | D92: 4.25 | E92: 0.25 | F92: 0 | G92: 0
A93: Облігації Укравтодору (5 - річні) | B93: 0 | C93: 4.15 | D93: 4.15 | E93: 4.15 | F93: 4.15 | G93: 4.15
A94: Облігації ХДАВП (5 - річні) | B94: 0.88 | C94: 0.88 | D94: 0.44 | E94: 0 | F94: 0 | G94: 0
A95: Облігації ХДАВП (6 - річні) | B95: 0.727 | C95: 0.727 | D95: 0.727 | E95: 0 | F95: 0 | G95: 0
A96: 2. Заборгованість перед банківськими та іншими фінансовими установами | B96: =SUM(B$97:B$99) -> 6.23925653 | C96: 5.992427177 | D96: 6.295318313 | E96: 5.058488655 | F96: 3.133508998 | G96: 4.249254401
A97: ВАТ "Державний експортно-імпортний банк України" | B97: 2.1 | C97: 2.1 | D97: 2.1 | E97: 1.05 | F97: 0 | G97: 0.4314411247
A98: ВАТ "Державний ощадний банк України" | B98: 4.13925653 | C98: 3.892427177 | D98: 4.009862318 | E98: 3.859862318 | F98: 3.021712318 | G98: 3.728370846
A99: ПАТ АБ "Укргазбанк" | B99: 0 | C99: 0 | D99: 0.1854559944 | E99: 0.1486263373 | F99: 0.1117966802 | G99: 0.08944243001
A100: 3. Заборгованість, не віднесена до інших категорій | B100: =SUM(B$101:B$101) -> 0.00095465 | C100: 0.00095465 | D100: 0.00095465 | E100: 0.00095465 | F100: 0.00095465 | G100: 0.00095465
A101: Інші кредитори | B101: 0.00095465 | C101: 0.00095465 | D101: 0.00095465 | E101: 0.00095465 | F101: 0.00095465 | G101: 0.00095465
A102: Зовнішній борг | B102: =B$103+B$109+B$111+B$125+B$129 -> 100.0811831 | C102: 77.4387917 | D102: 125.939463 | E102: 216.4491028 | F102: 259.8910721 | G102: 285.6971818
A103: 1. Заборгованість за позиками, одержаними від міжнародних фінансових організацій | B103: =SUM(B$104:B$108) -> 40.55783393 | C103: 16.22562155 | D103: 40.11055668 | E103: 140.8338031 | F103: 190.9827472 | G103: 221.1279885
A104: Європейське співтоватиство з атомної енергії | B104: 0.3794576859 | C104: 0.3183781317 | D104: 0.4514504503 | E104: 0.4566383727 | F104: 0.2958517627 | G104: 1.691049191
A105: Європейський банк реконструкції та розвитку | B105: 0.9042426181 | C105: 0.7821906616 | D105: 1.392507257 | E105: 3.050143293 | F105: 10.56222871 | G105: 11.01324815
A106: Європейський Інвестиційний Банк | B106: 0 | C106: 0 | D106: 0 | E106: 0 | F106: 0.99479114 | G106: 1.118228125
A107: Міжнародний банк реконструкції та розвитку | B107: 1.483629802 | C107: 1.948240733 | D107: 5.807737291 | E107: 9.418982998 | F107: 12.37301899 | G107: 12.1473539
A108: Міжнародний Валютний Фонд | B108: 37.79050383 | C108: 13.17681203 | D108: 32.45886168 | E108: 127.9080385 | F108: 166.7568566 | G108: 195.1581092
A109: 2. Заборгованість за позиками, одержаними від органів управління іноземних держав | B109: =SUM(B$110:B$110) -> 1.980933645 | C109: 1.980933645 | D109: 3.842712472 | E109: 4.679066995 | F109: 3.975759701 | G109: 2.633259905
A110: Канада | B110: 1.980933645 | C110: 1.980933645 | D110: 3.842712472 | E110: 4.679066995 | F110: 3.975759701 | G110: 2.633259905
A111: 3. Заборгованість за позиками, одержаними від іноземних комерційних банків, інших іноземних фінансових установ | B111: =SUM(B$112:B$124) -> 29.34160084 | C111: 31.0260264 | D111: 51.61602411 | E111: 68.22755055 | F111: 61.95552088 | G111: 58.82186269
A112: Aquasafety Invest plc | B112: 0.3512390631 | C112: 0.1840254926 | D112: 0 | E112: 0 | F112: 0 | G112: 0
A113: Citibank, N.A., Deutsche Bank AG | B113: 0 | C113: 0 | D113: 0 | E113: 0 | F113: 0 | G113: 12.32291711
A114: Citibank, N.A. London | B114: 1.572913927 | C114: 1.236150671 | D114: 1.435475707 | E114: 0.9786004447 | F114: 0 | G114: 0
A115: Credit Suisse First Boston International | B115: 1.19895 | C115: 1.19895 | D115: 0 | E115: 0 | F115: 0 | G115: 0
A116: Credit Suisse International | B116: 2.014236 | C116: 1.6113888 | D116: 2.384205667 | E116: 2.419267234 | F116: 0 | G116: 0
A117: Deutsche Bank AG London | B117: 0.342557152 | C117: 0.22837144 | D117: 0.2252651127 | E117: 0 | F117: 0.3881279224 | G117: 0.9187176921
A118: UniCredit Bank Austria AG | B118: 0.7165276921 | C118: 0.6569710314 | D118: 0.9808783024 | E118: 1.114482976 | F118: 0.96636853 | G118: 0.8147090571
A119: VTB Capital PLC | B119: 3.5233144 | C119: 2.348876277 | D119: 2.316926537 | E119: 0 | F119: 0 | G119: 0
A120: ВАТ "Газпромбанк" | B120: 0 | C120: 3.9965 | D120: 7.884278 | E120: 12.0003335 | F120: 13.595429 | G120: 0
A121: Державний банк розвитку КНР | B121: 0.4630412521 | C121: 0.679405 | D121: 1.34032726 | E121: 1.729968077 | F121: 1.608611159 | G121: 1.249124123
A122: Експортно-імпортний банк Китаю | B122: 11.9895 | C122: 12.40612629 | D122: 24.47475256 | E122: 37.25200875 | F122: 41.84925707 | G122: 40.87291281
A123: Експортно-імпортний банк Кореї | B123: 2.08577335 | C123: 1.825051681 | D123: 3.086103516 | E123: 3.914358784 | F123: 3.547727198 | G123: 2.643481888
A124: Сбербанк Росії | B124: 5.083548 | C124: 4.654209714 | D124: 7.487811449 | E124: 8.818530789 | F124: 0 | G124: 0
A125: 4. Заборгованість за випущеними цінними паперами на зовнішньому ринку | B125: =SUM(B$126:B$128) -> 27.20031488 | C125: 27.20031488 | D125: 28.50954925 | E125: 0 | F125: 0 | G125: 0
A126: Облігації ДП "ФІНІНПРО" (5 - річні) | B126: 4.39615 | C126: 4.39615 | D126: 8.6727058 | E126: 0 | F126: 0 | G126: 0
A127: Облігації ДП "ФІНІНПРО" (7 - річні) | B127: 10.055194 | C127: 10.055194 | D127: 19.83684345 | E127: 0 | F127: 0 | G127: 0
A128: Облігації НАК "Нафтогаз" (5 - річні) | B128: 12.74897088 | C128: 12.74897088 | D128: 0 | E128: 0 | F128: 0 | G128: 0
A129: 5. Заборгованість, не віднесена до інших категорій | B129: =SUM(B$130:B$130) -> 1.000499759 | C129: 1.005895222 | D129: 1.860620486 | E129: 2.708682131 | F129: 2.977044347 | G129: 3.11407068
A130: Міжнародний Валютний Фонд | B130: 1.000499759 | C130: 1.005895222 | D130: 1.860620486 | E130: 2.708682131 | F130: 2.977044347 | G130: 3.11407068

Sheet YKT2_USD
A2: Державний та гарантований державою борг України за останні 5 років
G4: =VALUSD -> млрд. дол. США
B5: 2012-12-31 | C5: 2013-12-31 | D5: 2014-12-31 | E5: 2015-12-31 | F5: 2016-12-31 | G5: 2017-11-30
A6: Загальна сума державного та гарантованого державою боргу | B6: =B$7+B$81 -> 64.49528751 | C6: 73.16233841 | D6: 69.81192296 | E6: 65.50568611 | F6: 70.97270827 | G6: 76.33106904
A7: Державний борг | B7: =B$8+B$48 -> 49.945982 | C7: 60.07989859 | D7: 60.05816063 | E7: 55.59310503 | F7: 60.71280594 | G7: 65.00737781
A8: Внутрішній борг | B8: =B$9+B$46 -> 23.80824443 | C8: 32.14807652 | D8: 29.23562708 | E8: 21.16612522 | F8: 24.66437545 | G8: 26.52675633
A9: 1. Заборгованість за випущеними цінними паперами на внутрішньому ринку | B9: =SUM(B$10:B$45) -> 23.42768544 | C9: 31.78406358 | D9: 29.05949789 | E9: 21.05591785 | F9: 24.57196211 | G9: 26.43740952
A10: Казначейські зобов'язання | B10: 0.1033695 | C10: 0.2 | D10: 0.0056077424 | E10: 0.00410980245 | F10: 0 | G10: 0
A11: ОВДП (1 - місячні) | B11: 0 | C11: 0.2953806825 | D11: 0 | E11: 0 | F11: 0 | G11: 0
A12: ОВДП (10 - річні) | B12: 1.928210809 | C12: 1.969496935 | D12: 3.187004885 | E12: 2.523199168 | F12: 2.752137612 | G12: 1.872568671
A13: ОВДП (11 - річні) | B13: 0.4816690854 | C13: 0.4816690854 | D13: 0.2441555841 | E13: 0.7242707463 | F13: 0.6392950528 | G13: 0.5564906698
A14: ОВДП (12 - місячні) | B14: 1.800676983 | C14: 0.3701634931 | D14: 0.4653494892 | E14: 0.345145 | F14: 0.1278948241 | G14: 0.1249832957
A15: ОВДП (12 - річні) | B15: 0.1876642062 | C15: 0.1876642062 | D15: 0.09512602169 | E15: 0.5208188589 | F15: 1.048146403 | G15: 1.351154756
A16: ОВДП (13 - річні) | B16: 0 | C16: 0 | D16: 0.1660031521 | E16: 0.5465527271 | F16: 1.365077557 | G16: 1.062414873
A17: ОВДП (14 - річні) | B17: 0 | C17: 0 | D17: 0.2061063803 | E17: 0.1354129033 | F17: 1.884824672 | G17: 1.736141317
A18: ОВДП (15 - річні) | B18: 0 | C18: 0 | D18: 1.005091398 | E18: 0.6603499811 | F18: 1.573684729 | G18: 3.246048872
A19: ОВДП (16 - річні) | B19: 0 | C19: 0 | D19: 0 | E19: 0 | F19: 0 | G19: 0.2239167718
A20: ОВДП (17 - річні) | B20: 0 | C20: 0 | D20: 0 | E20: 0 | F20: 0 | G20: 0.2239167718
A21: ОВДП (18 - місячні) | B21: 0.7142544505 | C21: 0.350735 | D21: 0.04878800063 | E21: 0.04370400039 | F21: 1.076022 | G21: 0.893504
A22: ОВДП (18 - річні) | B22: 0 | C22: 0 | D22: 0 | E22: 0 | F22: 0 | G22: 0.8956670873
A23: ОВДП (19 - річні) | B23: 0 | C23: 0 | D23: 0 | E23: 0 | F23: 0 | G23: 0.4478335437
A24: ОВДП (2 - річні) | B24: 1.386007957 | C24: 2.548580788 | D24: 2.594237137 | E24: 0.9129055595 | F24: 2.366730742 | G24: 2.567629418
A25: ОВДП (20 - річні) | B25: 0 | C25: 0 | D25: 0 | E25: 0 | F25: 0 | G25: 0.4478335437
A26: ОВДП (21-річні) | B26: 0 | C26: 0 | D26: 0 | E26: 0 | F26: 0 | G26: 0.4478335437
A27: ОВДП (22-річні) | B27: 0 | C27: 0 | D27: 0 | E27: 0 | F27: 0 | G27: 0.2239167718
A28: ОВДП (23-річні) | B28: 0 | C28: 0 | D28: 0 | E28: 0 | F28: 0 | G28: 0.6717503155
A29: ОВДП (24-річні) | B29: 0 | C29: 0 | D29: 0 | E29: 0 | F29: 0 | G29: 0.4478335437
A30: ОВДП (25-річні) | B30: 0 | C30: 0 | D30: 0 | E30: 0 | F30: 0 | G30: 0.4478335437
A31: ОВДП (26-річні) | B31: 0 | C31: 0 | D31: 0 | E31: 0 | F31: 0 | G31: 0.4478335437
A32: ОВДП (27-річні) | B32: 0 | C32: 0 | D32: 0 | E32: 0 | F32: 0 | G32: 0.4478335437
A33: ОВДП (28-річні) | B33: 0 | C33: 0 | D33: 0 | E33: 0 | F33: 0 | G33: 0.4478335437
A34: ОВДП (29-річні) | B34: 0 | C34: 0 | D34: 0 | E34: 0 | F34: 0 | G34: 0.4478335437
A35: ОВДП (3 - місячні) | B35: 0 | C35: 0 | D35: 0 | E35: 0 | F35: 0.00036777067 | G35: 0
A36: ОВДП (3 - річні) | B36: 3.55989959 | C36: 4.335855935 | D36: 2.954300622 | E36: 1.80733461 | F36: 0.6789923657 | G36: 1.67213058
A37: ОВДП (30-річні) | B37: 0 | C37: 0 | D37: 0 | E37: 0 | F37: 0 | G37: 0.4478338028
A38: ОВДП (4 - річні) | B38: 0.1999585888 | C38: 0.8154841361 | D38: 0.1853170867 | E38: 0.6268620251 | F38: 0.5731903451 | G38: 0.00111053816
A39: ОВДП (5 - річні) | B39: 4.086787602 | C39: 9.422918214 | D39: 8.331756744 | E39: 6.209569597 | F39: 5.574287189 | G39: 2.195559913
A40: ОВДП (6 - місячні) | B40: 0 | C40: 0.06928437383 | D40: 0.01078094912 | E40: 0 | F40: 0.00793652779 | G40: 0
A41: ОВДП (6 - річні) | B41: 1.188539972 | C41: 1.188539972 | D41: 1.718610125 | E41: 1.129135286 | F41: 0.886327309 | G41: 0.2920752368
A42: ОВДП (7 - річні) | B42: 4.14050319 | C42: 5.898147254 | D42: 3.464159369 | E42: 2.025976653 | F42: 1.645398281 | G42: 0.7303069194
A43: ОВДП (8 - річні) | B43: 1.789215313 | C43: 1.789215313 | D43: 1.98503896 | E43: 1.304180338 | F43: 1.008287344 | G43: 0.6996390381
A44: ОВДП (9 - місячні) | B44: 0 | C44: 0 | D44: 0.05358765889 | E44: 0 | F44: 0.00722915769 | G44: 0
A45: ОВДП (9 - річні) | B45: 1.860928187 | C45: 1.860928187 | D45: 2.338476586 | E45: 1.536390593 | F45: 1.356132234 | G45: 0.7181480074
A46: 2. Заборгованість перед банківськими та іншими фінансовими установами | B46: =SUM(B$47:B$47) -> 0.3805589913 | C46: 0.3640129482 | D46: 0.1761291885 | E46: 0.1102073726 | F46: 0.09241333715 | G46: 0.08934681239
A47: Національний банк України | B47: 0.3805589913 | C47: 0.3640129482 | D47: 0.1761291885 | E47: 0.1102073726 | F47: 0.09241333715 | G47: 0.08934681239
A48: Зовнішній борг | B48: =B$49+B$56+B$64+B$66+B$79 -> 26.13773757 | C48: 27.93182207 | D48: 30.82253355 | E48: 34.42697981 | F48: 36.04843049 | G48: 38.48062147
A49: 1. Заборгованість за позиками, одержаними від міжнародних фінансових організацій | B49: =SUM(B$50:B$55) -> 10.02091869 | C49: 7.744732902 | D49: 10.72323321 | E49: 14.05999638 | F49: 13.67542633 | G49: 14.52347451
A50: Європейське Співтовариство | B50: 0 | C50: 0 | D50: 1.658792021 | E50: 2.414646022 | F50: 2.310113011 | G50: 3.323386999
A51: Європейський банк реконструкції та розвитку | B51: 0.53380904 | C51: 0.5963525277 | D51: 0.5941559335 | E51: 0.582929594 | F51: 0.59109237 | G51: 0.6204280044
A52: Європейський Інвестиційний Банк | B52: 0.4007632038 | C52: 0.5358606974 | D52: 0.4853324518 | E52: 0.5220748706 | F52: 0.5340904563 | G52: 0.683476015
A53: Міжнародний банк реконструкції та розвитку | B53: 3.031842493 | C53: 3.070129919 | D53: 4.33260866 | E53: 5.197652457 | F53: 5.055394225 | G53: 4.892119183
A54: Міжнародний Валютний Фонд | B54: 6.054503949 | C54: 3.542389758 | D54: 3.651894139 | E54: 5.341838923 | F54: 5.18225106 | G54: 4.999808942
A55: Фонд чистих технологій (МБРР) | B55: 0 | C55: 0 | D55: 0.00045 | E55: 0.0008545125 | F55: 0.00248521025 | G55: 0.00425536425
A56: 2. Заборгованість за позиками, одержаними від органів управління іноземних держав | B56: =SUM(B$57:B$63) -> 1.138433801 | C56: 0.9106629019 | D56: 1.038285415 | E56: 1.362817423 | F56: 1.678781308 | G56: 1.75168
A57: Італія | B57: 0.01059048492 | C57: 0 | D57: 0 | E57: 0 | F57: 0 | G57: 0
A58: Канада | B58: 0 | C58: 0 | D58: 0.1719946455 | E58: 0.2880759272 | F58: 0.295407655 | G58: 0.3117290524
A59: Німеччина | B59: 0.06029343823 | C59: 0.01332276348 | D59: 0.00853790011 | E59: 0.226168202 | F59: 0.2200474642 | G59: 0.2606638881
A60: Росія | B60: 0.80135586 | C60: 0.70360586 | D60: 0.60585586 | E60: 0.60585586 | F60: 0.60585586 | G60: 0.60585586
A61: США | B61: 0.03313679451 | C61: 0.01187181175 | D61: 0.01044690459 | E61: 0.00902199743 | F61: 0.00759709027 | G61: 0.00759709027
A62: Франція | B62: 0.00277749727 | C62: 0 | D62: 0 | E62: 0 | F62: 0 | G62: 0
A63: Японія | B63: 0.2302797265 | C63: 0.1818624667 | D63: 0.2414501046 | E63: 0.2336954364 | F63: 0.5498732387 | G63: 0.5658341094
A64: 3. Заборгованість за позиками, одержаними від іноземних комерційних банків, інших іноземних фінансових установ | B64: =SUM(B$65:B$65) -> 6.740362e-05 | C64: 7.062988e-05 | D64: 6.236229e-05 | E64: 5.586376e-05 | F64: 5.344535e-05 | G64: 6.04705e-05
A65: Chase Manhattan Bank Luxembourg S.A. | B65: 6.740362e-05 | C65: 7.062988e-05 | D65: 6.236229e-05 | E65: 5.586376e-05 | F65: 5.344535e-05 | G65: 6.04705e-05
A66: 4. Заборгованість за випущеними цінними паперами на зовнішньому ринку | B66: =SUM(B$67:B$78) -> 13.09098001 | C66: 17.37883998 | D66: 17.28182001 | E66: 17.302433 | F66: 19.04333 | G66: 20.467273
A67: ОЗДП 2003 року | B67: 1 | C67: 0 | D67: 0 | E67: 0 | F67: 0 | G67: 0
A68: ОЗДП 2005 року | B68: 0.7909800075 | C68: 0.828839985 | D68: 0.7318200094 | E68: 0 | F68: 0 | G68: 0
A69: ОЗДП 2006 року | B69: 1 | C69: 1 | D69: 1 | E69: 0 | F69: 0 | G69: 0
A70: ОЗДП 2007 року | B70: 0.7 | C70: 0.7 | D70: 0.7 | E70: 0 | F70: 0 | G70: 0
A71: ОЗДП 2010 року | B71: 2 | C71: 2 | D71: 2 | E71: 0 | F71: 0 | G71: 0
A72: ОЗДП 2011 року | B72: 2.75 | C72: 2.75 | D72: 2.75 | E72: 0 | F72: 0 | G72: 0
A73: ОЗДП 2012 року | B73: 4.85 | C73: 5.85 | D73: 4.85 | E73: 0 | F73: 0 | G73: 0
A74: ОЗДП 2013 року | B74: 0 | C74: 4.25 | D74: 4.25 | E74: 3 | F74: 3 | G74: 3
A75: ОЗДП 2014 року | B75: 0 | C75: 0 | D75: 1 | E75: 1 | F75: 1 | G75: 1
A76: ОЗДП 2015 року | B76: 0 | C76: 0 | D76: 0 | E76: 13.302433 | F76: 14.04333 | G76: 12.467273
A77: ОЗДП 2016 року | B77: 0 | C77: 0 | D77: 0 | E77: 0 | F77: 1 | G77: 1
A78: ОЗДП 2017 року | B78: 0 | C78: 0 | D78: 0 | E78: 0 | F78: 0 | G78: 3
A79: 5. Заборгованість, не віднесена до інших категорій | B79: =SUM(B$80:B$80) -> 1.887337674 | C79: 1.897515648 | D79: 1.779132557 | E79: 1.701677142 | F79: 1.650839402 | G79: 1.738133496
A80: Міжнародний Валютний Фонд | B80: 1.887337674 | C80: 1.897515648 | D80: 1.779132557 | E80: 1.701677142 | F80: 1.650839402 | G80: 1.738133496
A81: Гарантований державою борг | B81: =B$82+B$102 -> 14.54930551 | C81: 13.08243982 | D81: 9.753762333 | E81: 9.912581084 | F81: 10.25990233 | G81: 11.32369124
A82: Внутрішній борг | B82: =B$83+B$96+B$100 -> 2.028201665 | C82: 3.394113576 | D82: 1.767015608 | E82: 0.8941191053 | F82: 0.7018710203 | G82: 0.7477705262
A83: 1. Заборгованість за випущеними цінними паперами на внутрішньому ринку | B83: =SUM(B$84:B$95) -> 1.247492146 | C83: 2.644284747 | D83: 1.367722675 | E83: 0.6833148262 | F83: 0.5865946415 | G83: 0.5904365488
A84: Векселі Укравтодору | B84: 0.1961450174 | C84: 0.1250907523 | D84: 0 | E84: 0 | F84: 0 | G84: 0
A85: Державні цінні папери | B85: 1.45127e-06 | C85: 1.45127e-06 | D85: 7.3564e-07 | E85: 4.8332e-07 | F85: 4.2661e-07 | G85: 4.2941e-07
A86: Облігації ДІУ (10 - річні) | B86: 0 | C86: 0 | D86: 0.06341734779 | E86: 0.04166550871 | F86: 0.03677706676 | G86: 0.03701793852
A87: Облігації ДІУ (5 - річні) | B87: 0.2273864633 | C87: 0.2251970476 | D87: 0.1902520434 | E87: 0.1249965261 | F87: 0.1103312003 | G87: 0.1110538156
A88: Облігації ДІУ (7 - річні) | B88: 0.05004378836 | C88: 0.1751532591 | D88: 0.202935513 | E88: 0.1333296278 | F88: 0.1103312003 | G88: 0.1110538156
A89: Облігації ДП КАЗ "Авіант" (5 - річні) | B89: 0.0724266233 | C89: 0.0724266233 | D89: 0 | E89: 0 | F89: 0 | G89: 0
A90: Облігації НАК "Нафтогаз України" (3 - річні) | B90: 0 | C90: 0.6005254598 | D90: 0.3044032694 | E90: 0.1999944418 | F90: 0.1765299205 | G90: 0.1776861049
A91: Облігації Укравтодору (12 - місячні) | B91: 0 | C91: 0.1939196797 | D91: 0 | E91: 0 | F91: 0 | G91: 0
A92: Облігації Укравтодору (3 - річні) | B92: 0.5004378831 | C92: 0.5317152508 | D92: 0.2695237281 | E92: 0.01041637718 | F92: 0 | G92: 0
A93: Облігації Укравтодору (5 - річні) | B93: 0 | C93: 0.5192043038 | D93: 0.2631819933 | E93: 0.1729118612 | F93: 0.1526248271 | G93: 0.1536244449
A94: Облігації ХДАВП (5 - річні) | B94: 0.1100963343 | C94: 0.1100963343 | D94: 0.02790363302 | E94: 0 | F94: 0 | G94: 0
A95: Облігації ХДАВП (6 - річні) | B95: 0.09095458526 | C95: 0.09095458526 | D95: 0.04610441184 | E95: 0 | F95: 0 | G95: 0
A96: 2. Заборгованість перед банківськими та іншими фінансовими установами | B96: =SUM(B$97:B$99) -> 0.7805900826 | C96: 0.7497093929 | D96: 0.3992323909 | E96: 0.2107645031 | F96: 0.1152412696 | G96: 0.1572986382
A97: ВАТ "Державний експортно-імпортний банк України" | B97: 0.2627298887 | C97: 0.2627298887 | D97: 0.1331764304 | E97: 0.04374878415 | F97: 0 | G97: 0.01597106103
A98: ВАТ "Державний ощадний банк України" | B98: 0.5178601939 | C98: 0.4869795042 | D98: 0.2542948332 | E98: 0.160823127 | F98: 0.1111297157 | G98: 0.1380166028
A99: ПАТ АБ "Укргазбанк" | B99: 0 | C99: 0 | D99: 0.0117611273 | E99: 0.00619259195 | F99: 0.00411155398 | G99: 0.00331097437
A100: 3. Заборгованість, не віднесена до інших категорій | B100: =SUM(B$101:B$101) -> 0.00011943576 | C100: 0.00011943576 | D100: 6.054137e-05 | E100: 3.977598e-05 | F100: 3.510923e-05 | G100: 3.533918e-05
A101: Інші кредитори | B101: 0.00011943576 | C101: 0.00011943576 | D101: 6.054137e-05 | E101: 3.977598e-05 | F101: 3.510923e-05 | G101: 3.533918e-05
A102: Зовнішній борг | B102: =B$103+B$109+B$111+B$125+B$129 -> 12.52110385 | C102: 9.688326248 | D102: 7.986746725 | E102: 9.018461978 | F102: 9.55803131 | G102: 10.57592071
A103: 1. Заборгованість за позиками, одержаними від міжнародних фінансових організацій | B103: =SUM(B$104:B$108) -> 5.07416914 | C103: 2.029978926 | D103: 2.543705123 | E103: 5.867912051 | F103: 7.023785243 | G103: 8.185702285
A104: Європейське співтоватиство з атомної енергії | B104: 0.04747375027 | C104: 0.03983211956 | D104: 0.02862979021 | E104: 0.0190260701 | F104: 0.01088056003 | G104: 0.06259915498
A105: Європейський банк реконструкції та розвитку | B105: 0.1131293154 | C105: 0.09785945972 | D105: 0.08830911699 | E105: 0.127085772 | F105: 0.3884477904 | G105: 0.407687743
A106: Європейський Інвестиційний Банк | B106: 0 | C106: 0 | D106: 0 | E106: 0 | F106: 0.03658550017 | G106: 0.04139449999
A107: Міжнародний банк реконструкції та розвитку | B107: 0.1856161394 | C107: 0.2437433671 | D107: 0.3683112957 | E107: 0.3924467181 | F107: 0.4550433454 | G107: 0.44967
A108: Міжнародний Валютний Фонд | B108: 4.727949934 | C108: 1.648543979 | D108: 2.05845492 | E108: 5.329353491 | F108: 6.132828047 | G108: 7.224350887
A109: 2. Заборгованість за позиками, одержаними від органів управління іноземних держав | B109: =SUM(B$110:B$110) -> 0.24783356 | C109: 0.24783356 | D109: 0.2436946333 | E109: 0.1949557066 | F109: 0.14621678 | G109: 0.09747785328
A110: Канада | B110: 0.24783356 | C110: 0.24783356 | D110: 0.2436946333 | E110: 0.1949557066 | F110: 0.14621678 | G110: 0.09747785328
A111: 3. Заборгованість за позиками, одержаними від іноземних комерційних банків, інших іноземних фінансових установ | B111: =SUM(B$112:B$124) -> 3.670912153 | C111: 3.881649744 | D111: 3.273351352 | E111: 2.842735602 | F111: 2.278542328 | G111: 2.177464097
A112: Aquasafety Invest plc | B112: 0.04394333331 | C112: 0.023023332 | D112: 0 | E112: 0 | F112: 0 | G112: 0
A113: Citibank, N.A., Deutsche Bank AG | B113: 0 | C113: 0 | D113: 0 | E113: 0 | F113: 0 | G113: 0.4561689881
A114: Citibank, N.A. London | B114: 0.196786429 | C114: 0.1546541562 | D114: 0.09103406216 | E114: 0.04077388535 | F114: 0 | G114: 0
A115: Credit Suisse First Boston International | B115: 0.15 | C115: 0.15 | D115: 0 | E115: 0 | F115: 0 | G115: 0
A116: Credit Suisse International | B116: 0.252 | C116: 0.2016 | D116: 0.1512 | E116: 0.1008 | F116: 0 | G116: 0
A117: Deutsche Bank AG London | B117: 0.042857144 | C117: 0.02857143 | D117: 0.014285716 | E117: 0 | F117: 0.01427420651 | G117: 0.03400903504
A118: UniCredit Bank Austria AG | B118: 0.08964440036 | C118: 0.08219329806 | D118: 0.06220470044 | E118: 0.04643550014 | F118: 0.03554019995 | G118: 0.03015884979
A119: VTB Capital PLC | B119: 0.4408 | C119: 0.293866668 | D119: 0.146933336 | E119: 0 | F119: 0 | G119: 0
A120: ВАТ "Газпромбанк" | B120: 0 | C120: 0.5 | D120: 0.5 | E120: 0.5 | F120: 0.5 | G120: 0
A121: Державний банк розвитку КНР | B121: 0.057930846 | C121: 0.085 | D121: 0.085 | E121: 0.07208 | F121: 0.05916 | G121: 0.04624
A122: Експортно-імпортний банк Китаю | B122: 1.5 | C122: 1.552123895 | D122: 1.552123895 | E122: 1.552123895 | F122: 1.539092921 | G122: 1.513030974
A123: Експортно-імпортний банк Кореї | B123: 0.26095 | C123: 0.22833125 | D123: 0.1957125 | E123: 0.16309375 | F123: 0.130475 | G123: 0.09785625
A124: Сбербанк Росії | B124: 0.636 | C124: 0.5822857143 | D124: 0.4748571429 | E124: 0.3674285714 | F124: 0 | G124: 0
A125: 4. Заборгованість за випущеними цінними паперами на зовнішньому ринку | B125: =SUM(B$126:B$128) -> 3.403017 | C125: 3.403017 | D125: 1.808 | E125: 0 | F125: 0 | G125: 0
A126: Облігації ДП "ФІНІНПРО" (5 - річні) | B126: 0.55 | C126: 0.55 | D126: 0.55 | E126: 0 | F126: 0 | G126: 0
A127: Облігації ДП "ФІНІНПРО" (7 - річні) | B127: 1.258 | C127: 1.258 | D127: 1.258 | E127: 0 | F127: 0 | G127: 0
A128: Облігації НАК "Нафтогаз" (5 - річні) | B128: 1.595017 | C128: 1.595017 | D128: 0 | E128: 0 | F128: 0 | G128: 0
A129: 5. Заборгованість, не віднесена до інших категорій | B129: =SUM(B$130:B$130) -> 0.1251719954 | C129: 0.1258470189 | D129: 0.1179956164 | E129: 0.1128586189 | F129: 0.1094869587 | G129: 0.115276477
A130: Міжнародний Валютний Фонд | B130: 0.1251719954 | C130: 0.1258470189 | D130: 0.1179956164 | E130: 0.1128586189 | F130: 0.1094869587 | G130: 0.115276477

Sheet KIND_CMP (hidden)
B1: ="Державний та гарантований державою борг України за станом на " & TEXT(DREPORTDATE,"dd.MM.yyyy") -> Державний та гарантований державою борг України за станом на 30.11.2017
A2: Структура боргу за ознакою умовності на кінець попереднього року та на звітну дату
H4: тис.одиниць | I4: =VALVAL -> млрд. одиниць
B5: 2016-12-31 | E5: 2017-11-30
B6: дол.США | C6: грн. | D6: % | E6: дол.США | F6: грн. | G6: % | H6: % | I6: Зміна структури
A7: Загальна сума державного та гарантованого державою боргу | B7: =SUM(B$8+ B$9) -> 70.97270827 | C7: 1929.808832 | D7: 1 | E7: 76.33106904 | F7: 2062.002156 | G7: 1 | I7: =SUM(I$8+ I$9) -> 0
A8: Державний борг | B8: 60.71280594 | C8: 1650.833285 | D8: 0.855439 | E8: 65.00737781 | F8: 1756.104754 | G8: 0.85165 | H8: -0.003788 | I8: -21.4
A9: Гарантований державою борг | B9: 10.25990233 | C9: 278.9755473 | D9: 0.144561 | E9: 11.32369124 | F9: 305.8974025 | G9: 0.14835 | H9: 0.003788 | I9: 21.4

Sheet DTR (hidden)
A2: Структура державного та гарантованого державою боргу в розрізі термінів погашення
D4: =VALVAL -> млрд. одиниць
B5: дол.США | C5: грн. | D5: % | E5: FORMAT
A6: Загальна сума державного та гарантованого державою боргу | B6: =SUM(B$7+ B$8+ B$9) -> 76.33106904 | C6: 2062.002156 | D6: 1 | E6: 3
A7: 2017.11.30-2017.12.31 | B7: 0.6659116632 | C7: 17.98889105 | D7: 0.008724 | E7: 1
A8: 2018-2022 | B8: 25.38671287 | C8: 685.7948844 | D8: 0.332587 | E8: 1
A9: 2022-31.12.2060 | B9: 50.27844451 | C9: 1358.21838 | D9: 0.658689 | E9: 1

Sheet DEBT_TERM (hidden)
A3: Державний та гарантований державою борг України
A4: =" за станом на " & TEXT(DREPORTDATE,"dd.MM.yyyy") -> за станом на 30.11.2017
A5: (в розрізі середнього терміну обігу та середньої ставки)
B8: Середня ставка, % | C8: Середній термін обігу, років | D8: Середній термін до погашення, років | E8: ="Сума боргу " & VALVAL -> Сума боргу млрд. одиниць | F8: IS_CHART_DATA | G8: IS_OVDP | H8: FORMAT
A9: Державний та гарантований державою борг України | B9: 357.307 | C9: 13.01 | D9: 10.14 | E9: 2062002156 | F9: 0 | G9: 0 | H9: 3 | I9: =IF(A9="","",A9 & "; " &B9 & "%; "&C9 &"р.") -> Державний та гарантований державою борг України; 357,307%; 13,01р. | J9: =E9 -> 2062002156
A10: Державний борг | B10: 416.485 | C10: 13.05 | D10: 10.3 | E10: 1756104754 | F10: 0 | G10: 0 | H10: 2 | I10: Державний борг; 416,485%; 13,05р. | J10: 1756104754
A11: Державний внутрішній борг | B11: 177.291 | C11: 12.18 | D11: 10.83 | E11: 716591938.7 | F11: 1 | G11: 0 | H11: 0 | I11: Державний внутрішній борг; 177,291%; 12,18р. | J11: 716591938.7
A12: в т.ч. ОВДП | B12: 177.873 | C12: 12.1 | D12: 10.81 | E12: 714178330.1 | F12: 0 | G12: 0 | H12: 0 | I12: в т.ч. ОВДП; 177,873%; 12,1р. | J12: 714178330.1
A13: ОВДП (1 - місячні) | B13: 0 | C13: 0 | D13: 0 | E13: 0 | F13: 0 | G13: 1 | H13: 0 | I13: ОВДП (1 - місячні); 0%; 0р. | J13: 0
A14: ОВДП (10 - річні) | B14: 126.355 | C14: 9.97 | D14: 7.88 | E14: 49255439 | F14: 0 | G14: 1 | H14: 0 | I14: ОВДП (10 - річні); 126,355%; 9,97р. | J14: 49255439
A15: ОВДП (11 - річні) | B15: 11.49 | C15: 11.02 | D15: 8.06 | E15: 15033000 | F15: 0 | G15: 1 | H15: 0 | I15: ОВДП (11 - річні); 11,49%; 11,02р. | J15: 15033000
A16: ОВДП (12 - місячні) | B16: 247.373 | C16: 0.88 | D16: 0.2 | E16: 3376290 | F16: 0 | G16: 1 | H16: 0 | I16: ОВДП (12 - місячні); 247,373%; 0,88р. | J16: 3376290
A17: ОВДП (12 - річні) | B17: 218.882 | C17: 12.08 | D17: 10.69 | E17: 36500000 | F17: 0 | G17: 1 | H17: 0 | I17: ОВДП (12 - річні); 218,882%; 12,08р. | J17: 36500000
A18: ОВДП (13 - річні) | B18: 7.597 | C18: 13.19 | D18: 12.3 | E18: 28700001 | F18: 0 | G18: 1 | H18: 0 | I18: ОВДП (13 - річні); 7,597%; 13,19р. | J18: 28700001
A19: ОВДП (14 - річні) | B19: 45.771 | C19: 14.05 | D19: 13.18 | E19: 46900000 | F19: 0 | G19: 1 | H19: 0 | I19: ОВДП (14 - річні); 45,771%; 14,05р. | J19: 46900000
A20: ОВДП (15 - річні) | B20: 151.219 | C20: 14.22 | D20: 13.19 | E20: 87688537 | F20: 0 | G20: 1 | H20: 0 | I20: ОВДП (15 - річні); 151,219%; 14,22р. | J20: 87688537
A21: ОВДП (16 - річні) | B21: 863 | C21: 15.6 | D21: 15.45 | E21: 6048872 | F21: 0 | G21: 1 | H21: 0 | I21: ОВДП (16 - річні); 863%; 15,6р. | J21: 6048872
A22: ОВДП (17 - річні) | B22: 831 | C22: 17.11 | D22: 16.96 | E22: 6048872 | F22: 0 | G22: 1 | H22: 0 | I22: ОВДП (17 - річні); 831%; 17,11р. | J22: 6048872
A23: ОВДП (18 - місячні) | B23: 334.236 | C23: 1.44 | D23: 1.09 | E23: 24137054.51 | F23: 0 | G23: 1 | H23: 0 | I23: ОВДП (18 - місячні); 334,236%; 1,44р. | J23: 24137054.51
A24: ОВДП (18 - річні) | B24: 832 | C24: 17.1 | D24: 16.95 | E24: 24195488 | F24: 0 | G24: 1 | H24: 0 | I24: ОВДП (18 - річні); 832%; 17,1р. | J24: 24195488
A25: ОВДП (19 - річні) | B25: 16.4 | C25: 18.86 | D25: 18.71 | E25: 12097744 | F25: 0 | G25: 1 | H25: 0 | I25: ОВДП (19 - річні); 16,4%; 18,86р. | J25: 12097744
A26: ОВДП (2 - річні) | B26: 142.446 | C26: 1.95 | D26: 0.55 | E26: 69361761.36 | F26: 0 | G26: 1 | H26: 0 | I26: ОВДП (2 - річні); 142,446%; 1,95р. | J26: 69361761.36
A27: ОВДП (20 - річні) | B27: 16.4 | C27: 19.86 | D27: 19.71 | E27: 12097744 | F27: 0 | G27: 1 | H27: 0 | I27: ОВДП (20 - річні); 16,4%; 19,86р. | J27: 12097744
A28: ОВДП (21-річні) | B28: 16.4 | C28: 20.86 | D28: 20.71 | E28: 12097744 | F28: 0 | G28: 1 | H28: 0 | I28: ОВДП (21-річні); 16,4%; 20,86р. | J28: 12097744
A29: ОВДП (22-річні) | B29: 16.4 | C29: 22.11 | D29: 21.96 | E29: 6048872 | F29: 0 | G29: 1 | H29: 0 | I29: ОВДП (22-річні); 16,4%; 22,11р. | J29: 6048872
A30: ОВДП (23-річні) | B30: 16.4 | C30: 22.44 | D30: 22.29 | E30: 18146616 | F30: 0 | G30: 1 | H30: 0 | I30: ОВДП (23-річні); 16,4%; 22,44р. | J30: 18146616
A31: ОВДП (24-річні) | B31: 16.4 | C31: 23.86 | D31: 23.71 | E31: 12097744 | F31: 0 | G31: 1 | H31: 0 | I31: ОВДП (24-річні); 16,4%; 23,86р. | J31: 12097744
A32: ОВДП (25-річні) | B32: 16.4 | C32: 24.86 | D32: 24.71 | E32: 12097744 | F32: 0 | G32: 1 | H32: 0 | I32: ОВДП (25-річні); 16,4%; 24,86р. | J32: 12097744
A33: ОВДП (26-річні) | B33: 16.4 | C33: 25.86 | D33: 25.71 | E33: 12097744 | F33: 0 | G33: 1 | H33: 0 | I33: ОВДП (26-річні); 16,4%; 25,86р. | J33: 12097744
A34: ОВДП (27-річні) | B34: 16.4 | C34: 26.86 | D34: 26.71 | E34: 12097744 | F34: 0 | G34: 1 | H34: 0 | I34: ОВДП (27-річні); 16,4%; 26,86р. | J34: 12097744
A35: ОВДП (28-річні) | B35: 16.4 | C35: 27.86 | D35: 27.71 | E35: 12097744 | F35: 0 | G35: 1 | H35: 0 | I35: ОВДП (28-річні); 16,4%; 27,86р. | J35: 12097744
A36: ОВДП (29-річні) | B36: 16.4 | C36: 28.86 | D36: 28.71 | E36: 12097744 | F36: 0 | G36: 1 | H36: 0 | I36: ОВДП (29-річні); 16,4%; 28,86р. | J36: 12097744
A37: ОВДП (3 - місячні) | B37: 0 | C37: 0 | D37: 0 | E37: 0 | F37: 0 | G37: 1 | H37: 0 | I37: ОВДП (3 - місячні); 0%; 0р. | J37: 0
A38: ОВДП (3 - річні) | B38: 715.49 | C38: 2.56 | D38: 1.95 | E38: 45170818.45 | F38: 0 | G38: 1 | H38: 0 | I38: ОВДП (3 - річні); 715,49%; 2,56р. | J38: 45170818.45
A39: ОВДП (30-річні) | B39: 16.4 | C39: 29.86 | D39: 29.71 | E39: 12097751 | F39: 0 | G39: 1 | H39: 0 | I39: ОВДП (30-річні); 16,4%; 29,86р. | J39: 12097751
A40: ОВДП (4 - річні) | B40: 16 | C40: 4.95 | D40: 3.7 | E40: 30000 | F40: 0 | G40: 1 | H40: 0 | I40: ОВДП (4 - річні); 16%; 4,95р. | J40: 30000
A41: ОВДП (5 - річні) | B41: 63.007 | C41: 4.91 | D41: 2.39 | E41: 37172270.4 | F41: 0 | G41: 1 | H41: 0 | I41: ОВДП (5 - річні); 63,007%; 4,91р. | J41: 37172270.4
A42: ОВДП (6 - місячні) | B42: 0 | C42: 0 | D42: 0 | E42: 0 | F42: 0 | G42: 1 | H42: 0 | I42: ОВДП (6 - місячні); 0%; 0р. | J42: 0
A43: ОВДП (6 - річні) | B43: 14.3 | C43: 6.64 | D43: 3.34 | E43: 5800100 | F43: 0 | G43: 1 | H43: 0 | I43: ОВДП (6 - річні); 14,3%; 6,64р. | J43: 5800100
A44: ОВДП (7 - річні) | B44: 29.31 | C44: 6.76 | D44: 4.76 | E44: 14470450 | F44: 0 | G44: 1 | H44: 0 | I44: ОВДП (7 - річні); 29,31%; 6,76р. | J44: 14470450
A45: ОВДП (8 - річні) | B45: 160.915 | C45: 8.18 | D45: 4.97 | E45: 18900000 | F45: 0 | G45: 1 | H45: 0 | I45: ОВДП (8 - річні); 160,915%; 8,18р. | J45: 18900000
A46: ОВДП (9 - місячні) | B46: 0 | C46: 0 | D46: 0 | E46: 0 | F46: 0 | G46: 1 | H46: 0 | I46: ОВДП (9 - місячні); 0%; 0р. | J46: 0
A47: ОВДП (9 - річні) | B47: 308.611 | C47: 9.29 | D47: 6.57 | E47: 19400000 | F47: 0 | G47: 1 | H47: 0 | I47: ОВДП (9 - річні); 308,611%; 9,29р. | J47: 19400000
A48: Казначейські зобов'язання | B48: 0 | C48: 0 | D48: 0 | E48: 0 | F48: 0 | G48: 1 | H48: 0 | I48: Казначейські зобов'язання; 0%; 0р. | J48: 0
A49: ОВДП (1 - місячні) | B49: 0 | C49: 0 | D49: 0 | E49: 0 | F49: 0 | G49: 1 | H49: 0 | I49: ОВДП (1 - місячні); 0%; 0р. | J49: 0
A50: ОВДП (10 - річні) | B50: 9.436 | C50: 9.83 | D50: 4.17 | E50: 1330000 | F50: 0 | G50: 1 | H50: 0 | I50: ОВДП (10 - річні); 9,436%; 9,83р. | J50: 1330000
A51: ОВДП (12 - місячні) | B51: 0 | C51: 0 | D51: 0 | E51: 0 | F51: 0 | G51: 1 | H51: 0 | I51: ОВДП (12 - місячні); 0%; 0р. | J51: 0
A52: ОВДП (18 - місячні) | B52: 0 | C52: 0 | D52: 0 | E52: 0 | F52: 0 | G52: 1 | H52: 0 | I52: ОВДП (18 - місячні); 0%; 0р. | J52: 0
A53: ОВДП (2 - річні) | B53: 0 | C53: 0 | D53: 0 | E53: 0 | F53: 0 | G53: 1 | H53: 0 | I53: ОВДП (2 - річні); 0%; 0р. | J53: 0
A54: ОВДП (3 - місячні) | B54: 0 | C54: 0 | D54: 0 | E54: 0 | F54: 0 | G54: 1 | H54: 0 | J54: 0
A55: ОВДП (3 - річні) | B55: 0 | C55: 0 | D55: 0 | E55: 0 | F55: 0 | G55: 1 | H55: 0 | J55: 0
A56: ОВДП (4 - річні) | B56: 0 | C56: 0 | D56: 0 | E56: 0 | F56: 0 | G56: 1 | H56: 0 | J56: 0
A57: ОВДП (5 - річні) | B57: 53.193 | C57: 4.94 | D57: 0.27 | E57: 22138431.4 | F57: 0 | G57: 1 | H57: 0 | J57: 22138431.4
A58: ОВДП (6 - місячні) | B58: 0 | C58: 0 | D58: 0 | E58: 0 | F58: 0 | G58: 1 | H58: 0 | J58: 0
A59: ОВДП (6 - річні) | B59: 13.182 | C59: 6.21 | D59: 0.13 | E59: 2090000 | F59: 0 | G59: 1 | H59: 0 | J59: 2090000
A60: ОВДП (7 - річні) | B60: 12.622 | C60: 6.9 | D60: 1.68 | E60: 5258010 | F60: 0 | G60: 1 | H60: 0 | J60: 5258010
A61: ОВДП (8 - річні) | B61: 0 | C61: 0 | D61: 0 | E61: 0 | F61: 0 | G61: 1 | H61: 0 | J61: 0
A62: ОВДП (9 - місячні) | B62: 0 | C62: 0 | D62: 0 | E62: 0 | F62: 0 | G62: 1 | H62: 0
A63: ОВДП (9 - річні) | B63: 0 | C63: 0 | D63: 0 | E63: 0 | F63: 0 | G63: 1 | H63: 0
A64: Державний зовнішній борг | B64: 581.374 | C64: 13.65 | D64: 9.94 | E64: 1039512815 | F64: 1 | G64: 0 | H64: 0
A65: в т.ч. ОЗДП | B65: 1086.321 | C65: 8.59 | D65: 6.48 | E65: 552901480.1 | F65: 0 | G65: 0 | H65: 0
A66: Гарантований борг | B66: 17.575 | C66: 12.77 | D66: 9.21 | E66: 305897402.5 | F66: 0 | G66: 0 | H66: 2
A67: Гарантований внутрішній борг | B67: 133.104 | C67: 6.19 | D67: 1.73 | E67: 20200220.65 | F67: 1 | G67: 0 | H67: 0
A68: Гарантований зовнішній борг | B68: 9.407 | C68: 13.23 | D68: 9.73 | E68: 285697181.8 | F68: 1 | G68: 0 | H68: 0
A69: в т.ч. ОЗДП

Sheet K_ALL (hidden)
A2: Державний та гарантований державою борг України за станом на ReportDate (за ознакою умовності)

Sheet T_ALL (hidden)
A2: Державний та гарантований державою борг України за станом на ReportDate (за типом боргу)

Sheet YKT2_PRC (hidden)
A2: Державний та гарантований державою борг України за останні 5 років
G4: %

Sheet TBL1 (hidden)

Sheet DTK2
A2: ="Державний та гарантований державою борг України за станом на " & TEXT(DREPORTDATE,"dd.MM.yyyy") -> Державний та гарантований державою борг України за станом на 30.11.2017
A3: (за типом кредитора)
D5: =VALVAL -> млрд. одиниць
B6: дол.США | C6: грн. | D6: %
A7: Загальна сума державного та гарантованого державою боргу | B7: =B$58+B$8 -> 76.33106904 | C7: 2062.002156 | D7: 0.999999
A8: Внутрішній борг | B8: =B$9+B$44 -> 27.27452686 | C8: 736.7921593 | D8: 0.357317
A9: Державний борг | B9: =B$10+B$42 -> 26.52675633 | C9: 716.5919387 | D9: 0.347521
A10: 1. Заборгованість за випущеними цінними паперами на внутрішньому ринку | B10: =SUM(B$11:B$41) -> 26.43740952 | C10: 714.1783301 | D10: 0.34635
A11: ОВДП (10 - річні) | B11: 1.872568671 | C11: 50.585439 | D11: 0.024532
A12: ОВДП (11 - річні) | B12: 0.5564906698 | C12: 15.033 | D12: 0.00729
A13: ОВДП (12 - місячні) | B13: 0.1249832957 | C13: 3.37629 | D13: 0.001637
A14: ОВДП (12 - річні) | B14: 1.351154756 | C14: 36.5 | D14: 0.017701
A15: ОВДП (13 - річні) | B15: 1.062414873 | C15: 28.700001 | D15: 0.013919
A16: ОВДП (14 - річні) | B16: 1.736141317 | C16: 46.9 | D16: 0.022745
A17: ОВДП (15 - річні) | B17: 3.246048872 | C17: 87.688537 | D17: 0.042526
A18: ОВДП (16 - річні) | B18: 0.2239167718 | C18: 6.048872 | D18: 0.002933
A19: ОВДП (17 - річні) | B19: 0.2239167718 | C19: 6.048872 | D19: 0.002933
A20: ОВДП (18 - місячні) | B20: 0.893504 | C20: 24.13705451 | D20: 0.011706
A21: ОВДП (18 - річні) | B21: 0.8956670873 | C21: 24.195488 | D21: 0.011734
A22: ОВДП (19 - річні) | B22: 0.4478335437 | C22: 12.097744 | D22: 0.005867
A23: ОВДП (2 - річні) | B23: 2.567629418 | C23: 69.36176136 | D23: 0.033638
A24: ОВДП (20 - річні) | B24: 0.4478335437 | C24: 12.097744 | D24: 0.005867
A25: ОВДП (21-річні) | B25: 0.4478335437 | C25: 12.097744 | D25: 0.005867
A26: ОВДП (22-річні) | B26: 0.2239167718 | C26: 6.048872 | D26: 0.002933
A27: ОВДП (23-річні) | B27: 0.6717503155 | C27: 18.146616 | D27: 0.0088
A28: ОВДП (24-річні) | B28: 0.4478335437 | C28: 12.097744 | D28: 0.005867
A29: ОВДП (25-річні) | B29: 0.4478335437 | C29: 12.097744 | D29: 0.005867
A30: ОВДП (26-річні) | B30: 0.4478335437 | C30: 12.097744 | D30: 0.005867
A31: ОВДП (27-річні) | B31: 0.4478335437 | C31: 12.097744 | D31: 0.005867
A32: ОВДП (28-річні) | B32: 0.4478335437 | C32: 12.097744 | D32: 0.005867
A33: ОВДП (29-річні) | B33: 0.4478335437 | C33: 12.097744 | D33: 0.005867
A34: ОВДП (3 - річні) | B34: 1.67213058 | C34: 45.17081845 | D34: 0.021906
A35: ОВДП (30-річні) | B35: 0.4478338028 | C35: 12.097751 | D35: 0.005867
A36: ОВДП (4 - річні) | B36: 0.00111053816 | C36: 0.03 | D36: 1.5e-05
A37: ОВДП (5 - річні) | B37: 2.195559913 | C37: 59.3107018 | D37: 0.028764
A38: ОВДП (6 - річні) | B38: 0.2920752368 | C38: 7.8901 | D38: 0.003826
A39: ОВДП (7 - річні) | B39: 0.7303069194 | C39: 19.72846 | D39: 0.009568
A40: ОВДП (8 - річні) | B40: 0.6996390381 | C40: 18.9 | D40: 0.009166
A41: ОВДП (9 - річні) | B41: 0.7181480074 | C41: 19.4 | D41: 0.009408
A42: 2. Заборгованість перед банківськими та іншими фінансовими установами | B42: =SUM(B$43:B$43) -> 0.08934681239 | C42: 2.413608536 | D42: 0.001171
A43: Національний банк України | B43: 0.08934681239 | C43: 2.413608536 | D43: 0.001171
A44: Гарантований державою борг | B44: =B$45+B$52+B$56 -> 0.7477705262 | C44: 20.20022065 | D44: 0.009796
A45: 1. Заборгованість за випущеними цінними паперами на внутрішньому ринку | B45: =SUM(B$46:B$51) -> 0.5904365489 | C45: 15.9500116 | D45: 0.007736
A46: Державні цінні папери | B46: 4.2941e-07 | C46: 1.16e-05 | D46: 0
A47: Облігації ДІУ (10 - річні) | B47: 0.03701793852 | C47: 1 | D47: 0.000485
A48: Облігації ДІУ (5 - річні) | B48: 0.1110538156 | C48: 3 | D48: 0.001455
A49: Облігації ДІУ (7 - річні) | B49: 0.1110538156 | C49: 3 | D49: 0.001455
A50: Облігації НАК "Нафтогаз України" (3 - річні) | B50: 0.1776861049 | C50: 4.8 | D50: 0.002328
A51: Облігації Укравтодору (5 - річні) | B51: 0.1536244449 | C51: 4.15 | D51: 0.002013
A52: 2. Заборгованість перед банківськими та іншими фінансовими установами | B52: =SUM(B$53:B$55) -> 0.1572986382 | C52: 4.249254401 | D52: 0.00206
A53: ВАТ "Державний експортно-імпортний банк України" | B53: 0.01597106103 | C53: 0.4314411247 | D53: 0.000209
A54: ВАТ "Державний ощадний банк України" | B54: 0.1380166028 | C54: 3.728370846 | D54: 0.001808
A55: ПАТ АБ "Укргазбанк" | B55: 0.00331097437 | C55: 0.08944243001 | D55: 4.3e-05
A56: 3. Заборгованість, не віднесена до інших категорій | B56: =SUM(B$57:B$57) -> 3.533918e-05 | C56: 0.00095465 | D56: 0
A57: Інші кредитори | B57: 3.533918e-05 | C57: 0.00095465 | D57: 0
A58: Зовнішній борг | B58: =B$59+B$83 -> 49.05654219 | C58: 1325.209997 | D58: 0.642682
A59: Державний борг | B59: =B$60+B$67+B$73+B$75+B$81 -> 38.48062147 | C59: 1039.512815 | D59: 0.504129
A60: 1. Заборгованість за позиками, одержаними від міжнародних фінансових організацій | B60: =SUM(B$61:B$66) -> 14.52347451 | C60: 392.3361237 | D60: 0.19027
A61: Європейське Співтовариство | B61: 3.323386999 | C61: 89.77774375 | D61: 0.043539
A62: Європейський банк реконструкції та розвитку | B62: 0.6204280044 | C62: 16.76019868 | D62: 0.008128
A63: Європейський Інвестиційний Банк | B63: 0.683476015 | C63: 18.46337323 | D63: 0.008954
A64: Міжнародний банк реконструкції та розвитку | B64: 4.892119183 | C64: 132.1553652 | D64: 0.064091
A65: Міжнародний Валютний Фонд | B65: 4.999808942 | C65: 135.0644888 | D65: 0.065502
A66: Фонд чистих технологій (МБРР) | B66: 0.00425536425 | C66: 0.114954112 | D66: 5.6e-05
A67: 2. Заборгованість за позиками, одержаними від органів управління іноземних держав | B67: =SUM(B$68:B$72) -> 1.75168 | C67: 47.31976091 | D67: 0.022949
A68: Канада | B68: 0.3117290524 | C68: 8.4210268 | D68: 0.004084
A69: Німеччина | B69: 0.2606638881 | C69: 7.041556027 | D69: 0.003415
A70: Росія | B70: 0.60585586 | C70: 16.36654779 | D70: 0.007937
A71: США | B71: 0.00759709027 | C71: 0.2052272647 | D71: 0.0001
A72: Японія | B72: 0.5658341094 | C72: 15.28540302 | D72: 0.007413
A73: 3. Заборгованість за позиками, одержаними від іноземних комерційних банків, інших іноземних фінансових установ | B73: =SUM(B$74:B$74) -> 6.04705e-05 | C73: 0.00163354598 | D73: 1e-06
A74: Chase Manhattan Bank Luxembourg S.A. | B74: 6.04705e-05 | C74: 0.00163354598 | D74: 1e-06
A75: 4. Заборгованість за випущеними цінними паперами на зовнішньому ринку | B75: =SUM(B$76:B$80) -> 20.467273 | C75: 552.9014801 | D75: 0.268138
A76: ОЗДП 2013 року | B76: 3 | C76: 81.04179 | D76: 0.039302
A77: ОЗДП 2014 року | B77: 1 | C77: 27.01393 | D77: 0.013101
A78: ОЗДП 2015 року | B78: 12.467273 | C78: 336.7900401 | D78: 0.163332
A79: ОЗДП 2016 року | B79: 1 | C79: 27.01393 | D79: 0.013101
A80: ОЗДП 2017 року | B80: 3 | C80: 81.04179 | D80: 0.039302
A81: 5. Заборгованість, не віднесена до інших категорій | B81: =SUM(B$82:B$82) -> 1.738133496 | C81: 46.9538166 | D81: 0.022771
A82: Міжнародний Валютний Фонд | B82: 1.738133496 | C82: 46.9538166 | D82: 0.022771
A83: Гарантований державою борг | B83: =B$84+B$90+B$92+B$99+B$100 -> 10.57592071 | C83: 285.6971818 | D83: 0.138553
A84: 1. Заборгованість за позиками, одержаними від міжнародних фінансових організацій | B84: =SUM(B$85:B$89) -> 8.185702285 | C84: 221.1279885 | D84: 0.107239
A85: Європейське співтоватиство з атомної енергії | B85: 0.06259915498 | C85: 1.691049191 | D85: 0.00082
A86: Європейський банк реконструкції та розвитку | B86: 0.407687743 | C86: 11.01324815 | D86: 0.005341
A87: Європейський Інвестиційний Банк | B87: 0.04139449999 | C87: 1.118228125 | D87: 0.000542
A88: Міжнародний банк реконструкції та розвитку | B88: 0.44967 | C88: 12.1473539 | D88: 0.005891
A89: Міжнародний Валютний Фонд | B89: 7.224350887 | C89: 195.1581092 | D89: 0.094645
A90: 2. Заборгованість за позиками, одержаними від органів управління іноземних держав | B90: =SUM(B$91:B$91) -> 0.09747785328 | C90: 2.633259905 | D90: 0.001277
A91: Канада | B91: 0.09747785328 | C91: 2.633259905 | D91: 0.001277
A92: 3. Заборгованість за позиками, одержаними від іноземних комерційних банків, інших іноземних фінансових установ | B92: =SUM(B$93:B$98) -> 2.177464097 | C92: 58.82186269 | D92: 0.028527
A93: Citibank, N.A., Deutsche Bank AG | B93: 0.4561689881 | C93: 12.32291711 | D93: 0.005976
A94: Deutsche Bank AG London | B94: 0.03400903504 | C94: 0.9187176921 | D94: 0.000446
A95: UniCredit Bank Austria AG | B95: 0.03015884979 | C95: 0.8147090571 | D95: 0.000395
A96: Державний банк розвитку КНР | B96: 0.04624 | C96: 1.249124123 | D96: 0.000606
A97: Експортно-імпортний банк Китаю | B97: 1.513030974 | C97: 40.87291281 | D97: 0.019822
A98: Експортно-імпортний банк Кореї | B98: 0.09785625 | C98: 2.643481888 | D98: 0.001282
A99: 4. Заборгованість за випущеними цінними паперами на зовнішньому ринку
A100: 5. Заборгованість, не віднесена до інших категорій | B100: =SUM(B$101:B$101) -> 0.115276477 | C100: 3.11407068 | D100: 0.00151
A101: Міжнародний Валютний Фонд | B101: 0.115276477 | C101: 3.11407068 | D101: 0.00151

Sheet DATA
A1: STOP
A3: Дата отчета | B3: 2017-11-30 | C3: =DREPORTDATE -> 2017-11-30
A4: Единицы измерения | B4: 1000000000 | C4: =IF($B$4=1,"дол. США",IF($B$4=1000,"тис. дол. США",IF($B$4=1000000,"млн. дол. США",IF($B$4=1000000000,"млрд. дол. США")))) -> млрд. дол. США | D4: =IF($B$4=1,"грн",IF($B$4=1000,"тис. грн",IF($B$4=1000000,"млн. грн",IF($B$4=1000000000,"млрд. грн")))) -> млрд. грн | E4: =IF($B$4=1,"одиниць",IF($B$4=1000,"тис. одиниць",IF($B$4=1000000,"млн. одиниць",IF($B$4=1000000000,"млрд. одиниць")))) -> млрд. одиниць | F4: =1000000000/DDELIMER -> 1 | G4: =IF($B$4=1,1000000000,IF($B$4=1000,1000000,IF($B$4=1000000,1000,IF($B$4=1000000000,1)))) -> 1
A5: Сессия | B5: 51709cc1-e8f8-4058-af5f-e2541aba92f4
A8: SHORT
A12: 1000000000

Sheet AVGRATE_DETAIL (hidden)
